organisation_name,service_responsible,supplier_code,supplier_name,payment_date,transaction_ref,net_amount_by_line_item,irrecoverable_vat,purpose_of_spend,procurement_category_name,transaction_type,payment_type,card_transaction,invoice_date,financial_year,financial_period,supplier_invoice_reference,cost_centre_code,cost_centre_desc,account_code,account_desc,SeRCOP_subdivision_code,SeRCOP_Subdivision_description,SeRCOP_division_codee,SeRCOP_division_description,SeRCOP_service_code,SeRCOP_service_description,SeRCOP_major_service_code,SeRCOP_major_service_description
GUILDFORD BOROUGH COUNCIL,G Live,652890,HQ Theatre Guildford Limited,12/10/2021,30022185,21281.91,0,Services,Theatres,II,BACS,No,01/04/2021 00:00,2021,7,SIN004453,A2141,G Live,D6004,Services,CCA10,Arts Development & Support,CCA,Culture & Heritage,CC,Cultural & Related Services,C,"Cultural, Environmental & Planning Services"
GUILDFORD BOROUGH COUNCIL,Executive - Miscellaneous,992900,Pinsent Masons LLP,14/10/2021,30024822,6240.26,0,Consultants Fees,Other Legal Service Providers,II,BACS,No,26/05/2021 00:00,2021,7,6609269,P79104,Wuv - Thames Water Relocation,1221,Consultants Fees,,,,,,,,
GUILDFORD BOROUGH COUNCIL,Property,992900,Pinsent Masons LLP,14/10/2021,30026121,1629.88,0,Consultants Fees,Other Legal Service Providers,II,BACS,No,21/06/2021 00:00,2021,7,6612948,P74040,Slyfield Area Regeneration Project,1221,Consultants Fees,XXX99,*** UNASSIGNED ***,WCC,CEC Recharges,WC,CEC Recharges,A,Central Services
GUILDFORD BOROUGH COUNCIL,Property,992900,Pinsent Masons LLP,21/12/2021,30026138,2537.6,0,Consultants Fees,Other Legal Service Providers,II,BACS,No,21/06/2021 00:00,2021,9,6612953,P74040,Slyfield Area Regeneration Project,1221,Consultants Fees,XXX99,*** UNASSIGNED ***,WCC,CEC Recharges,WC,CEC Recharges,A,Central Services
GUILDFORD BOROUGH COUNCIL,Tenant Selection,720390,E-Personnel Recruitment Ltd,11/11/2021,30026486,577.5,0,Agency,Other Recruitment Agencies And Service Providers,II,BACS,No,30/06/2021 00:00,2021,8,18770,M1131,"Advice,Regs,Tenant Select(SHS)",A5191,Agency,XXX99,*** UNASSIGNED ***,WCC,CEC Recharges,WC,CEC Recharges,A,Central Services
GUILDFORD BOROUGH COUNCIL,Property,992900,Pinsent Masons LLP,16/11/2021,30027105,5129.6,0,Consultants Fees,Other Legal Service Providers,II,BACS,No,07/07/2021 00:00,2021,8,6617278,P74040,Slyfield Area Regeneration Project,1221,Consultants Fees,XXX99,*** UNASSIGNED ***,WCC,CEC Recharges,WC,CEC Recharges,A,Central Services
GUILDFORD BOROUGH COUNCIL,Property,992900,Pinsent Masons LLP,19/10/2021,30027145,10881.03,0,Consultants Fees,Other Legal Service Providers,II,BACS,No,07/07/2021 00:00,2021,7,6617280,P74040,Slyfield Area Regeneration Project,1221,Consultants Fees,XXX99,*** UNASSIGNED ***,WCC,CEC Recharges,WC,CEC Recharges,A,Central Services
GUILDFORD BOROUGH COUNCIL,Property,1000269,DAVITT JONES BOULD LIMITED,11/11/2021,30028164,1000,0,Legal Expenses,,II,BACS,No,07/07/2021 00:00,2021,8,99564,P74040,Slyfield Area Regeneration Project,1395,Legal Expenses,XXX99,*** UNASSIGNED ***,WCC,CEC Recharges,WC,CEC Recharges,A,Central Services
GUILDFORD BOROUGH COUNCIL,Property,992900,Pinsent Masons LLP,19/10/2021,30028530,6384.5,0,Consultants Fees,Other Legal Service Providers,II,BACS,No,26/07/2021 00:00,2021,7,6619546,P74040,Slyfield Area Regeneration Project,1221,Consultants Fees,XXX99,*** UNASSIGNED ***,WCC,CEC Recharges,WC,CEC Recharges,A,Central Services
GUILDFORD BOROUGH COUNCIL,Property,992900,Pinsent Masons LLP,19/10/2021,30029025,895.5,0,Consultants Fees,Other Legal Service Providers,II,BACS,No,31/07/2021 00:00,2021,7,6622272,P74040,Slyfield Area Regeneration Project,1221,Consultants Fees,XXX99,*** UNASSIGNED ***,WCC,CEC Recharges,WC,CEC Recharges,A,Central Services
GUILDFORD BOROUGH COUNCIL,Property,1000269,DAVITT JONES BOULD LIMITED,14/10/2021,30029388,740.7,0,Consultants Fees,,II,BACS,No,30/07/2021 00:00,2021,7,99926,P74040,Slyfield Area Regeneration Project,1221,Consultants Fees,XXX99,*** UNASSIGNED ***,WCC,CEC Recharges,WC,CEC Recharges,A,Central Services
GUILDFORD BOROUGH COUNCIL,Development Control,105080,APSE,02/12/2021,30029640,914.19,0,Consultancy,Trade Associations And Regulatory Bodies,II,BACS,No,27/07/2021 00:00,2021,9,2122/918,D5100,Development Control - Fee Earn,D6001,Consultancy,CPC00,Development Control Advice,CPC,Development Control,CP,Planning and Development Services,C,"Cultural, Environmental & Planning Services"
GUILDFORD BOROUGH COUNCIL,Countryside and Parks Services,1000503,Roadware Ltd,05/10/2021,30029673,395.8,0,Materials,,II,BACS,No,17/08/2021 00:00,2021,7,6397,A1100,Horticulture,D2003,Materials,CCE00,Community Parks & Open Spaces,CCE,Open Spaces,CC,Cultural & Related Services,C,"Cultural, Environmental & Planning Services"
GUILDFORD BOROUGH COUNCIL,Executive - Miscellaneous,992900,Pinsent Masons LLP,19/10/2021,30029763,33716.8,0,Consultants Fees,Other Legal Service Providers,II,BACS,No,16/08/2021 00:00,2021,7,6623792,P79100,Wuv - Allotment Relocation,1221,Consultants Fees,,,,,,,,
GUILDFORD BOROUGH COUNCIL,Development Control,1000475,G2 Recruitment Solutions,14/10/2021,30029991,680,0,Agency,,II,BACS,No,18/08/2021 00:00,2021,7,87083,D5100,Development Control - Fee Earn,A5191,Agency,CPC00,Development Control Advice,CPC,Development Control,CP,Planning and Development Services,C,"Cultural, Environmental & Planning Services"
GUILDFORD BOROUGH COUNCIL,Industrial Estates,1000269,DAVITT JONES BOULD LIMITED,26/10/2021,30029999,591.5,0,Services,,II,BACS,No,19/08/2021 00:00,2021,7,100175,B5341,Midleton Industrial Estate,D6004,Services,CPJ00,Market Undertakings,CPJ,Economic Development,CP,Planning and Development Services,C,"Cultural, Environmental & Planning Services"
GUILDFORD BOROUGH COUNCIL,Development Control,1000475,G2 Recruitment Solutions,14/10/2021,30030123,680,0,Agency,,II,BACS,No,11/08/2021 00:00,2021,7,86739,D5100,Development Control - Fee Earn,A5191,Agency,CPC00,Development Control Advice,CPC,Development Control,CP,Planning and Development Services,C,"Cultural, Environmental & Planning Services"
GUILDFORD BOROUGH COUNCIL,Development Control,1000475,G2 Recruitment Solutions,14/10/2021,30030127,680,0,Agency,,II,BACS,No,25/08/2021 00:00,2021,7,87378,D5100,Development Control - Fee Earn,A5191,Agency,CPC00,Development Control Advice,CPC,Development Control,CP,Planning and Development Services,C,"Cultural, Environmental & Planning Services"
GUILDFORD BOROUGH COUNCIL,Executive - Miscellaneous,992900,Pinsent Masons LLP,19/10/2021,30030197,5166.7,0,Consultants Fees,Other Legal Service Providers,II,BACS,No,24/08/2021 00:00,2021,7,6624649,P79100,Wuv - Allotment Relocation,1221,Consultants Fees,,,,,,,,
GUILDFORD BOROUGH COUNCIL,Property,992900,Pinsent Masons LLP,19/10/2021,30030208,2220,0,Consultants Fees,Other Legal Service Providers,II,BACS,No,24/08/2021 00:00,2021,7,6624685,P74040,Slyfield Area Regeneration Project,1221,Consultants Fees,XXX99,*** UNASSIGNED ***,WCC,CEC Recharges,WC,CEC Recharges,A,Central Services
GUILDFORD BOROUGH COUNCIL,Executive - Miscellaneous,992900,Pinsent Masons LLP,19/10/2021,30030216,2997.5,0,Consultants Fees,Other Legal Service Providers,II,BACS,No,24/08/2021 00:00,2021,7,6624672,P79100,Wuv - Allotment Relocation,1221,Consultants Fees,,,,,,,,
GUILDFORD BOROUGH COUNCIL,Property,992900,Pinsent Masons LLP,19/10/2021,30030221,6461.1,0,Consultants Fees,Other Legal Service Providers,II,BACS,No,24/08/2021 00:00,2021,7,6624638,P74040,Slyfield Area Regeneration Project,1221,Consultants Fees,XXX99,*** UNASSIGNED ***,WCC,CEC Recharges,WC,CEC Recharges,A,Central Services
GUILDFORD BOROUGH COUNCIL,Miscellaneous Expenses,1000469,"Smart City Media Ltd, T/a City Dressing",19/10/2021,30030226,2306.97,0,Furniture,,II,BACS,No,23/08/2021 00:00,2021,7,1831,F7539,COVID-19,D2002,Furniture,,,,,,,,
GUILDFORD BOROUGH COUNCIL,Property,992900,Pinsent Masons LLP,19/10/2021,30030230,6300,0,Consultants Fees,Other Legal Service Providers,II,BACS,No,24/08/2021 00:00,2021,7,6624665,P74040,Slyfield Area Regeneration Project,1221,Consultants Fees,XXX99,*** UNASSIGNED ***,WCC,CEC Recharges,WC,CEC Recharges,A,Central Services
GUILDFORD BOROUGH COUNCIL,Property,974700,John Thompson & Partners LLP,07/10/2021,30030317,8000,0,Consultants Fees,,II,BACS,No,31/08/2021 00:00,2021,7,S2087,P74040,Slyfield Area Regeneration Project,1221,Consultants Fees,XXX99,*** UNASSIGNED ***,WCC,CEC Recharges,WC,CEC Recharges,A,Central Services
GUILDFORD BOROUGH COUNCIL,Property,974700,John Thompson & Partners LLP,05/10/2021,30030326,14985,0,Consultants Fees,,II,BACS,No,31/08/2021 00:00,2021,7,S2082,P74040,Slyfield Area Regeneration Project,1221,Consultants Fees,XXX99,*** UNASSIGNED ***,WCC,CEC Recharges,WC,CEC Recharges,A,Central Services
GUILDFORD BOROUGH COUNCIL,Property,992900,Pinsent Masons LLP,19/10/2021,30030396,2091.6,0,Consultants Fees,Other Legal Service Providers,II,BACS,No,27/08/2021 00:00,2021,7,6625546,P74040,Slyfield Area Regeneration Project,1221,Consultants Fees,XXX99,*** UNASSIGNED ***,WCC,CEC Recharges,WC,CEC Recharges,A,Central Services
GUILDFORD BOROUGH COUNCIL,Countryside and Parks Services,320160,A & P Services (Surrey) Ltd,02/11/2021,30030403,620.01,0,Repair And Maintenance Of Vehicles,Agricultural Engineers,II,BACS,No,23/06/2021 00:00,2021,7,6815,A1100,Horticulture,C1002,Repair And Maintenance Of Vehicles,CCE00,Community Parks & Open Spaces,CCE,Open Spaces,CC,Cultural & Related Services,C,"Cultural, Environmental & Planning Services"
GUILDFORD BOROUGH COUNCIL,Property,992900,Pinsent Masons LLP,19/10/2021,30030465,2000,0,Consultants Fees,Other Legal Service Providers,II,BACS,No,27/08/2021 00:00,2021,7,6625678,P74040,Slyfield Area Regeneration Project,1221,Consultants Fees,XXX99,*** UNASSIGNED ***,WCC,CEC Recharges,WC,CEC Recharges,A,Central Services
GUILDFORD BOROUGH COUNCIL,Countryside and Parks Services,950920,Tudor (UK) Ltd T/A Tudor Environmental,26/10/2021,30030522,959.6,0,Cleaning Materials,Gardening Equipment Suppliers,II,BACS,No,03/09/2021 00:00,2021,7,IN0146754,A1250,Stoke Park,B5001,Cleaning Materials,CCE00,Community Parks & Open Spaces,CCE,Open Spaces,CC,Cultural & Related Services,C,"Cultural, Environmental & Planning Services"
GUILDFORD BOROUGH COUNCIL,Lead Specialist - ICT,1000319,Lorna Mertins Ltd,12/10/2021,30030529,14787.5,0,ICT Support & Maintenance,,II,BACS,No,05/09/2021 00:00,2021,7,543,G3548,ICT Technical & Infrastructure,D7003,ICT Support & Maintenance,DBX70,Other Management Costs,DBX,Support Service and Management Costs,DB,Children's Social Care,E,Childrens and Education Services
GUILDFORD BOROUGH COUNCIL,G Live,652890,HQ Theatre Guildford Limited,12/10/2021,30030658,21281.91,0,Services,Theatres,II,BACS,No,05/05/2021 00:00,2021,7,SIN2105HQGLV00006,A2141,G Live,D6004,Services,CCA10,Arts Development & Support,CCA,Culture & Heritage,CC,Cultural & Related Services,C,"Cultural, Environmental & Planning Services"
GUILDFORD BOROUGH COUNCIL,Major Projects,1000127,Leonard Design Architects,23/12/2021,30030665,3000,0,Consultants Fees,,II,BACS,No,31/08/2021 00:00,2021,9,12165,F5530,Major Projects,1221,Consultants Fees,DBX70,Other Management Costs,DBX,Support Service and Management Costs,DB,Children's Social Care,E,Childrens and Education Services
GUILDFORD BOROUGH COUNCIL,Development Control,1000475,G2 Recruitment Solutions,14/10/2021,30030683,510,0,Agency,,II,BACS,No,01/09/2021 00:00,2021,7,87726,D5100,Development Control - Fee Earn,A5191,Agency,CPC00,Development Control Advice,CPC,Development Control,CP,Planning and Development Services,C,"Cultural, Environmental & Planning Services"
GUILDFORD BOROUGH COUNCIL,Property,1000269,DAVITT JONES BOULD LIMITED,11/11/2021,30030686,1583.7,0,Legal Expenses,,II,BACS,No,31/08/2021 00:00,2021,8,100260,P74040,Slyfield Area Regeneration Project,1395,Legal Expenses,XXX99,*** UNASSIGNED ***,WCC,CEC Recharges,WC,CEC Recharges,A,Central Services
GUILDFORD BOROUGH COUNCIL,Business Improvement,856800,Vivid Resourcing Limited,05/10/2021,30030687,1520,0,Agency,Other Recruitment Agencies And Service Providers,II,BACS,No,01/09/2021 00:00,2021,7,64529,G3531,Future Guildford,A5191,Agency,AAM00,Corporate Management,AAM,Corporate Management,AA,Corporate & Democratic Core,A,Central Services
GUILDFORD BOROUGH COUNCIL,Executive - Miscellaneous,952020,Montagu Evans LLP,07/10/2021,30030688,6343.75,0,Consultants Fees,Surveyors And Inspectors,II,BACS,No,30/07/2021 00:00,2021,7,DVC220462,P79100,Wuv - Allotment Relocation,1221,Consultants Fees,,,,,,,,
GUILDFORD BOROUGH COUNCIL,Executive - Miscellaneous,453690,Savills (L&P) Limited,14/10/2021,30030716,3000,0,Consultants Fees,Property Letting And Estate Agents,II,BACS,No,22/12/2020 00:00,2021,7,INSU00090240,P79100,Wuv - Allotment Relocation,1221,Consultants Fees,,,,,,,,
GUILDFORD BOROUGH COUNCIL,Business Forum,1000219,The UK Interactive Entertainment Association Ltd,14/10/2021,30030732,5000,0,Grants And Subscriptions,,II,BACS,No,07/09/2021 00:00,2021,7,6395,F7520,Business Forum,D9001,Grants And Subscriptions,CCF00,"Tourism Policy, Marketing & Development",CCF,Tourism,CC,Cultural & Related Services,C,"Cultural, Environmental & Planning Services"
GUILDFORD BOROUGH COUNCIL,Property,952020,Montagu Evans LLP,05/10/2021,30030733,3000,0,Consultants Fees,Surveyors And Inspectors,II,BACS,No,31/08/2021 00:00,2021,7,DVC220617,P74040,Slyfield Area Regeneration Project,1221,Consultants Fees,XXX99,*** UNASSIGNED ***,WCC,CEC Recharges,WC,CEC Recharges,A,Central Services
GUILDFORD BOROUGH COUNCIL,Executive - Miscellaneous,453690,Savills (L&P) Limited,14/10/2021,30030844,1575,0,Consultants Fees,Property Letting And Estate Agents,II,BACS,No,30/07/2021 00:00,2021,7,INSU00149718,P79100,Wuv - Allotment Relocation,1221,Consultants Fees,,,,,,,,
GUILDFORD BOROUGH COUNCIL,IT Renewals,975830,Systems Accountants Limited,14/10/2021,30030933,7630,0,Agency Staff,,II,BACS,No,07/09/2021 00:00,2021,7,SAUK14497,P81002,IT Renewals Reserve Funded General,1222,Agency Staff,XXX99,*** UNASSIGNED ***,WCC,CEC Recharges,WC,CEC Recharges,A,Central Services
GUILDFORD BOROUGH COUNCIL,Homelessness Support,847120,Project 114 Ltd,12/10/2021,30030959,990,0,Emergency Accomodation,Property Letting And Estate Agents,II,BACS,No,13/09/2021 00:00,2021,7,3275,C3311,Homelessness,D8009,Emergency Accomodation,KGU00,Supporting People - Strategy,KGU,Supporting People,KG,Housing General Fund,K,Housing Services
GUILDFORD BOROUGH COUNCIL,Property,685740,Bernard Sims Associates,05/10/2021,30031052,350,0,Consultants Fees,Health And Safety Consultants,II,BACS,No,17/05/2021 00:00,2021,7,49168,P74072,Tyting Farm- Removal Of Barns,1221,Consultants Fees,,,,,,,,
GUILDFORD BOROUGH COUNCIL,Community Wellbeing,184160,Guildford Saints  F.C.,07/10/2021,30031100,360,0,Services,Third Party Supplier,II,BACS,No,13/09/2021 00:00,2021,7,GSFC/130921,A7311,Sports Development,D6004,Services,CCD20,Sports Development & Community Recreation,CCD,Recreation & Sport,CC,Cultural & Related Services,C,"Cultural, Environmental & Planning Services"
GUILDFORD BOROUGH COUNCIL,Executive - Miscellaneous,984360,Chess Engage,05/10/2021,30031155,1500,0,Consultants Fees,,II,BACS,No,31/08/2021 00:00,2021,7,C06686,P79100,Wuv - Allotment Relocation,1221,Consultants Fees,,,,,,,,
GUILDFORD BOROUGH COUNCIL,Executive - Miscellaneous,984360,Chess Engage,07/10/2021,30031161,6000,0,Consultants Fees,,II,BACS,No,31/08/2021 00:00,2021,7,C06687,P79100,Wuv - Allotment Relocation,1221,Consultants Fees,,,,,,,,
GUILDFORD BOROUGH COUNCIL,Executive - Miscellaneous,984360,Chess Engage,05/10/2021,30031164,413.35,0,Consultants Fees,,II,BACS,No,31/08/2021 00:00,2021,7,C06685,P79100,Wuv - Allotment Relocation,1221,Consultants Fees,,,,,,,,
GUILDFORD BOROUGH COUNCIL,Property,1000431,Milestone Infrastructure Ltd,05/10/2021,30031171,1250,0,Consultants Fees,,II,BACS,No,14/09/2021 00:00,2021,7,6823,P74040,Slyfield Area Regeneration Project,1221,Consultants Fees,XXX99,*** UNASSIGNED ***,WCC,CEC Recharges,WC,CEC Recharges,A,Central Services
GUILDFORD BOROUGH COUNCIL,Council Tax,729420,Morgan Hunt UK Limited,05/10/2021,30031234,906.32,0,Agency,Other Recruitment Agencies And Service Providers,II,BACS,No,12/09/2021 00:00,2021,7,1243578,F6141,Council Tax Collectn Expenses,A5191,Agency,ACA00,Council Tax Collection,ACA,Local Tax Collection,AC,Central Services to the Public,A,Central Services
GUILDFORD BOROUGH COUNCIL,Executive - Miscellaneous,986920,Delta-Simons Environmental Consultants Ltd,19/10/2021,30031244,15775.85,0,Consultants Fees,,II,BACS,No,14/09/2021 00:00,2021,7,DS029991,P79102,WUV - New GBC Depot,1221,Consultants Fees,,,,,,,,
GUILDFORD BOROUGH COUNCIL,Major Projects,814220,The Oyster Partnership Ltd,12/10/2021,30031257,1963.5,0,Agency,Other Recruitment Agencies And Service Providers,II,BACS,No,25/08/2021 00:00,2021,7,10908349,F5530,Major Projects,A5191,Agency,DBX70,Other Management Costs,DBX,Support Service and Management Costs,DB,Children's Social Care,E,Childrens and Education Services
GUILDFORD BOROUGH COUNCIL,Council Tax,729420,Morgan Hunt UK Limited,05/10/2021,30031277,765.6,0,Agency,Other Recruitment Agencies And Service Providers,II,BACS,No,12/09/2021 00:00,2021,7,1243577,F6141,Council Tax Collectn Expenses,A5191,Agency,ACA00,Council Tax Collection,ACA,Local Tax Collection,AC,Central Services to the Public,A,Central Services
GUILDFORD BOROUGH COUNCIL,Project Aspire,140980,Surrey Community Action,07/10/2021,30031297,1000,0,Grants And Subscriptions,Charities And Voluntary Organisations,II,BACS,No,16/09/2021 00:00,2021,7,INV-5901,F1126,Project Aspire,D9001,Grants And Subscriptions,KGU00,Supporting People - Strategy,KGU,Supporting People,KG,Housing General Fund,K,Housing Services
GUILDFORD BOROUGH COUNCIL,Executive - Miscellaneous,672220,UK Power Networks (Operations) Ltd (CIS),05/10/2021,30031313,51592,0,Consultants Fees,Mains Electricity Suppliers,II,BACS,No,16/09/2021 00:00,2021,7,DETAILS,P79100,Wuv - Allotment Relocation,1221,Consultants Fees,,,,,,,,
GUILDFORD BOROUGH COUNCIL,Property,814220,The Oyster Partnership Ltd,12/10/2021,30031327,1760,0,Agency Staff,Other Recruitment Agencies And Service Providers,II,BACS,No,15/09/2021 00:00,2021,7,10909873,P74040,Slyfield Area Regeneration Project,1222,Agency Staff,XXX99,*** UNASSIGNED ***,WCC,CEC Recharges,WC,CEC Recharges,A,Central Services
GUILDFORD BOROUGH COUNCIL,Major Projects,814220,The Oyster Partnership Ltd,12/10/2021,30031327,2640,0,Agency,Other Recruitment Agencies And Service Providers,II,BACS,No,15/09/2021 00:00,2021,7,10909873,F5530,Major Projects,A5191,Agency,DBX70,Other Management Costs,DBX,Support Service and Management Costs,DB,Children's Social Care,E,Childrens and Education Services
GUILDFORD BOROUGH COUNCIL,Homelessness Support,1000383,London Croydon Ltd,05/10/2021,30031378,720,0,Emergency Accomodation,,II,BACS,No,01/09/2021 00:00,2021,7,IBC106,C3311,Homelessness,D8009,Emergency Accomodation,KGU00,Supporting People - Strategy,KGU,Supporting People,KG,Housing General Fund,K,Housing Services
GUILDFORD BOROUGH COUNCIL,Homelessness Support,1000383,London Croydon Ltd,05/10/2021,30031388,1350,0,Emergency Accomodation,,II,BACS,No,01/09/2021 00:00,2021,7,IBC111,C3311,Homelessness,D8009,Emergency Accomodation,KGU00,Supporting People - Strategy,KGU,Supporting People,KG,Housing General Fund,K,Housing Services
GUILDFORD BOROUGH COUNCIL,Homelessness Support,847120,Project 114 Ltd,14/10/2021,30031391,1260,0,Emergency Accomodation,Property Letting And Estate Agents,II,BACS,No,20/09/2021 00:00,2021,7,3278,C3311,Homelessness,D8009,Emergency Accomodation,KGU00,Supporting People - Strategy,KGU,Supporting People,KG,Housing General Fund,K,Housing Services
GUILDFORD BOROUGH COUNCIL,Business Improvement,856800,Vivid Resourcing Limited,21/10/2021,30031410,1200,0,Agency,Other Recruitment Agencies And Service Providers,II,BACS,No,15/09/2021 00:00,2021,7,65244,G3531,Future Guildford,A5191,Agency,AAM00,Corporate Management,AAM,Corporate Management,AA,Corporate & Democratic Core,A,Central Services
GUILDFORD BOROUGH COUNCIL,Development Control,105080,APSE,07/12/2021,30031412,650,0,Consultancy,Trade Associations And Regulatory Bodies,II,BACS,No,20/09/2021 00:00,2021,9,2122/1391,D5100,Development Control - Fee Earn,D6001,Consultancy,CPC00,Development Control Advice,CPC,Development Control,CP,Planning and Development Services,C,"Cultural, Environmental & Planning Services"
GUILDFORD BOROUGH COUNCIL,Homelessness Support,996170,London Clapham South Ltd,05/10/2021,30031417,1395,0,Emergency Accomodation,,II,BACS,No,01/09/2021 00:00,2021,7,B2351,C3311,Homelessness,D8009,Emergency Accomodation,KGU00,Supporting People - Strategy,KGU,Supporting People,KG,Housing General Fund,K,Housing Services
GUILDFORD BOROUGH COUNCIL,Homelessness Support,1000383,London Croydon Ltd,05/10/2021,30031418,720,0,Emergency Accomodation,,II,BACS,No,01/09/2021 00:00,2021,7,IBC104,C3311,Homelessness,D8009,Emergency Accomodation,KGU00,Supporting People - Strategy,KGU,Supporting People,KG,Housing General Fund,K,Housing Services
GUILDFORD BOROUGH COUNCIL,Vehicle Maintenance,320160,A & P Services (Surrey) Ltd,19/10/2021,30031476,725.63,0,Repair And Maintenance Of Vehicles,Agricultural Engineers,II,BACS,No,21/09/2021 00:00,2021,7,6993,K5551,Fleet Workshops,C1002,Repair And Maintenance Of Vehicles,W3A48,Current Service Costs - Fleet Management,W3A,Current Service Costs adjustment,W3,Current Service Costs,W,Other Operating Income and Expenditure
GUILDFORD BOROUGH COUNCIL,Refuse and Recycling,830630,Craemer UK Ltd,14/10/2021,30031485,13556.4,0,Stock For Re-Sale,Other Plastic Goods Suppliers,II,BACS,No,20/09/2021 00:00,2021,7,3038693,K3551,Refuse - Domestic,D2004,Stock For Re-Sale,CEW40,Disposal of Waste,CEW,Waste Disposal,CE,Environmental & Regulatory Services,C,"Cultural, Environmental & Planning Services"
GUILDFORD BOROUGH COUNCIL,Industrial Estates,1000269,DAVITT JONES BOULD LIMITED,07/10/2021,30031491,1808.3,0,Consultants Fees,,II,BACS,No,27/07/2021 00:00,2021,7,99905,P72037,Midleton Ind Est Redevelop,1221,Consultants Fees,XXX99,*** UNASSIGNED ***,WCC,CEC Recharges,WC,CEC Recharges,A,Central Services
GUILDFORD BOROUGH COUNCIL,Business Improvement,856800,Vivid Resourcing Limited,19/10/2021,30031520,1456,0,Agency,Other Recruitment Agencies And Service Providers,II,BACS,No,22/09/2021 00:00,2021,7,65551,G3531,Future Guildford,A5191,Agency,AAM00,Corporate Management,AAM,Corporate Management,AA,Corporate & Democratic Core,A,Central Services
GUILDFORD BOROUGH COUNCIL,Off Street Parking,851140,Monatrix Ltd,14/10/2021,30031539,660,0,Equipment,Closed Circuit Television (Cctv) Suppliers,II,BACS,No,21/09/2021 00:00,2021,7,15364,B2111,Car Parks - Administration,D2001,Equipment,HTP10,Off-Street Parking,HTP,Parking Services,HT,"Highways, Roads and Transport Services",H,"Highways, Roads and Transport Services"
GUILDFORD BOROUGH COUNCIL,Car Leasing Holding Code (Service),248920,Lex Autolease Ltd,26/10/2021,30031550,284.96,0,Car Leasing,Vehicle Finance And Leasing Companies,II,BACS,No,21/08/2021 00:00,2021,7,XRIN374160,G1131,Car Leasing Holding Code,C3002,Car Leasing,,,,,,,,
GUILDFORD BOROUGH COUNCIL,Property,814220,The Oyster Partnership Ltd,19/10/2021,30031634,2112,0,Agency Staff,Other Recruitment Agencies And Service Providers,II,BACS,No,22/09/2021 00:00,2021,7,10910354,P74040,Slyfield Area Regeneration Project,1222,Agency Staff,XXX99,*** UNASSIGNED ***,WCC,CEC Recharges,WC,CEC Recharges,A,Central Services
GUILDFORD BOROUGH COUNCIL,Major Projects,814220,The Oyster Partnership Ltd,19/10/2021,30031634,3168,0,Agency,Other Recruitment Agencies And Service Providers,II,BACS,No,22/09/2021 00:00,2021,7,10910354,F5530,Major Projects,A5191,Agency,DBX70,Other Management Costs,DBX,Support Service and Management Costs,DB,Children's Social Care,E,Childrens and Education Services
GUILDFORD BOROUGH COUNCIL,Major Projects,814220,The Oyster Partnership Ltd,19/10/2021,30031639,1636.25,0,Agency,Other Recruitment Agencies And Service Providers,II,BACS,No,22/09/2021 00:00,2021,7,10910352,F5530,Major Projects,A5191,Agency,DBX70,Other Management Costs,DBX,Support Service and Management Costs,DB,Children's Social Care,E,Childrens and Education Services
GUILDFORD BOROUGH COUNCIL,Business Improvement,720390,E-Personnel Recruitment Ltd,19/10/2021,30031642,577.5,0,Agency,Other Recruitment Agencies And Service Providers,II,BACS,No,22/09/2021 00:00,2021,7,20433,G3531,Future Guildford,A5191,Agency,AAM00,Corporate Management,AAM,Corporate Management,AA,Corporate & Democratic Core,A,Central Services
GUILDFORD BOROUGH COUNCIL,Business Improvement,856800,Vivid Resourcing Limited,19/10/2021,30031659,1263.68,0,Agency,Other Recruitment Agencies And Service Providers,II,BACS,No,22/09/2021 00:00,2021,7,65550,G3531,Future Guildford,A5191,Agency,AAM00,Corporate Management,AAM,Corporate Management,AA,Corporate & Democratic Core,A,Central Services
GUILDFORD BOROUGH COUNCIL,Vehicle Maintenance,882220,Fuller Tyres Limited,14/10/2021,30031660,1580,0,Repair And Maintenance Of Vehicles,Other Vehicle Equipment Providers,II,BACS,No,20/09/2021 00:00,2021,7,FTI-32680,K5551,Fleet Workshops,C1002,Repair And Maintenance Of Vehicles,W3A48,Current Service Costs - Fleet Management,W3A,Current Service Costs adjustment,W3,Current Service Costs,W,Other Operating Income and Expenditure
GUILDFORD BOROUGH COUNCIL,Vehicle Maintenance,882220,Fuller Tyres Limited,14/10/2021,30031661,802,0,Repair And Maintenance Of Vehicles,Other Vehicle Equipment Providers,II,BACS,No,20/09/2021 00:00,2021,7,FTI-32683,K5551,Fleet Workshops,C1002,Repair And Maintenance Of Vehicles,W3A48,Current Service Costs - Fleet Management,W3A,Current Service Costs adjustment,W3,Current Service Costs,W,Other Operating Income and Expenditure
GUILDFORD BOROUGH COUNCIL,Customer Services,239430,CCS Media Ltd,28/10/2021,30031727,420,0,ICT Hardware And Consumables,It Consumables Suppliers,II,BACS,No,23/09/2021 00:00,2021,7,4329209,G3544,Customer Service Centre,D7001,ICT Hardware And Consumables,DBX70,Other Management Costs,DBX,Support Service and Management Costs,DB,Children's Social Care,E,Childrens and Education Services
GUILDFORD BOROUGH COUNCIL,Homelessness Support,898090,Top Mill Limited,14/10/2021,30031732,330,0,Emergency Accomodation,Hotels,II,BACS,No,20/09/2021 00:00,2021,7,4168,C3311,Homelessness,D8009,Emergency Accomodation,KGU00,Supporting People - Strategy,KGU,Supporting People,KG,Housing General Fund,K,Housing Services
GUILDFORD BOROUGH COUNCIL,Vehicle and Plant Acquisition,1000363,Ernest Doe & Sons Ltd,28/10/2021,30031736,1156.25,0,Vehicle Purchase,,II,BACS,No,27/07/2021 00:00,2021,7,E07453,P58012,Vehicle & Plant Acqs 2020-21,1745,Vehicle Purchase,,,,,,,,
GUILDFORD BOROUGH COUNCIL,Council Tax,963100,Civica UK Ltd,19/10/2021,30031748,2154.87,0,Agency,Computer Systems Integrators,II,BACS,No,23/09/2021 00:00,2021,7,C/BN226234,F6141,Council Tax Collectn Expenses,A5191,Agency,ACA00,Council Tax Collection,ACA,Local Tax Collection,AC,Central Services to the Public,A,Central Services
GUILDFORD BOROUGH COUNCIL,Countryside and Parks Services,761280,Felden Ltd,14/10/2021,30031753,12810,0,Services,Grounds Maintenance Providers,II,BACS,No,20/09/2021 00:00,2021,7,TV12386,A1000,Parks Contracts,D6004,Services,CCE00,Community Parks & Open Spaces,CCE,Open Spaces,CC,Cultural & Related Services,C,"Cultural, Environmental & Planning Services"
GUILDFORD BOROUGH COUNCIL,Executive - Miscellaneous,236200,Hampshire County Council,26/10/2021,30031754,670323.85,0,Consultants Fees,Local Government [Uk Only],II,BACS,No,23/09/2021 00:00,2021,7,3611398903,P79032,SMC (West) Phase 1,1221,Consultants Fees,XXX99,*** UNASSIGNED ***,WCC,CEC Recharges,WC,CEC Recharges,A,Central Services
GUILDFORD BOROUGH COUNCIL,Parks Countryside Management,1000016,Bill Kear Plant & Agricultural Cont. Ltd - Non CIS,21/10/2021,30031771,14958.69,0,Grounds Maintenance,,II,BACS,No,27/09/2021 00:00,2021,7,INV-0874,A1300,Trees And Countryside,B6001,Grounds Maintenance,CCE00,Community Parks & Open Spaces,CCE,Open Spaces,CC,Cultural & Related Services,C,"Cultural, Environmental & Planning Services"
GUILDFORD BOROUGH COUNCIL,Business Improvement,856800,Vivid Resourcing Limited,05/10/2021,30031777,1085.47,0,Agency,Other Recruitment Agencies And Service Providers,II,BACS,No,04/08/2021 00:00,2021,7,63252,G3531,Future Guildford,A5191,Agency,AAM00,Corporate Management,AAM,Corporate Management,AA,Corporate & Democratic Core,A,Central Services
GUILDFORD BOROUGH COUNCIL,Business Improvement,856800,Vivid Resourcing Limited,05/10/2021,30031791,950.4,0,Agency,Other Recruitment Agencies And Service Providers,II,BACS,No,04/08/2021 00:00,2021,7,63250,G3531,Future Guildford,A5191,Agency,AAM00,Corporate Management,AAM,Corporate Management,AA,Corporate & Democratic Core,A,Central Services
GUILDFORD BOROUGH COUNCIL,Homelessness Support,847120,Project 114 Ltd,21/10/2021,30031803,1260,0,Emergency Accomodation,Property Letting And Estate Agents,II,BACS,No,27/09/2021 00:00,2021,7,3281,C3311,Homelessness,D8009,Emergency Accomodation,KGU00,Supporting People - Strategy,KGU,Supporting People,KG,Housing General Fund,K,Housing Services
GUILDFORD BOROUGH COUNCIL,Industrial Estates,933760,Ant Structures Ltd,14/10/2021,30031966,336,0,Contractor Payments,Scaffolders,II,BACS,No,31/08/2021 00:00,2021,7,921,P72045,Strategic Property Acquisitions,1233,Contractor Payments,,,,,,,,
GUILDFORD BOROUGH COUNCIL,Industrial Estates,933760,Ant Structures Ltd,14/10/2021,30031966,494,0,Contractor Payments,Scaffolders,II,BACS,No,31/08/2021 00:00,2021,7,921,P72045,Strategic Property Acquisitions,1233,Contractor Payments,,,,,,,,
GUILDFORD BOROUGH COUNCIL,Development Control,1000475,G2 Recruitment Solutions,19/10/2021,30031971,2040,0,Agency,,II,BACS,No,22/09/2021 00:00,2021,7,88721,D5100,Development Control - Fee Earn,A5191,Agency,CPC00,Development Control Advice,CPC,Development Control,CP,Planning and Development Services,C,"Cultural, Environmental & Planning Services"
GUILDFORD BOROUGH COUNCIL,Grants,729250,SCBS (Grants only),21/10/2021,30031984,5165.2,0,Grants To Private Owners,General Builders,II,BACS,No,27/09/2021 00:00,2021,7,INV1478,N51008,Mandatory DFG,1311,Grants To Private Owners,XXX99,*** UNASSIGNED ***,WCC,CEC Recharges,WC,CEC Recharges,A,Central Services
GUILDFORD BOROUGH COUNCIL,Property,992900,Pinsent Masons LLP,16/11/2021,30031986,14910.1,0,Consultants Fees,Other Legal Service Providers,II,BACS,No,24/09/2021 00:00,2021,8,6629825,P74040,Slyfield Area Regeneration Project,1221,Consultants Fees,XXX99,*** UNASSIGNED ***,WCC,CEC Recharges,WC,CEC Recharges,A,Central Services
GUILDFORD BOROUGH COUNCIL,Lead Specialist - ICT,1000453,NOMINET UK,05/10/2021,30031992,1009.61,0,Telephones & Broadband,,II,BACS,No,16/07/2021 00:00,2021,7,2233,G3548,ICT Technical & Infrastructure,D7004,Telephones & Broadband,DBX70,Other Management Costs,DBX,Support Service and Management Costs,DB,Children's Social Care,E,Childrens and Education Services
GUILDFORD BOROUGH COUNCIL,Executive - Miscellaneous,992900,Pinsent Masons LLP,16/11/2021,30031996,7224.25,0,Consultants Fees,Other Legal Service Providers,II,BACS,No,24/09/2021 00:00,2021,8,6629828,P79100,Wuv - Allotment Relocation,1221,Consultants Fees,,,,,,,,
GUILDFORD BOROUGH COUNCIL,Homelessness Support,679440,Alpha Extreme Services Limited,21/10/2021,30031998,8333.33,0,Grants And Subscriptions,Other Waste Disposal Suppliers,II,BACS,No,28/09/2021 00:00,2021,7,105878,C3311,Homelessness,D9001,Grants And Subscriptions,KGU00,Supporting People - Strategy,KGU,Supporting People,KG,Housing General Fund,K,Housing Services
GUILDFORD BOROUGH COUNCIL,Lead Specialist - ICT,1000453,NOMINET UK,12/10/2021,30032007,1009.61,0,Telephones & Broadband,,II,BACS,No,30/04/2021 00:00,2021,7,1957,G3548,ICT Technical & Infrastructure,D7004,Telephones & Broadband,DBX70,Other Management Costs,DBX,Support Service and Management Costs,DB,Children's Social Care,E,Childrens and Education Services
GUILDFORD BOROUGH COUNCIL,Development Control,1000232,Hankinson Duckett Associates Ltd,05/10/2021,30032009,3262.5,0,Consultancy,,II,BACS,No,30/05/2021 00:00,2021,7,HD16805,D5100,Development Control - Fee Earn,D6001,Consultancy,CPC00,Development Control Advice,CPC,Development Control,CP,Planning and Development Services,C,"Cultural, Environmental & Planning Services"
GUILDFORD BOROUGH COUNCIL,Grants,729250,SCBS (Grants only),14/10/2021,30032044,4074.76,0,Grants To Private Owners,General Builders,II,BACS,No,20/09/2021 00:00,2021,7,1471,N51008,Mandatory DFG,1311,Grants To Private Owners,XXX99,*** UNASSIGNED ***,WCC,CEC Recharges,WC,CEC Recharges,A,Central Services
GUILDFORD BOROUGH COUNCIL,Affordable Housing,856800,Vivid Resourcing Limited,26/10/2021,30032046,3852,0,Agency,Other Recruitment Agencies And Service Providers,II,BACS,No,29/09/2021 00:00,2021,7,65977,C4111,Affordable Housing Development,A5191,Agency,KGU00,Supporting People - Strategy,KGU,Supporting People,KG,Housing General Fund,K,Housing Services
GUILDFORD BOROUGH COUNCIL,Markets,199300,FASTSIGNS (Guildford) Ltd,21/10/2021,30032047,460,0,"Advertising, Publicity & Promotion",Building Signage Suppliers,II,BACS,No,27/09/2021 00:00,2021,7,858--17818,F5550,Farmers Market,D5002,"Advertising, Publicity & Promotion",CCF00,"Tourism Policy, Marketing & Development",CCF,Tourism,CC,Cultural & Related Services,C,"Cultural, Environmental & Planning Services"
GUILDFORD BOROUGH COUNCIL,Resources Caseworker,185800,Elliott Baxter & Company Limited,09/12/2021,30032048,285,0,Stationery & Paper,Paper Products Suppliers,II,BACS,No,28/09/2021 00:00,2021,9,INV3904933,G4545,Reprographics,D5007,Stationery & Paper,DBX70,Other Management Costs,DBX,Support Service and Management Costs,DB,Children's Social Care,E,Childrens and Education Services
GUILDFORD BOROUGH COUNCIL,Industrial Estates,230230,Surrey County Council,26/10/2021,30032050,110000,0,S106/CIL Obligations,Local Government [Uk Only],II,BACS,No,29/09/2021 00:00,2021,7,9500272994,P72037,Midleton Ind Est Redevelop,1394,S106/CIL Obligations,XXX99,*** UNASSIGNED ***,WCC,CEC Recharges,WC,CEC Recharges,A,Central Services
GUILDFORD BOROUGH COUNCIL,Council Tax,963100,Civica UK Ltd,26/10/2021,30032057,1152.58,0,Agency,Computer Systems Integrators,II,BACS,No,30/09/2021 00:00,2021,7,C/BN226781,F6141,Council Tax Collectn Expenses,A5191,Agency,ACA00,Council Tax Collection,ACA,Local Tax Collection,AC,Central Services to the Public,A,Central Services
GUILDFORD BOROUGH COUNCIL,Property,919010,Perfect Circle JV Ltd,26/10/2021,30032058,24284.6,0,Consultants Fees,Construction Project Management Consultants,II,BACS,No,30/09/2021 00:00,2021,7,LNDM0035/009,P74040,Slyfield Area Regeneration Project,1221,Consultants Fees,XXX99,*** UNASSIGNED ***,WCC,CEC Recharges,WC,CEC Recharges,A,Central Services
GUILDFORD BOROUGH COUNCIL,Miscellaneous Expenses,199300,FASTSIGNS (Guildford) Ltd,21/10/2021,30032059,300,0,"Advertising, Publicity & Promotion",Building Signage Suppliers,II,BACS,No,27/09/2021 00:00,2021,7,858--17851,F7539,COVID-19,D5002,"Advertising, Publicity & Promotion",,,,,,,,
GUILDFORD BOROUGH COUNCIL,Development Control,454730,Alexander Advertising (International) Ltd,07/10/2021,30032060,653.87,0,"Advertising, Publicity & Promotion",Full Service Marketing Agencies,II,BACS,No,16/07/2021 00:00,2021,7,600R22,D5100,Development Control - Fee Earn,D5002,"Advertising, Publicity & Promotion",CPC00,Development Control Advice,CPC,Development Control,CP,Planning and Development Services,C,"Cultural, Environmental & Planning Services"
GUILDFORD BOROUGH COUNCIL,Development Control,454730,Alexander Advertising (International) Ltd,05/10/2021,30032061,290.61,0,"Advertising, Publicity & Promotion",Full Service Marketing Agencies,II,BACS,No,25/06/2021 00:00,2021,7,358R22,D5100,Development Control - Fee Earn,D5002,"Advertising, Publicity & Promotion",CPC00,Development Control Advice,CPC,Development Control,CP,Planning and Development Services,C,"Cultural, Environmental & Planning Services"
GUILDFORD BOROUGH COUNCIL,Development Control,856800,Vivid Resourcing Limited,26/10/2021,30032062,1219,0,Agency,Other Recruitment Agencies And Service Providers,II,BACS,No,29/09/2021 00:00,2021,7,65978,D5200,Development Control Non Fee,A5191,Agency,CPC00,Development Control Advice,CPC,Development Control,CP,Planning and Development Services,C,"Cultural, Environmental & Planning Services"
GUILDFORD BOROUGH COUNCIL,Development Control,856800,Vivid Resourcing Limited,26/10/2021,30032063,1480,0,Agency,Other Recruitment Agencies And Service Providers,II,BACS,No,29/09/2021 00:00,2021,7,65979,D5100,Development Control - Fee Earn,A5191,Agency,CPC00,Development Control Advice,CPC,Development Control,CP,Planning and Development Services,C,"Cultural, Environmental & Planning Services"
GUILDFORD BOROUGH COUNCIL,Property,919010,Perfect Circle JV Ltd,26/10/2021,30032064,19000,0,Consultants Fees,Construction Project Management Consultants,II,BACS,No,30/09/2021 00:00,2021,7,LNDM0031/009,P74040,Slyfield Area Regeneration Project,1221,Consultants Fees,XXX99,*** UNASSIGNED ***,WCC,CEC Recharges,WC,CEC Recharges,A,Central Services
GUILDFORD BOROUGH COUNCIL,Countryside and Parks Services,1000486,Amberol Ltd,26/10/2021,30032065,1110,0,Materials,,II,BACS,No,29/09/2021 00:00,2021,7,21017,A1100,Horticulture,D2003,Materials,CCE00,Community Parks & Open Spaces,CCE,Open Spaces,CC,Cultural & Related Services,C,"Cultural, Environmental & Planning Services"
GUILDFORD BOROUGH COUNCIL,Miscellaneous Expenses,199300,FASTSIGNS (Guildford) Ltd,21/10/2021,30032066,420,0,"Advertising, Publicity & Promotion",Building Signage Suppliers,II,BACS,No,27/09/2021 00:00,2021,7,858--17842,F7539,COVID-19,D5002,"Advertising, Publicity & Promotion",,,,,,,,
GUILDFORD BOROUGH COUNCIL,Resources Caseworker,185800,Elliott Baxter & Company Limited,09/12/2021,30032068,445,0,Stationery & Paper,Paper Products Suppliers,II,BACS,No,28/09/2021 00:00,2021,9,INV3904932,G4545,Reprographics,D5007,Stationery & Paper,DBX70,Other Management Costs,DBX,Support Service and Management Costs,DB,Children's Social Care,E,Childrens and Education Services
GUILDFORD BOROUGH COUNCIL,Executive - Miscellaneous,919010,Perfect Circle JV Ltd,26/10/2021,30032070,2818.75,0,Consultants Fees,Construction Project Management Consultants,II,BACS,No,30/09/2021 00:00,2021,7,LNDM0031/012,P79100,Wuv - Allotment Relocation,1221,Consultants Fees,,,,,,,,
GUILDFORD BOROUGH COUNCIL,Building Maintenance,946970,Davis Property Services GU Limited (CIS),05/10/2021,30032071,2590.23,0,Services,Roofers,II,BACS,No,24/09/2021 00:00,2021,7,2144,K1515,Building Maintenance,D6004,Services,DBX45,Property Services,DBX,Support Service and Management Costs,DB,Children's Social Care,E,Childrens and Education Services
GUILDFORD BOROUGH COUNCIL,Property,919010,Perfect Circle JV Ltd,26/10/2021,30032073,26758.89,0,Consultants Fees,Construction Project Management Consultants,II,BACS,No,30/09/2021 00:00,2021,7,LNDM0032/010,P74040,Slyfield Area Regeneration Project,1221,Consultants Fees,XXX99,*** UNASSIGNED ***,WCC,CEC Recharges,WC,CEC Recharges,A,Central Services
GUILDFORD BOROUGH COUNCIL,Business Improvement,720390,E-Personnel Recruitment Ltd,26/10/2021,30032074,577.5,0,Agency,Other Recruitment Agencies And Service Providers,II,BACS,No,29/09/2021 00:00,2021,7,20577,G3531,Future Guildford,A5191,Agency,AAM00,Corporate Management,AAM,Corporate Management,AA,Corporate & Democratic Core,A,Central Services
GUILDFORD BOROUGH COUNCIL,Guildford House,958530,Pierra Ltd (CIS),05/10/2021,30032075,4379,0,GF Assets - Maintenance,Other Construction Contractors,II,BACS,No,30/09/2021 00:00,2021,7,2893,A4511,Guildford House Administration,B1004,GF Assets - Maintenance,CCA30,Museums & Galleries,CCA,Culture & Heritage,CC,Cultural & Related Services,C,"Cultural, Environmental & Planning Services"
GUILDFORD BOROUGH COUNCIL,Vehicle Maintenance,221340,Aebi Schmidt UK Limited,26/10/2021,30032079,1139,0,Repair And Maintenance Of Vehicles,Other Vehicle Dealers,II,BACS,No,29/09/2021 00:00,2021,7,60273940,K5551,Fleet Workshops,C1002,Repair And Maintenance Of Vehicles,W3A48,Current Service Costs - Fleet Management,W3A,Current Service Costs adjustment,W3,Current Service Costs,W,Other Operating Income and Expenditure
GUILDFORD BOROUGH COUNCIL,Development Control,454730,Alexander Advertising (International) Ltd,05/10/2021,30032087,326.94,0,"Advertising, Publicity & Promotion",Full Service Marketing Agencies,II,BACS,No,16/07/2021 00:00,2021,7,599R22,D5100,Development Control - Fee Earn,D5002,"Advertising, Publicity & Promotion",CPC00,Development Control Advice,CPC,Development Control,CP,Planning and Development Services,C,"Cultural, Environmental & Planning Services"
GUILDFORD BOROUGH COUNCIL,Community Safety,822600,Applied Resilience Limited,26/10/2021,30032088,700.42,0,Consultancy,Other Business Service Providers,II,BACS,No,30/09/2021 00:00,2021,7,GBC98,F5724,Safer Guildford Partnership,D6001,Consultancy,CEH00,Community Safety (Safety Services),CEH,Community Safety (Safety Services),CE,Environmental & Regulatory Services,C,"Cultural, Environmental & Planning Services"
GUILDFORD BOROUGH COUNCIL,Case Services,729420,Morgan Hunt UK Limited,19/10/2021,30032090,893.2,0,Agency,Other Recruitment Agencies And Service Providers,II,BACS,No,26/09/2021 00:00,2021,7,1245243,C6100,Case Services,A5191,Agency,DBX35,Finance (including Internal Audit),DBX,Support Service and Management Costs,DB,Children's Social Care,E,Childrens and Education Services
GUILDFORD BOROUGH COUNCIL,Miscellaneous Expenses,1000544,Cycle-Works Ltd,26/10/2021,30032092,450,0,Events,,II,BACS,No,29/09/2021 00:00,2021,7,104283,F7539,COVID-19,D8006,Events,,,,,,,,
GUILDFORD BOROUGH COUNCIL,Business Improvement,856800,Vivid Resourcing Limited,16/11/2021,30032094,471.82,0,Agency,Other Recruitment Agencies And Service Providers,II,BACS,No,29/09/2021 00:00,2021,8,65976,G3531,Future Guildford,A5191,Agency,AAM00,Corporate Management,AAM,Corporate Management,AA,Corporate & Democratic Core,A,Central Services
GUILDFORD BOROUGH COUNCIL,Business Improvement,856800,Vivid Resourcing Limited,16/11/2021,30032094,1032.18,0,Agency,Other Recruitment Agencies And Service Providers,II,BACS,No,29/09/2021 00:00,2021,8,65976,G3531,Future Guildford,A5191,Agency,AAM00,Corporate Management,AAM,Corporate Management,AA,Corporate & Democratic Core,A,Central Services
GUILDFORD BOROUGH COUNCIL,Property,919010,Perfect Circle JV Ltd,26/10/2021,30032096,14547.89,0,Consultants Fees,Construction Project Management Consultants,II,BACS,No,30/09/2021 00:00,2021,7,LNDM0034/009,P74040,Slyfield Area Regeneration Project,1221,Consultants Fees,XXX99,*** UNASSIGNED ***,WCC,CEC Recharges,WC,CEC Recharges,A,Central Services
GUILDFORD BOROUGH COUNCIL,Tourism & Development,760020,Generate UK Ltd,26/10/2021,30032097,300,0,"Printing, Photocopying And Reprographics External",Digital Marketing Service Providers,II,BACS,No,29/09/2021 00:00,2021,7,INV-14365,F5545,Tourism,D5005,"Printing, Photocopying And Reprographics External",CCF00,"Tourism Policy, Marketing & Development",CCF,Tourism,CC,Cultural & Related Services,C,"Cultural, Environmental & Planning Services"
GUILDFORD BOROUGH COUNCIL,Property,919010,Perfect Circle JV Ltd,26/10/2021,30032099,16365.56,0,Consultants Fees,Construction Project Management Consultants,II,BACS,No,30/09/2021 00:00,2021,7,LNDM0033/009,P74040,Slyfield Area Regeneration Project,1221,Consultants Fees,XXX99,*** UNASSIGNED ***,WCC,CEC Recharges,WC,CEC Recharges,A,Central Services
GUILDFORD BOROUGH COUNCIL,Property,919010,Perfect Circle JV Ltd,26/10/2021,30032100,8888.89,0,Consultants Fees,Construction Project Management Consultants,II,BACS,No,30/09/2021 00:00,2021,7,LNDM0031/010,P74040,Slyfield Area Regeneration Project,1221,Consultants Fees,XXX99,*** UNASSIGNED ***,WCC,CEC Recharges,WC,CEC Recharges,A,Central Services
GUILDFORD BOROUGH COUNCIL,Development Control,1000475,G2 Recruitment Solutions,26/10/2021,30032105,1457,0,Consultancy,,II,BACS,No,29/09/2021 00:00,2021,7,89117,D5100,Development Control - Fee Earn,D6001,Consultancy,CPC00,Development Control Advice,CPC,Development Control,CP,Planning and Development Services,C,"Cultural, Environmental & Planning Services"
GUILDFORD BOROUGH COUNCIL,Resources Caseworker,834160,Banner Group Limited,05/10/2021,30032107,517.07,0,Stationery & Paper,Other Office Equipment Suppliers,II,BACS,No,01/09/2021 00:00,2021,7,7254551,G3550,Resources Caseworker,D5007,Stationery & Paper,DBX35,Finance (including Internal Audit),DBX,Support Service and Management Costs,DB,Children's Social Care,E,Childrens and Education Services
GUILDFORD BOROUGH COUNCIL,Executive - Miscellaneous,919010,Perfect Circle JV Ltd,05/10/2021,30032109,113654.15,0,Consultants Fees,Construction Project Management Consultants,II,BACS,No,19/07/2021 00:00,2021,7,28465596,P79102,WUV - New GBC Depot,1221,Consultants Fees,,,,,,,,
GUILDFORD BOROUGH COUNCIL,Miscellaneous Expenses,760020,Generate UK Ltd,26/10/2021,30032110,262.5,0,"Advertising, Publicity & Promotion",Digital Marketing Service Providers,II,BACS,No,29/09/2021 00:00,2021,7,INV-14364,F7539,COVID-19,D5002,"Advertising, Publicity & Promotion",,,,,,,,
GUILDFORD BOROUGH COUNCIL,Case Services,729420,Morgan Hunt UK Limited,19/10/2021,30032111,899.93,0,Agency,Other Recruitment Agencies And Service Providers,II,BACS,No,26/09/2021 00:00,2021,7,1245244,C6100,Case Services,A5191,Agency,DBX35,Finance (including Internal Audit),DBX,Support Service and Management Costs,DB,Children's Social Care,E,Childrens and Education Services
GUILDFORD BOROUGH COUNCIL,Tourism & Development,1000520,Big Mouth Group Ltd,12/10/2021,30032114,1760,0,"Advertising, Publicity & Promotion",,II,BACS,No,29/09/2021 00:00,2021,7,1000,F5545,Tourism,D5002,"Advertising, Publicity & Promotion",CCF00,"Tourism Policy, Marketing & Development",CCF,Tourism,CC,Cultural & Related Services,C,"Cultural, Environmental & Planning Services"
GUILDFORD BOROUGH COUNCIL,Property,919010,Perfect Circle JV Ltd,26/10/2021,30032115,23847.77,0,Consultants Fees,Construction Project Management Consultants,II,BACS,No,30/09/2021 00:00,2021,7,LNDM0036/005,P74040,Slyfield Area Regeneration Project,1221,Consultants Fees,XXX99,*** UNASSIGNED ***,WCC,CEC Recharges,WC,CEC Recharges,A,Central Services
GUILDFORD BOROUGH COUNCIL,Property,814220,The Oyster Partnership Ltd,26/10/2021,30032118,1760,0,Agency Staff,Other Recruitment Agencies And Service Providers,II,BACS,No,29/09/2021 00:00,2021,7,10910839,P74040,Slyfield Area Regeneration Project,1222,Agency Staff,XXX99,*** UNASSIGNED ***,WCC,CEC Recharges,WC,CEC Recharges,A,Central Services
GUILDFORD BOROUGH COUNCIL,Major Projects,814220,The Oyster Partnership Ltd,26/10/2021,30032118,2640,0,Agency,Other Recruitment Agencies And Service Providers,II,BACS,No,29/09/2021 00:00,2021,7,10910839,F5530,Major Projects,A5191,Agency,DBX70,Other Management Costs,DBX,Support Service and Management Costs,DB,Children's Social Care,E,Childrens and Education Services
GUILDFORD BOROUGH COUNCIL,Miscellaneous Expenses,1000520,Big Mouth Group Ltd,12/10/2021,30032120,2450,0,Consultancy,,II,BACS,No,29/09/2021 00:00,2021,7,1001,F7539,COVID-19,D6001,Consultancy,,,,,,,,
GUILDFORD BOROUGH COUNCIL,Public Conveniences,191500,Ash Parish Council,05/10/2021,30032124,9360,0,Grants And Subscriptions,Local Government [Uk Only],II,BACS,No,16/09/2021 00:00,2021,7,Public Toilet Grant,K6500,Public Conveniences,D9001,Grants And Subscriptions,W3A48,Current Service Costs - Fleet Management,W3A,Current Service Costs adjustment,W3,Current Service Costs,W,Other Operating Income and Expenditure
GUILDFORD BOROUGH COUNCIL,Public Conveniences,750000,Shere Parish Council,05/10/2021,30032125,4680,0,Grants And Subscriptions,Local Government [Uk Only],II,BACS,No,16/09/2021 00:00,2021,7,Public Toilet Grant,K6500,Public Conveniences,D9001,Grants And Subscriptions,W3A48,Current Service Costs - Fleet Management,W3A,Current Service Costs adjustment,W3,Current Service Costs,W,Other Operating Income and Expenditure
GUILDFORD BOROUGH COUNCIL,Other Short Term Debtors,782150,Mrs O Nola,05/10/2021,30032126,2360,0,Cash Paid,,II,BACS,No,01/10/2021 00:00,2021,7, Kingfisher Court RIA,J01064,Housing H4U Scheme,2175,Cash Paid,,,,,,,,
GUILDFORD BOROUGH COUNCIL,Homelessness Support,1000424,Acorn Housing (Cedar Housing Solutions Limited),26/10/2021,30032127,1500,0,Partnerships,,II,BACS,No,01/10/2021 00:00,2021,7, Mount deposit and RIA,C3311,Homelessness,D6013,Partnerships,KGU00,Supporting People - Strategy,KGU,Supporting People,KG,Housing General Fund,K,Housing Services
GUILDFORD BOROUGH COUNCIL,Flats Communal Services,711600,Richard Foakes,05/10/2021,30032138,670,0,Asset Maintenance,Sewerage And Drainage Service Providers,II,BACS,No,24/09/2021 00:00,2021,7,9769,M2636,Bedford House (67),B1001,Asset Maintenance,XXX99,*** UNASSIGNED ***,WCC,CEC Recharges,WC,CEC Recharges,A,Central Services
GUILDFORD BOROUGH COUNCIL,Responsive & Planned Maintenance,878300,Ebrit Services Ltd (CIS),05/10/2021,30032145,900,0,Asset Maintenance,Asbestos Removal Service Providers,II,BACS,No,28/09/2021 00:00,2021,7,216725,M5114,Repairs-Cyclical (BHS),B1001,Asset Maintenance,XXX99,*** UNASSIGNED ***,WCC,CEC Recharges,WC,CEC Recharges,A,Central Services
GUILDFORD BOROUGH COUNCIL,Modern Homes,144020,Perega Limited,19/10/2021,30032146,550,0,Contractor Payments,Other Construction Consultants,II,BACS,No,23/09/2021 00:00,2021,7,12074,N48057,Structural works - various properties,1233,Contractor Payments,,,,,,,,
GUILDFORD BOROUGH COUNCIL,Modern Homes,144020,Perega Limited,19/10/2021,30032147,550,0,Contractor Payments,Other Construction Consultants,II,BACS,No,23/09/2021 00:00,2021,7,12075,N48057,Structural works - various properties,1233,Contractor Payments,,,,,,,,
GUILDFORD BOROUGH COUNCIL,Modern Homes,144020,Perega Limited,19/10/2021,30032148,550,0,Contractor Payments,Other Construction Consultants,II,BACS,No,23/09/2021 00:00,2021,7,12076,N48057,Structural works - various properties,1233,Contractor Payments,,,,,,,,
GUILDFORD BOROUGH COUNCIL,Modern Homes,144020,Perega Limited,19/10/2021,30032149,998.57,0,Contractor Payments,Other Construction Consultants,II,BACS,No,23/09/2021 00:00,2021,7,12077,N42069,Void Properties - refurbishment,1233,Contractor Payments,,,,,,,,
GUILDFORD BOROUGH COUNCIL,Modern Homes,144020,Perega Limited,21/10/2021,30032150,281.5,0,Contractor Payments,Other Construction Consultants,II,BACS,No,28/09/2021 00:00,2021,7,12085,N48057,Structural works - various properties,1233,Contractor Payments,,,,,,,,
GUILDFORD BOROUGH COUNCIL,Responsive & Planned Maintenance,183530,Thomas Door & Window Controls Ltd,05/10/2021,30032152,385,0,Asset Maintenance,"Security Shutter, Door And Gate Contractors",II,BACS,No,27/09/2021 00:00,2021,7,182765,M5113,Repairs-Responsive (BHS),B1001,Asset Maintenance,XXX99,*** UNASSIGNED ***,WCC,CEC Recharges,WC,CEC Recharges,A,Central Services
GUILDFORD BOROUGH COUNCIL,Responsive & Planned Maintenance,698990,Cranleigh Aerials Limited,05/10/2021,30032153,270,0,Building Expenses,Audio And Visual Equipment Suppliers,II,BACS,No,21/09/2021 00:00,2021,7,705538,M5106,Repairs-Shelt-Responsive (BHS),B1002,Building Expenses,XXX99,*** UNASSIGNED ***,WCC,CEC Recharges,WC,CEC Recharges,A,Central Services
GUILDFORD BOROUGH COUNCIL,Renovations,913700,Stannah Limited (CIS),05/10/2021,30032154,3262,0,Contractor Payments,Stairlift Suppliers,II,BACS,No,14/09/2021 00:00,2021,7,1085345843,N40295,Disabled adaptations,1233,Contractor Payments,,,,,,,,
GUILDFORD BOROUGH COUNCIL,Renovations,913700,Stannah Limited (CIS),05/10/2021,30032156,5205,0,Contractor Payments,Stairlift Suppliers,II,BACS,No,24/09/2021 00:00,2021,7,1085349815,N40295,Disabled adaptations,1233,Contractor Payments,,,,,,,,
GUILDFORD BOROUGH COUNCIL,Renovations,982900,C L C Contractors Limited,05/10/2021,30032157,4608.18,0,Contractor Payments,Property Maintenance Contractors,II,BACS,No,01/07/2021 00:00,2021,7,AP93568-001,N40294,Condition Appraisal works 2021/22,1233,Contractor Payments,,,,,,,,
GUILDFORD BOROUGH COUNCIL,Renovations,982900,C L C Contractors Limited,05/10/2021,30032158,5376.21,0,Contractor Payments,Property Maintenance Contractors,II,BACS,No,25/06/2021 00:00,2021,7,AP93569-001,N40294,Condition Appraisal works 2021/22,1233,Contractor Payments,,,,,,,,
GUILDFORD BOROUGH COUNCIL,Renovations,982900,C L C Contractors Limited,05/10/2021,30032159,18251.62,0,Contractor Payments,Property Maintenance Contractors,II,BACS,No,23/09/2021 00:00,2021,7,INV002287,N40294,Condition Appraisal works 2021/22,1233,Contractor Payments,,,,,,,,
GUILDFORD BOROUGH COUNCIL,Renovations,982900,C L C Contractors Limited,05/10/2021,30032160,990,0,Contractor Payments,Property Maintenance Contractors,II,BACS,No,24/09/2021 00:00,2021,7,INV002322,N40294,Condition Appraisal works 2021/22,1233,Contractor Payments,,,,,,,,
GUILDFORD BOROUGH COUNCIL,Income Collection,914220,Allpay Ltd,26/10/2021,30032166,1191.96,0,Bank Charges,Other Financial Service Providers,II,BACS,No,30/09/2021 00:00,2021,7,703997,M1121,Income Collection (BHS),D8002,Bank Charges,XXX99,*** UNASSIGNED ***,WCC,CEC Recharges,WC,CEC Recharges,A,Central Services
GUILDFORD BOROUGH COUNCIL,Property,291600,Lambert Smith Hampton Group Limited,26/10/2021,30032167,1000,0,Consultants Fees,Outsourced Building Management Service Providers,II,BACS,No,30/09/2021 00:00,2021,7,ARINV/00472922,P74064,The Billings Roof,1221,Consultants Fees,,,,,,,,
GUILDFORD BOROUGH COUNCIL,Crematorium,792870,The Yaboo Co Ltd,26/10/2021,30032170,900,0,Services,Media Production Agencies,II,BACS,No,30/09/2021 00:00,2021,7,58318,A1500,Crematorium,D6004,Services,CEA10,Crematoria,CEA,"Cemetery, Cremation and Mortuary Services",CE,Environmental & Regulatory Services,C,"Cultural, Environmental & Planning Services"
GUILDFORD BOROUGH COUNCIL,Industrial Estates,291600,Lambert Smith Hampton Group Limited,26/10/2021,30032173,2000,0,Consultants Fees,Outsourced Building Management Service Providers,II,BACS,No,30/09/2021 00:00,2021,7,ARINV/00472932,P72049,C4 41 MOORFIELD ROAD SLYFIELD,1221,Consultants Fees,,,,,,,,
GUILDFORD BOROUGH COUNCIL,Crematorium,792870,The Yaboo Co Ltd,26/10/2021,30032174,930,0,Services,Media Production Agencies,II,BACS,No,30/09/2021 00:00,2021,7,58320,A1500,Crematorium,D6004,Services,CEA10,Crematoria,CEA,"Cemetery, Cremation and Mortuary Services",CE,Environmental & Regulatory Services,C,"Cultural, Environmental & Planning Services"
GUILDFORD BOROUGH COUNCIL,Lead Specialist - Finance,156250,Hays Specialist Recruitment Limited,05/10/2021,30032175,2004,0,Agency,Other Recruitment Agencies And Service Providers,II,BACS,No,06/09/2021 00:00,2021,7,1011597577,G3593,Procurement Services,A5191,Agency,DBX35,Finance (including Internal Audit),DBX,Support Service and Management Costs,DB,Children's Social Care,E,Childrens and Education Services
GUILDFORD BOROUGH COUNCIL,Property,974700,John Thompson & Partners LLP,26/10/2021,30032176,17850,0,Consultants Fees,,II,BACS,No,30/09/2021 00:00,2021,7,01715/E/3,P74040,Slyfield Area Regeneration Project,1221,Consultants Fees,XXX99,*** UNASSIGNED ***,WCC,CEC Recharges,WC,CEC Recharges,A,Central Services
GUILDFORD BOROUGH COUNCIL,Civil Emergencies,822600,Applied Resilience Limited,26/10/2021,30032177,2750,0,Specialist Services,Other Business Service Providers,II,BACS,No,30/09/2021 00:00,2021,7,GBC97,F1511,Civil Emergencies,D6009,Specialist Services,ACG00,Emergency Planning,ACG,Emergency Planning,AC,Central Services to the Public,A,Central Services
GUILDFORD BOROUGH COUNCIL,Cemeteries,202390,Brand Pest Control,26/10/2021,30032178,360,0,Grounds Maintenance,Pest And Vermin Control Service Providers,II,BACS,No,30/09/2021 00:00,2021,7,2328,A1430,Cemeteries - Stoke Cemetery,B6001,Grounds Maintenance,CEA00,Cemeteries,CEA,"Cemetery, Cremation and Mortuary Services",CE,Environmental & Regulatory Services,C,"Cultural, Environmental & Planning Services"
GUILDFORD BOROUGH COUNCIL,Development Control,1000232,Hankinson Duckett Associates Ltd,05/10/2021,30032180,315,0,Consultancy,,II,BACS,No,30/08/2021 00:00,2021,7,HD16919,D5100,Development Control - Fee Earn,D6001,Consultancy,CPC00,Development Control Advice,CPC,Development Control,CP,Planning and Development Services,C,"Cultural, Environmental & Planning Services"
GUILDFORD BOROUGH COUNCIL,Building Maintenance,769600,RGB Decorating Limited (CIS),05/10/2021,30032181,8088,0,Services,Painters And Decorators,II,BACS,No,29/09/2021 00:00,2021,7,162021,K1515,Building Maintenance,D6004,Services,DBX45,Property Services,DBX,Support Service and Management Costs,DB,Children's Social Care,E,Childrens and Education Services
GUILDFORD BOROUGH COUNCIL,Crematorium,792870,The Yaboo Co Ltd,26/10/2021,30032184,540,0,Services,Media Production Agencies,II,BACS,No,30/09/2021 00:00,2021,7,58319,A1500,Crematorium,D6004,Services,CEA10,Crematoria,CEA,"Cemetery, Cremation and Mortuary Services",CE,Environmental & Regulatory Services,C,"Cultural, Environmental & Planning Services"
GUILDFORD BOROUGH COUNCIL,Development Control,1000232,Hankinson Duckett Associates Ltd,30/11/2021,30032186,3248.75,0,Consultancy,,II,BACS,No,30/08/2021 00:00,2021,8,HD16920,D5100,Development Control - Fee Earn,D6001,Consultancy,CPC00,Development Control Advice,CPC,Development Control,CP,Planning and Development Services,C,"Cultural, Environmental & Planning Services"
GUILDFORD BOROUGH COUNCIL,Lead Specialist - Finance,156250,Hays Specialist Recruitment Limited,26/10/2021,30032188,2238.95,0,Agency,Other Recruitment Agencies And Service Providers,II,BACS,No,30/09/2021 00:00,2021,7,1011656907,G3565,Finance Specialists,A5191,Agency,DBX35,Finance (including Internal Audit),DBX,Support Service and Management Costs,DB,Children's Social Care,E,Childrens and Education Services
GUILDFORD BOROUGH COUNCIL,Environmental Works,711600,Richard Foakes,07/10/2021,30032190,670,0,Asset Maintenance,Sewerage And Drainage Service Providers,II,BACS,No,30/09/2021 00:00,2021,7,9773,M4615,Env Wks To Estate (BHS),B1001,Asset Maintenance,XXX99,*** UNASSIGNED ***,WCC,CEC Recharges,WC,CEC Recharges,A,Central Services
GUILDFORD BOROUGH COUNCIL,Woking Road Depot,759110,Harpers Door Specialists,07/10/2021,30032192,320,0,Services,"Security Shutter, Door And Gate Contractors",II,BACS,No,01/10/2021 00:00,2021,7,SI-3804,B4452,Woking Road Depot,D6004,Services,W3A48,Current Service Costs - Fleet Management,W3A,Current Service Costs adjustment,W3,Current Service Costs,W,Other Operating Income and Expenditure
GUILDFORD BOROUGH COUNCIL,Woking Road Depot,759110,Harpers Door Specialists,07/10/2021,30032192,1000,0,Services,"Security Shutter, Door And Gate Contractors",II,BACS,No,01/10/2021 00:00,2021,7,SI-3804,B4452,Woking Road Depot,D6004,Services,W3A48,Current Service Costs - Fleet Management,W3A,Current Service Costs adjustment,W3,Current Service Costs,W,Other Operating Income and Expenditure
GUILDFORD BOROUGH COUNCIL,Vehicle Maintenance,145000,Connections UK,21/10/2021,30032194,322.8,0,Repair And Maintenance Of Vehicles,Event Management Agencies,II,BACS,No,28/09/2021 00:00,2021,7,3378,K5551,Fleet Workshops,C1002,Repair And Maintenance Of Vehicles,W3A48,Current Service Costs - Fleet Management,W3A,Current Service Costs adjustment,W3,Current Service Costs,W,Other Operating Income and Expenditure
GUILDFORD BOROUGH COUNCIL,Building Maintenance,846250,Revive Services (CIS),05/10/2021,30032196,2120,0,Services,Other Cleaning And Janitorial Service Providers,II,BACS,No,28/09/2021 00:00,2021,7,127,K1515,Building Maintenance,D6004,Services,DBX45,Property Services,DBX,Support Service and Management Costs,DB,Children's Social Care,E,Childrens and Education Services
GUILDFORD BOROUGH COUNCIL,Property,992900,Pinsent Masons LLP,16/11/2021,30032197,1642.02,0,Consultants Fees,Other Legal Service Providers,II,BACS,No,28/09/2021 00:00,2021,8,6630509,P74040,Slyfield Area Regeneration Project,1221,Consultants Fees,XXX99,*** UNASSIGNED ***,WCC,CEC Recharges,WC,CEC Recharges,A,Central Services
GUILDFORD BOROUGH COUNCIL,Crematorium,792870,The Yaboo Co Ltd,21/10/2021,30032198,667,0,Services,Media Production Agencies,II,BACS,No,28/09/2021 00:00,2021,7,24429,A1500,Crematorium,D6004,Services,CEA10,Crematoria,CEA,"Cemetery, Cremation and Mortuary Services",CE,Environmental & Regulatory Services,C,"Cultural, Environmental & Planning Services"
GUILDFORD BOROUGH COUNCIL,Building Maintenance,1000451,AMG Electrical Ltd,05/10/2021,30032199,984.94,0,Services,,II,BACS,No,28/09/2021 00:00,2021,7,2109-07,K1515,Building Maintenance,D6004,Services,DBX45,Property Services,DBX,Support Service and Management Costs,DB,Children's Social Care,E,Childrens and Education Services
GUILDFORD BOROUGH COUNCIL,Crematorium,792870,The Yaboo Co Ltd,26/10/2021,30032201,735,0,Services,Media Production Agencies,II,BACS,No,30/09/2021 00:00,2021,7,58317,A1500,Crematorium,D6004,Services,CEA10,Crematoria,CEA,"Cemetery, Cremation and Mortuary Services",CE,Environmental & Regulatory Services,C,"Cultural, Environmental & Planning Services"
GUILDFORD BOROUGH COUNCIL,Lead Specialist - Finance,156250,Hays Specialist Recruitment Limited,05/10/2021,30032202,671.69,0,Agency,Other Recruitment Agencies And Service Providers,II,BACS,No,21/06/2021 00:00,2021,7,1011386387,G3565,Finance Specialists,A5191,Agency,DBX35,Finance (including Internal Audit),DBX,Support Service and Management Costs,DB,Children's Social Care,E,Childrens and Education Services
GUILDFORD BOROUGH COUNCIL,Woking Road Depot,759110,Harpers Door Specialists,05/10/2021,30032203,980,0,Services,"Security Shutter, Door And Gate Contractors",II,BACS,No,30/09/2021 00:00,2021,7,SI-3802,B4452,Woking Road Depot,D6004,Services,W3A48,Current Service Costs - Fleet Management,W3A,Current Service Costs adjustment,W3,Current Service Costs,W,Other Operating Income and Expenditure
GUILDFORD BOROUGH COUNCIL,Climate Change,701280,RN Coverly,26/10/2021,30032205,900,0,Asset Maintenance,,II,BACS,No,30/09/2021 00:00,2021,7,W168,G4587,"Toll House Turbine, Millbrook",B1001,Asset Maintenance,CEZ00,Climate Change Costs,CEZ,Climate Change Costs,CE,Environmental & Regulatory Services,C,"Cultural, Environmental & Planning Services"
GUILDFORD BOROUGH COUNCIL,Major Projects,814220,The Oyster Partnership Ltd,26/10/2021,30032206,1309,0,Agency,Other Recruitment Agencies And Service Providers,II,BACS,No,29/09/2021 00:00,2021,7,10910838,F5530,Major Projects,A5191,Agency,DBX70,Other Management Costs,DBX,Support Service and Management Costs,DB,Children's Social Care,E,Childrens and Education Services
GUILDFORD BOROUGH COUNCIL,Countryside and Parks Services,792570,SMI Group Ltd,26/10/2021,30032207,698.22,0,Clothing & Uniform,Personal Protective Equipment (Ppe) Suppliers,II,BACS,No,30/09/2021 00:00,2021,7,INV949144,A1100,Horticulture,D4001,Clothing & Uniform,CCE00,Community Parks & Open Spaces,CCE,Open Spaces,CC,Cultural & Related Services,C,"Cultural, Environmental & Planning Services"
GUILDFORD BOROUGH COUNCIL,Countryside and Parks Services,926480,ABM Surveys Limited,16/11/2021,30032208,450,0,Consultancy,Pest And Vermin Control Service Providers,II,BACS,No,01/10/2021 00:00,2021,8,1911,A1250,Stoke Park,D6001,Consultancy,CCE00,Community Parks & Open Spaces,CCE,Open Spaces,CC,Cultural & Related Services,C,"Cultural, Environmental & Planning Services"
GUILDFORD BOROUGH COUNCIL,Executive - Miscellaneous,992900,Pinsent Masons LLP,16/11/2021,30032210,396.5,0,Consultants Fees,Other Legal Service Providers,II,BACS,No,28/09/2021 00:00,2021,8,6630662,P79100,Wuv - Allotment Relocation,1221,Consultants Fees,,,,,,,,
GUILDFORD BOROUGH COUNCIL,Lead Specialist - Legal,218050,Bevan Brittan LLP,21/10/2021,30032211,760.5,0,Services,Solicitors [Uk Only],II,BACS,No,28/09/2021 00:00,2021,7,10148049,G4525,Legal Services,D6004,Services,DBX40,Legal,DBX,Support Service and Management Costs,DB,Children's Social Care,E,Childrens and Education Services
GUILDFORD BOROUGH COUNCIL,Lead Specialist - ICT,668140,Softcat Limited,26/10/2021,30032212,285.12,0,ICT Software,It Support Service Providers,II,BACS,No,30/09/2021 00:00,2021,7,INV03178356,G3547,ICT Development,D7002,ICT Software,DBX70,Other Management Costs,DBX,Support Service and Management Costs,DB,Children's Social Care,E,Childrens and Education Services
GUILDFORD BOROUGH COUNCIL,Property,992900,Pinsent Masons LLP,21/10/2021,30032213,1308.4,0,Consultants Fees,Other Legal Service Providers,II,BACS,No,28/09/2021 00:00,2021,7,6630643,P74040,Slyfield Area Regeneration Project,1221,Consultants Fees,XXX99,*** UNASSIGNED ***,WCC,CEC Recharges,WC,CEC Recharges,A,Central Services
GUILDFORD BOROUGH COUNCIL,Executive - Miscellaneous,992900,Pinsent Masons LLP,16/11/2021,30032215,2002.82,0,Consultants Fees,Other Legal Service Providers,II,BACS,No,28/09/2021 00:00,2021,8,6630284,P79100,Wuv - Allotment Relocation,1221,Consultants Fees,,,,,,,,
GUILDFORD BOROUGH COUNCIL,Renovations,1000518,Liquid Recruit Solutions Limited,26/10/2021,30032216,1925,0,Contractor Payments,,II,BACS,No,30/09/2021 00:00,2021,7,10544,N40292,Fire protection works,1233,Contractor Payments,,,,,,,,
GUILDFORD BOROUGH COUNCIL,Vehicle Maintenance,128600,Charters Of Aldershot Limited,26/10/2021,30032218,1349.93,0,Repair And Maintenance Of Vehicles,Third Party Supplier,II,BACS,No,30/09/2021 00:00,2021,7,10252647,K5551,Fleet Workshops,C1002,Repair And Maintenance Of Vehicles,W3A48,Current Service Costs - Fleet Management,W3A,Current Service Costs adjustment,W3,Current Service Costs,W,Other Operating Income and Expenditure
GUILDFORD BOROUGH COUNCIL,Countryside and Parks Services,908500,AVS Fencing Supplies Ltd,26/10/2021,30032219,716.28,0,Grounds Maintenance,Builders Merchants,II,BACS,No,30/09/2021 00:00,2021,7,SINV-1127534,A1100,Horticulture,B6001,Grounds Maintenance,CCE00,Community Parks & Open Spaces,CCE,Open Spaces,CC,Cultural & Related Services,C,"Cultural, Environmental & Planning Services"
GUILDFORD BOROUGH COUNCIL,Property,814220,The Oyster Partnership Ltd,26/10/2021,30032220,2975,0,Consultants Fees,Other Recruitment Agencies And Service Providers,II,BACS,No,29/09/2021 00:00,2021,7,10910840,P74040,Slyfield Area Regeneration Project,1221,Consultants Fees,XXX99,*** UNASSIGNED ***,WCC,CEC Recharges,WC,CEC Recharges,A,Central Services
GUILDFORD BOROUGH COUNCIL,Resources Caseworker,1000040,Westcountry Group,09/12/2021,30032223,430,0,Stationery & Paper,,II,BACS,No,30/09/2021 00:00,2021,9,36531,G4545,Reprographics,D5007,Stationery & Paper,DBX70,Other Management Costs,DBX,Support Service and Management Costs,DB,Children's Social Care,E,Childrens and Education Services
GUILDFORD BOROUGH COUNCIL,Resources Caseworker,1000040,Westcountry Group,09/12/2021,30032223,430,0,Stationery & Paper,,II,BACS,No,30/09/2021 00:00,2021,9,36531,G3550,Resources Caseworker,D5007,Stationery & Paper,DBX35,Finance (including Internal Audit),DBX,Support Service and Management Costs,DB,Children's Social Care,E,Childrens and Education Services
GUILDFORD BOROUGH COUNCIL,Day Services,129100,Cheesman Brothers Limited,26/10/2021,30032225,1028.82,0,Catering,Fruit And Vegetable Suppliers,II,BACS,No,30/09/2021 00:00,2021,7,904974,C8100,Community Hubs,D3001,Catering,KGU00,Supporting People - Strategy,KGU,Supporting People,KG,Housing General Fund,K,Housing Services
GUILDFORD BOROUGH COUNCIL,Non Reportable Activity,774460,Community Foundation For Surrey,28/10/2021,30032227,818.1,0,Materials,Community Partnerships,II,BACS,No,04/10/2021 00:00,2021,7,2110 (Lottery),G1188,Community Lottery Holding Acc,D2003,Materials,,,,,,,,
GUILDFORD BOROUGH COUNCIL,Community Development,774460,Community Foundation For Surrey,28/10/2021,30032231,3120.32,0,Grants And Subscriptions,Community Partnerships,II,BACS,No,04/10/2021 00:00,2021,7,2109 (Matchfunding),F1127,Community Development,D9001,Grants And Subscriptions,CCF00,"Tourism Policy, Marketing & Development",CCF,Tourism,CC,Cultural & Related Services,C,"Cultural, Environmental & Planning Services"
GUILDFORD BOROUGH COUNCIL,SPA Sites,892900,Forest Tree Care Ltd,05/10/2021,30032233,650,0,Grounds Maintenance,Tree Work Contractors,II,BACS,No,03/09/2021 00:00,2021,7,1897,A1010,SPA Sites,B6001,Grounds Maintenance,CCE00,Community Parks & Open Spaces,CCE,Open Spaces,CC,Cultural & Related Services,C,"Cultural, Environmental & Planning Services"
GUILDFORD BOROUGH COUNCIL,Renovations,984970,The OT Practice Ltd,26/10/2021,30032235,350,0,Contractor Payments,,II,BACS,No,30/09/2021 00:00,2021,7,INV-030515,N40295,Disabled adaptations,1233,Contractor Payments,,,,,,,,
GUILDFORD BOROUGH COUNCIL,Street Cleansing,795800,CTG Enterprises Ltd,26/10/2021,30032236,1186.6,0,Services,Other Cleaning And Janitorial Service Providers,II,BACS,No,01/10/2021 00:00,2021,7,GUI828G,K4551,Street Cleansing,D6004,Services,CES00,Street Cleansing (not chargeable to highways),CES,Street Cleansing (not chargeable to highways),CE,Environmental & Regulatory Services,C,"Cultural, Environmental & Planning Services"
GUILDFORD BOROUGH COUNCIL,Community Lottery,949550,Gambling Commission,05/10/2021,30032237,692,0,Licences,,II,BACS,No,08/08/2021 00:00,2021,7,INV000835000,F1129,Guildford Community Lottery,D8001,Licences,CCF00,"Tourism Policy, Marketing & Development",CCF,Tourism,CC,Cultural & Related Services,C,"Cultural, Environmental & Planning Services"
GUILDFORD BOROUGH COUNCIL,Vehicle Maintenance,299800,Lister Wilder Ltd,26/10/2021,30032238,1583.76,0,Repair And Maintenance Of Vehicles,Emergency And Other Specialist Vehicle Dealers,II,BACS,No,30/09/2021 00:00,2021,7,511372,K5551,Fleet Workshops,C1002,Repair And Maintenance Of Vehicles,W3A48,Current Service Costs - Fleet Management,W3A,Current Service Costs adjustment,W3,Current Service Costs,W,Other Operating Income and Expenditure
GUILDFORD BOROUGH COUNCIL,Parks Countryside Management,892900,Forest Tree Care Ltd,05/10/2021,30032239,484,0,Grounds Maintenance,Tree Work Contractors,II,BACS,No,03/09/2021 00:00,2021,7,1898,A1300,Trees And Countryside,B6001,Grounds Maintenance,CCE00,Community Parks & Open Spaces,CCE,Open Spaces,CC,Cultural & Related Services,C,"Cultural, Environmental & Planning Services"
GUILDFORD BOROUGH COUNCIL,Strategic Support,1000456,Birketts LLP,04/11/2021,30032240,750,0,Services,,II,BACS,No,30/09/2021 00:00,2021,8,749717,M8121,Strategic Support (SHS),D6004,Services,XXX99,*** UNASSIGNED ***,WCC,CEC Recharges,WC,CEC Recharges,A,Central Services
GUILDFORD BOROUGH COUNCIL,Development Control,156250,Hays Specialist Recruitment Limited,26/10/2021,30032242,1330.5,0,Agency,Other Recruitment Agencies And Service Providers,II,BACS,No,01/10/2021 00:00,2021,7,1011661233,D5100,Development Control - Fee Earn,A5191,Agency,CPC00,Development Control Advice,CPC,Development Control,CP,Planning and Development Services,C,"Cultural, Environmental & Planning Services"
GUILDFORD BOROUGH COUNCIL,Grants,984970,The OT Practice Ltd,26/10/2021,30032243,865,0,Contractor Payments,,II,BACS,No,30/09/2021 00:00,2021,7,INV-030621,N51019,BCF Non Grant Expenditure,1233,Contractor Payments,XXX99,*** UNASSIGNED ***,WCC,CEC Recharges,WC,CEC Recharges,A,Central Services
GUILDFORD BOROUGH COUNCIL,Case Services,729420,Morgan Hunt UK Limited,12/10/2021,30032245,944.24,0,Agency,Other Recruitment Agencies And Service Providers,II,BACS,No,19/09/2021 00:00,2021,7,1244350,C6100,Case Services,A5191,Agency,DBX35,Finance (including Internal Audit),DBX,Support Service and Management Costs,DB,Children's Social Care,E,Childrens and Education Services
GUILDFORD BOROUGH COUNCIL,Supported Housing Management,690490,Town and Country Cleaners Ltd,26/10/2021,30032247,585,0,Cleaning Contractors,Commercial Cleaners,II,BACS,No,29/09/2021 00:00,2021,7,79729,M3690,Supported Hsg-General (SHS),D6006,Cleaning Contractors,XXX99,*** UNASSIGNED ***,WCC,CEC Recharges,WC,CEC Recharges,A,Central Services
GUILDFORD BOROUGH COUNCIL,Sheltered Housing,690490,Town and Country Cleaners Ltd,26/10/2021,30032247,8376,0,Cleaning Contractors,Commercial Cleaners,II,BACS,No,29/09/2021 00:00,2021,7,79729,M1515,Sheltered Accomodation,D6006,Cleaning Contractors,XXX99,*** UNASSIGNED ***,WCC,CEC Recharges,WC,CEC Recharges,A,Central Services
GUILDFORD BOROUGH COUNCIL,Car Leasing Holding Code (Service),856090,Car Hire (Day Of Swansea) Ltd,30/12/2021,30032248,292.5,0,Car Leasing,"Car, Van And Truck Hire Companies",II,BACS,No,01/10/2021 00:00,2021,7,INV00300475,G1131,Car Leasing Holding Code,C3002,Car Leasing,,,,,,,,
GUILDFORD BOROUGH COUNCIL,Renovations,984970,The OT Practice Ltd,26/10/2021,30032252,690,0,Contractor Payments,,II,BACS,No,30/09/2021 00:00,2021,7,INV-030450,N40295,Disabled adaptations,1233,Contractor Payments,,,,,,,,
GUILDFORD BOROUGH COUNCIL,Executive - Miscellaneous,992900,Pinsent Masons LLP,16/11/2021,30032254,5334.7,0,Consultants Fees,Other Legal Service Providers,II,BACS,No,29/09/2021 00:00,2021,8,6630800,P79104,Wuv - Thames Water Relocation,1221,Consultants Fees,,,,,,,,
GUILDFORD BOROUGH COUNCIL,Refuse and Recycling,830630,Craemer UK Ltd,26/10/2021,30032257,13556.4,0,Stock For Re-Sale,Other Plastic Goods Suppliers,II,BACS,No,01/10/2021 00:00,2021,7,3039007,K3551,Refuse - Domestic,D2004,Stock For Re-Sale,CEW40,Disposal of Waste,CEW,Waste Disposal,CE,Environmental & Regulatory Services,C,"Cultural, Environmental & Planning Services"
GUILDFORD BOROUGH COUNCIL,Vehicle Maintenance,299800,Lister Wilder Ltd,26/10/2021,30032258,1423.16,0,Repair And Maintenance Of Vehicles,Emergency And Other Specialist Vehicle Dealers,II,BACS,No,30/09/2021 00:00,2021,7,511375,K5551,Fleet Workshops,C1002,Repair And Maintenance Of Vehicles,W3A48,Current Service Costs - Fleet Management,W3A,Current Service Costs adjustment,W3,Current Service Costs,W,Other Operating Income and Expenditure
GUILDFORD BOROUGH COUNCIL,Inventories,759300,Certas Energy UK Limited,12/10/2021,30032259,19160.31,0,Purchases,Oil Fuel Suppliers,II,BACS,No,30/09/2021 00:00,2021,7,6257181,I01001,Stocks,2591,Purchases,,,,,,,,
GUILDFORD BOROUGH COUNCIL,Doors and Windows,1000455,Signature Home Improvements Limited,26/10/2021,30032261,32675.23,0,Contractor Payments,,II,BACS,No,01/10/2021 00:00,2021,7,1487,N45072,Replacement of windows 2020-21,1233,Contractor Payments,,,,,,,,
GUILDFORD BOROUGH COUNCIL,Case Services,729420,Morgan Hunt UK Limited,12/10/2021,30032262,535.92,0,Agency,Other Recruitment Agencies And Service Providers,II,BACS,No,15/08/2021 00:00,2021,7,1240608,C6100,Case Services,A5191,Agency,DBX35,Finance (including Internal Audit),DBX,Support Service and Management Costs,DB,Children's Social Care,E,Childrens and Education Services
GUILDFORD BOROUGH COUNCIL,Renovations,984970,The OT Practice Ltd,26/10/2021,30032263,1095,0,Contractor Payments,,II,BACS,No,30/09/2021 00:00,2021,7,INV-030452,N40295,Disabled adaptations,1233,Contractor Payments,,,,,,,,
GUILDFORD BOROUGH COUNCIL,Executive - Miscellaneous,992900,Pinsent Masons LLP,16/11/2021,30032264,3665.3,0,Consultants Fees,Other Legal Service Providers,II,BACS,No,29/09/2021 00:00,2021,8,6630808,P79104,Wuv - Thames Water Relocation,1221,Consultants Fees,,,,,,,,
GUILDFORD BOROUGH COUNCIL,Grants,984970,The OT Practice Ltd,26/10/2021,30032265,920,0,Contractor Payments,,II,BACS,No,30/09/2021 00:00,2021,7,INV-030449,N51019,BCF Non Grant Expenditure,1233,Contractor Payments,XXX99,*** UNASSIGNED ***,WCC,CEC Recharges,WC,CEC Recharges,A,Central Services
GUILDFORD BOROUGH COUNCIL,Property,979080,Haverly Consulting Ltd,26/10/2021,30032266,8640,0,Consultants Fees,,II,BACS,No,30/09/2021 00:00,2021,7,HC2057,P74040,Slyfield Area Regeneration Project,1221,Consultants Fees,XXX99,*** UNASSIGNED ***,WCC,CEC Recharges,WC,CEC Recharges,A,Central Services
GUILDFORD BOROUGH COUNCIL,IT Renewals,892850,Bolderwood Solutions Ltd,26/10/2021,30032267,4950,0,Contractor Payments,Computer Systems Integrators,II,BACS,No,30/09/2021 00:00,2021,7,GBC-0084,P81002,IT Renewals Reserve Funded General,1233,Contractor Payments,XXX99,*** UNASSIGNED ***,WCC,CEC Recharges,WC,CEC Recharges,A,Central Services
GUILDFORD BOROUGH COUNCIL,Vehicle Maintenance,320160,A & P Services (Surrey) Ltd,28/10/2021,30032268,597.01,0,Repair And Maintenance Of Vehicles,Agricultural Engineers,II,BACS,No,04/10/2021 00:00,2021,7,7036,K5551,Fleet Workshops,C1002,Repair And Maintenance Of Vehicles,W3A48,Current Service Costs - Fleet Management,W3A,Current Service Costs adjustment,W3,Current Service Costs,W,Other Operating Income and Expenditure
GUILDFORD BOROUGH COUNCIL,Parks Countryside Management,892900,Forest Tree Care Ltd,07/10/2021,30032269,1400,0,Grounds Maintenance,Tree Work Contractors,II,BACS,No,17/09/2021 00:00,2021,7,1909,A1300,Trees And Countryside,B6001,Grounds Maintenance,CCE00,Community Parks & Open Spaces,CCE,Open Spaces,CC,Cultural & Related Services,C,"Cultural, Environmental & Planning Services"
GUILDFORD BOROUGH COUNCIL,Planning Policy,1000500,Ethos Environmental Planning Ltd,26/10/2021,30032271,2000,0,Consultancy,,II,BACS,No,30/09/2021 00:00,2021,7,ETH-002359,D5301,Neigbourhood Plans,D6001,Consultancy,CPD10,Local Development Framework inc Supplementary Planning Guidance,CPD,Planning Policy,CP,Planning and Development Services,C,"Cultural, Environmental & Planning Services"
GUILDFORD BOROUGH COUNCIL,Property,992900,Pinsent Masons LLP,16/11/2021,30032272,2648.6,0,Consultants Fees,Other Legal Service Providers,II,BACS,No,29/09/2021 00:00,2021,8,6631106,P74040,Slyfield Area Regeneration Project,1221,Consultants Fees,XXX99,*** UNASSIGNED ***,WCC,CEC Recharges,WC,CEC Recharges,A,Central Services
GUILDFORD BOROUGH COUNCIL,Grants,984970,The OT Practice Ltd,26/10/2021,30032273,2650,0,Contractor Payments,,II,BACS,No,30/09/2021 00:00,2021,7,INV-030451,N51019,BCF Non Grant Expenditure,1233,Contractor Payments,XXX99,*** UNASSIGNED ***,WCC,CEC Recharges,WC,CEC Recharges,A,Central Services
GUILDFORD BOROUGH COUNCIL,Off Street Parking,235000,Hako Machines Limited,26/10/2021,30032274,2125.77,0,Equipment,Cleaning And Janitorial Equipment And Supplies Providers,II,BACS,No,01/10/2021 00:00,2021,7,9002117760,B2216,General Upkeep- Urban Car Pks,D2001,Equipment,HTP10,Off-Street Parking,HTP,Parking Services,HT,"Highways, Roads and Transport Services",H,"Highways, Roads and Transport Services"
GUILDFORD BOROUGH COUNCIL,Property,974700,John Thompson & Partners LLP,26/10/2021,30032275,20305,0,Consultants Fees,,II,BACS,No,30/09/2021 00:00,2021,7,S2185-3,P74040,Slyfield Area Regeneration Project,1221,Consultants Fees,XXX99,*** UNASSIGNED ***,WCC,CEC Recharges,WC,CEC Recharges,A,Central Services
GUILDFORD BOROUGH COUNCIL,Homelessness Support,847120,Project 114 Ltd,28/10/2021,30032276,1260,0,Emergency Accomodation,Property Letting And Estate Agents,II,BACS,No,04/10/2021 00:00,2021,7,3286,C3311,Homelessness,D8009,Emergency Accomodation,KGU00,Supporting People - Strategy,KGU,Supporting People,KG,Housing General Fund,K,Housing Services
GUILDFORD BOROUGH COUNCIL,Off Street Parking,953400,Bemrose Booth Paragon Ltd,12/10/2021,30032277,4380,0,"Printing, Photocopying And Reprographics External",Printing Service Providers,II,BACS,No,23/08/2021 00:00,2021,7,495969,B2216,General Upkeep- Urban Car Pks,D5005,"Printing, Photocopying And Reprographics External",HTP10,Off-Street Parking,HTP,Parking Services,HT,"Highways, Roads and Transport Services",H,"Highways, Roads and Transport Services"
GUILDFORD BOROUGH COUNCIL,Corporate Services,674100,Penna Plc,26/10/2021,30032278,2780,0,Vacancy And Interview Costs,Human Resources Consultants,II,BACS,No,30/09/2021 00:00,2021,7,639824,F1111,Corporate Services,A7120,Vacancy And Interview Costs,DBX70,Other Management Costs,DBX,Support Service and Management Costs,DB,Children's Social Care,E,Childrens and Education Services
GUILDFORD BOROUGH COUNCIL,Major Projects,1000077,3R Finance Ltd,28/10/2021,30032279,990,0,Agency Staff,,II,BACS,No,04/10/2021 00:00,2021,7,INV-51983,F5530,Major Projects,1222,Agency Staff,DBX70,Other Management Costs,DBX,Support Service and Management Costs,DB,Children's Social Care,E,Childrens and Education Services
GUILDFORD BOROUGH COUNCIL,Vehicle Maintenance,299800,Lister Wilder Ltd,26/10/2021,30032282,1272.26,0,Repair And Maintenance Of Vehicles,Emergency And Other Specialist Vehicle Dealers,II,BACS,No,30/09/2021 00:00,2021,7,511373,K5551,Fleet Workshops,C1002,Repair And Maintenance Of Vehicles,W3A48,Current Service Costs - Fleet Management,W3A,Current Service Costs adjustment,W3,Current Service Costs,W,Other Operating Income and Expenditure
GUILDFORD BOROUGH COUNCIL,Miscellaneous Expenses,1000542,Outspoken Cycles Ltd,21/10/2021,30032283,1084,0,Events,,II,BACS,No,28/09/2021 00:00,2021,7,INV-21789,F7539,COVID-19,D8006,Events,,,,,,,,
GUILDFORD BOROUGH COUNCIL,Executive - Miscellaneous,1000207,Neptunus Ltd,05/10/2021,30032346,89286.25,0,Contractor Payments,,II,BACS,No,31/08/2021 00:00,2021,7,525Ci161901,P79100,Wuv - Allotment Relocation,1233,Contractor Payments,,,,,,,,
GUILDFORD BOROUGH COUNCIL,Other Short Term Creditors,356760,Crowzon Builders Ltd,21/10/2021,30032350,1607.1,0,Payments,General Builders,II,BACS,No,28/09/2021 00:00,2021,7,12973,L02088,Care & Repair Client Fund,2489,Payments,,,,,,,,
GUILDFORD BOROUGH COUNCIL,Property,766060,AGB Contractors Limited,14/10/2021,30032351,566,0,Contractor Payments,General Builders,II,BACS,No,27/09/2021 00:00,2021,7,210927,P74064,The Billings Roof,1233,Contractor Payments,,,,,,,,
GUILDFORD BOROUGH COUNCIL,Property,766060,AGB Contractors Limited,14/10/2021,30032351,1680,0,Contractor Payments,General Builders,II,BACS,No,27/09/2021 00:00,2021,7,210927,P74064,The Billings Roof,1233,Contractor Payments,,,,,,,,
GUILDFORD BOROUGH COUNCIL,Off Street Parking,202390,Brand Pest Control,28/10/2021,30032352,295,0,Cleaning Contractors,Pest And Vermin Control Service Providers,II,BACS,No,04/10/2021 00:00,2021,7,2343,B2216,General Upkeep- Urban Car Pks,D6006,Cleaning Contractors,HTP10,Off-Street Parking,HTP,Parking Services,HT,"Highways, Roads and Transport Services",H,"Highways, Roads and Transport Services"
GUILDFORD BOROUGH COUNCIL,IT Renewals,1000035,Gravitas Recruitment Group,12/10/2021,30032353,9075,0,Miscellaneous Expenses,,II,BACS,No,04/10/2021 00:00,2021,7,INV171956,P81002,IT Renewals Reserve Funded General,1444,Miscellaneous Expenses,XXX99,*** UNASSIGNED ***,WCC,CEC Recharges,WC,CEC Recharges,A,Central Services
GUILDFORD BOROUGH COUNCIL,Leisure Grants to Voluntary Organisations,964600,Yvonne Arnaud Theatre Management Ltd,26/10/2021,30032354,77555,0,Grants And Subscriptions,Theatres,II,BACS,No,01/10/2021 00:00,2021,7,YA22/051,A4111,Grants Administration,D9001,Grants And Subscriptions,AAM00,Corporate Management,AAM,Corporate Management,AA,Corporate & Democratic Core,A,Central Services
GUILDFORD BOROUGH COUNCIL,Other Short Term Creditors,971670,My Staff Shop Limited,12/10/2021,30032355,1927,0,Payments,Other Business Service Providers,II,BACS,No,04/10/2021 00:00,2021,7,INV-6515,L08013,Sals Dedns - Childcare Voucher,2489,Payments,,,,,,,,
GUILDFORD BOROUGH COUNCIL,Tourism & Development,244020,Broadlands Builders Ltd (CIS),12/10/2021,30032356,3175,0,GF Assets - Maintenance,Non-Residential Main Building Contractors,II,BACS,No,29/09/2021 00:00,2021,7,257989,F5525,Economic Development,B1004,GF Assets - Maintenance,CCF00,"Tourism Policy, Marketing & Development",CCF,Tourism,CC,Cultural & Related Services,C,"Cultural, Environmental & Planning Services"
GUILDFORD BOROUGH COUNCIL,Building Maintenance,127500,Chambers Waste Management Plc,19/10/2021,30032358,1498.37,0,Materials,Other Waste Disposal Suppliers,II,BACS,No,26/09/2021 00:00,2021,7,P506297,K1515,Building Maintenance,D2003,Materials,DBX45,Property Services,DBX,Support Service and Management Costs,DB,Children's Social Care,E,Childrens and Education Services
GUILDFORD BOROUGH COUNCIL,Planning Policy,188030,Aecom Infrastructure & Environment UK Ltd,26/10/2021,30032360,2167,0,Consultancy,Construction Project Management Consultants,II,BACS,No,01/10/2021 00:00,2021,7,28473047,D5400,Local Plan,D6001,Consultancy,CPD10,Local Development Framework inc Supplementary Planning Guidance,CPD,Planning Policy,CP,Planning and Development Services,C,"Cultural, Environmental & Planning Services"
GUILDFORD BOROUGH COUNCIL,Industrial Estates,933760,Ant Structures Ltd,26/10/2021,30032363,664,0,Contractor Payments,Scaffolders,II,BACS,No,30/09/2021 00:00,2021,7,923,P72045,Strategic Property Acquisitions,1233,Contractor Payments,,,,,,,,
GUILDFORD BOROUGH COUNCIL,Resources Caseworker,878030,Royal Mail Group Ltd (Chesterfield),21/10/2021,30032366,419.47,0,Postage,,II,BACS,No,27/09/2021 00:00,2021,7,9063693480,G4545,Reprographics,D5003,Postage,DBX70,Other Management Costs,DBX,Support Service and Management Costs,DB,Children's Social Care,E,Childrens and Education Services
GUILDFORD BOROUGH COUNCIL,On Street Parking,878030,Royal Mail Group Ltd (Chesterfield),21/10/2021,30032366,3896.47,0,Postage,,II,BACS,No,27/09/2021 00:00,2021,7,9063693480,B2217,Guildford On-Street,D5003,Postage,HTP00,On-Street Parking,HTP,Parking Services,HT,"Highways, Roads and Transport Services",H,"Highways, Roads and Transport Services"
GUILDFORD BOROUGH COUNCIL,Renovations,870700,Architectural Survey Services Ltd,28/10/2021,30032368,1000,0,Contractor Payments,Architects And Design Consultants,II,BACS,No,04/10/2021 00:00,2021,7,745,N40295,Disabled adaptations,1233,Contractor Payments,,,,,,,,
GUILDFORD BOROUGH COUNCIL,Off Street Parking,757270,Hub Parking Technology,26/10/2021,30032369,567.1,0,Asset Maintenance,Parking Management Providers,II,BACS,No,30/09/2021 00:00,2021,7,SIN367954,B2291,York Road Mscp,B1001,Asset Maintenance,HTP10,Off-Street Parking,HTP,Parking Services,HT,"Highways, Roads and Transport Services",H,"Highways, Roads and Transport Services"
GUILDFORD BOROUGH COUNCIL,Woking Road Depot,1000119,Professional Construction Recruitment Limited,21/10/2021,30032371,326.25,0,Services,,II,BACS,No,28/09/2021 00:00,2021,7,140886,B4452,Woking Road Depot,D6004,Services,W3A48,Current Service Costs - Fleet Management,W3A,Current Service Costs adjustment,W3,Current Service Costs,W,Other Operating Income and Expenditure
GUILDFORD BOROUGH COUNCIL,Building Maintenance,969700,A Star Maintenance Contractors Ltd (CIS),12/10/2021,30032372,8325.25,0,Services,Property Maintenance Contractors,II,BACS,No,23/09/2021 00:00,2021,7,14045,K1515,Building Maintenance,D6004,Services,DBX45,Property Services,DBX,Support Service and Management Costs,DB,Children's Social Care,E,Childrens and Education Services
GUILDFORD BOROUGH COUNCIL,Building Control,877460,JJ Surveying Ltd,28/10/2021,30032373,550,0,Consultancy,Surveyors And Inspectors,II,BACS,No,04/10/2021 00:00,2021,7,1383,D5700,Building Control - Fee,D6001,Consultancy,CPB00,Building Regulations,CPB,Building Control,CP,Planning and Development Services,C,"Cultural, Environmental & Planning Services"
GUILDFORD BOROUGH COUNCIL,Corporate Property Management,291600,Lambert Smith Hampton Group Limited,21/10/2021,30032374,5485,0,Valuers Fees,Outsourced Building Management Service Providers,II,BACS,No,27/09/2021 00:00,2021,7,ARINV/00472284,G4575,Asset Management,D6002,Valuers Fees,DBX45,Property Services,DBX,Support Service and Management Costs,DB,Children's Social Care,E,Childrens and Education Services
GUILDFORD BOROUGH COUNCIL,Countryside and Parks Services,320160,A & P Services (Surrey) Ltd,28/10/2021,30032375,728.62,0,Repair And Maintenance Of Vehicles,Agricultural Engineers,II,BACS,No,04/10/2021 00:00,2021,7,7038,A1100,Horticulture,C1002,Repair And Maintenance Of Vehicles,CCE00,Community Parks & Open Spaces,CCE,Open Spaces,CC,Cultural & Related Services,C,"Cultural, Environmental & Planning Services"
GUILDFORD BOROUGH COUNCIL,Tenant Selection,372840,HML Independent Medical Advice Ltd,26/10/2021,30032376,332.37,0,Services,Other Medical Professionals,II,BACS,No,30/09/2021 00:00,2021,7,GU/3986/21,M1131,"Advice,Regs,Tenant Select(SHS)",D6004,Services,XXX99,*** UNASSIGNED ***,WCC,CEC Recharges,WC,CEC Recharges,A,Central Services
GUILDFORD BOROUGH COUNCIL,Millmead House,817300,Berendsen Workwear Ltd T/A Elis,26/10/2021,30032377,428.77,0,Services,Linen And Blanket Suppliers,II,BACS,No,01/10/2021 00:00,2021,7,SN3421446,G7511,Millmead House,D6004,Services,DBX70,Other Management Costs,DBX,Support Service and Management Costs,DB,Children's Social Care,E,Childrens and Education Services
GUILDFORD BOROUGH COUNCIL,Bid Revenue Account,755160,Elevate Guildford Ltd,12/10/2021,30032378,167000,0,Payments To Elevate Guildford,Other Travel And Tourism Service Providers,II,BACS,No,17/09/2021 00:00,2021,7,EG0079,R5501,Bid Revenue Account,P1415,Payments To Elevate Guildford,,,,,,,,
GUILDFORD BOROUGH COUNCIL,Renovations,1000518,Liquid Recruit Solutions Limited,12/10/2021,30032379,1925,0,Contractor Payments,,II,BACS,No,01/09/2021 00:00,2021,7,10434,N40292,Fire protection works,1233,Contractor Payments,,,,,,,,
GUILDFORD BOROUGH COUNCIL,Renovations,1000518,Liquid Recruit Solutions Limited,12/10/2021,30032381,1925,0,Contractor Payments,,II,BACS,No,25/08/2021 00:00,2021,7,10413,N40292,Fire protection works,1233,Contractor Payments,,,,,,,,
GUILDFORD BOROUGH COUNCIL,Tourism & Development,236200,Hampshire County Council,26/10/2021,30032382,20000,0,Grants And Subscriptions,Local Government [Uk Only],II,BACS,No,29/09/2021 00:00,2021,7,3611403120,F5545,Tourism,D9001,Grants And Subscriptions,CCF00,"Tourism Policy, Marketing & Development",CCF,Tourism,CC,Cultural & Related Services,C,"Cultural, Environmental & Planning Services"
GUILDFORD BOROUGH COUNCIL,Millmead House,817300,Berendsen Workwear Ltd T/A Elis,26/10/2021,30032383,401.65,0,Services,Linen And Blanket Suppliers,II,BACS,No,01/10/2021 00:00,2021,7,SN3420722,G7511,Millmead House,D6004,Services,DBX70,Other Management Costs,DBX,Support Service and Management Costs,DB,Children's Social Care,E,Childrens and Education Services
GUILDFORD BOROUGH COUNCIL,Property,171920,Thames Water Utilities Ltd,07/10/2021,30032386,97044,0,Miscellaneous Expenses,Mains Water Suppliers,II,BACS,No,06/10/2021 00:00,2021,7,DS reference DS6080880,P74040,Slyfield Area Regeneration Project,1444,Miscellaneous Expenses,XXX99,*** UNASSIGNED ***,WCC,CEC Recharges,WC,CEC Recharges,A,Central Services
GUILDFORD BOROUGH COUNCIL,Property,171920,Thames Water Utilities Ltd,07/10/2021,30032388,64704,0,Miscellaneous Expenses,Mains Water Suppliers,II,BACS,No,06/10/2021 00:00,2021,7,DS reference DS2015291,P74040,Slyfield Area Regeneration Project,1444,Miscellaneous Expenses,XXX99,*** UNASSIGNED ***,WCC,CEC Recharges,WC,CEC Recharges,A,Central Services
GUILDFORD BOROUGH COUNCIL,Grants,929000,Bentley Mobility Services Limited,12/10/2021,30032400,4275,0,Grants To Private Owners,Mobility Disability Equipment Suppliers,II,BACS,No,17/06/2021 00:00,2021,7,27905,N51019,BCF Non Grant Expenditure,1311,Grants To Private Owners,XXX99,*** UNASSIGNED ***,WCC,CEC Recharges,WC,CEC Recharges,A,Central Services
GUILDFORD BOROUGH COUNCIL,Executive - Miscellaneous,992900,Pinsent Masons LLP,26/10/2021,30032401,1959.3,0,Legal Expenses,Other Legal Service Providers,II,BACS,No,30/09/2021 00:00,2021,7,6631983,P79037,Ash Road Bridge,1395,Legal Expenses,XXX99,*** UNASSIGNED ***,WCC,CEC Recharges,WC,CEC Recharges,A,Central Services
GUILDFORD BOROUGH COUNCIL,Inventories,510200,M E Duffell Ltd,14/10/2021,30032404,1260.13,0,Purchases,Keys And Locksmiths,II,BACS,No,20/09/2021 00:00,2021,7,I2294974,I01001,Stocks,2591,Purchases,,,,,,,,
GUILDFORD BOROUGH COUNCIL,Countryside and Parks Services,714600,Rigby Taylor Limited,28/10/2021,30032405,996,0,Materials,Gardening Equipment Suppliers,II,BACS,No,04/10/2021 00:00,2021,7,RSIN0391066,A1100,Horticulture,D2003,Materials,CCE00,Community Parks & Open Spaces,CCE,Open Spaces,CC,Cultural & Related Services,C,"Cultural, Environmental & Planning Services"
GUILDFORD BOROUGH COUNCIL,Private Sector Housing Maintenance,938540,BJC Design (Southeast) Ltd,12/10/2021,30032406,599.01,0,Contractors,Surveyors And Inspectors,II,BACS,No,04/09/2021 00:00,2021,7,716,C5132,Care And Repair (Detr),D6012,Contractors,KGU00,Supporting People - Strategy,KGU,Supporting People,KG,Housing General Fund,K,Housing Services
GUILDFORD BOROUGH COUNCIL,Executive - Miscellaneous,992900,Pinsent Masons LLP,26/10/2021,30032407,6236.2,0,Legal Expenses,Other Legal Service Providers,II,BACS,No,29/09/2021 00:00,2021,7,6630881,P79037,Ash Road Bridge,1395,Legal Expenses,XXX99,*** UNASSIGNED ***,WCC,CEC Recharges,WC,CEC Recharges,A,Central Services
GUILDFORD BOROUGH COUNCIL,Inventories,220400,UK Plumbing Supplies T/AS Graham the Plumbers Merchant,12/10/2021,30032408,329.91,0,Purchases,"Plumbing, Heating And Ac (Hvac) Equipment Suppliers",II,BACS,No,19/09/2021 00:00,2021,7,0357/00794180,I01001,Stocks,2591,Purchases,,,,,,,,
GUILDFORD BOROUGH COUNCIL,Homelessness Support,1000383,London Croydon Ltd,26/10/2021,30032412,2100,0,Emergency Accomodation,,II,BACS,No,30/09/2021 00:00,2021,7,IBC178,C3311,Homelessness,D8009,Emergency Accomodation,KGU00,Supporting People - Strategy,KGU,Supporting People,KG,Housing General Fund,K,Housing Services
GUILDFORD BOROUGH COUNCIL,Inventories,271200,Saint-Gobain Building Distribution Limited (Jewson),07/10/2021,30032417,478.6,0,Purchases,Builders Merchants,II,BACS,No,06/09/2021 00:00,2021,7,0652/00110165,I01001,Stocks,2591,Purchases,,,,,,,,
GUILDFORD BOROUGH COUNCIL,Inventories,271200,Saint-Gobain Building Distribution Limited (Jewson),12/10/2021,30032418,909.66,0,Purchases,Builders Merchants,II,BACS,No,06/09/2021 00:00,2021,7,0652/00110164,I01001,Stocks,2591,Purchases,,,,,,,,
GUILDFORD BOROUGH COUNCIL,Crematorium,974800,Contract Cleaning & Facilities Ltd,26/10/2021,30032419,650,0,Cleaning Contractors,Commercial Cleaners,II,BACS,No,30/09/2021 00:00,2021,7,62146,A1500,Crematorium,D6006,Cleaning Contractors,CEA10,Crematoria,CEA,"Cemetery, Cremation and Mortuary Services",CE,Environmental & Regulatory Services,C,"Cultural, Environmental & Planning Services"
GUILDFORD BOROUGH COUNCIL,Inventories,178400,Akw Medi-Care Limited,19/10/2021,30032420,277.31,0,Purchases,Mobility Disability Equipment Suppliers,II,BACS,No,24/09/2021 00:00,2021,7,1968846,I01001,Stocks,2591,Purchases,,,,,,,,
GUILDFORD BOROUGH COUNCIL,Inventories,271200,Saint-Gobain Building Distribution Limited (Jewson),07/10/2021,30032421,549.54,0,Purchases,Builders Merchants,II,BACS,No,03/09/2021 00:00,2021,7,0652/00110097,I01001,Stocks,2591,Purchases,,,,,,,,
GUILDFORD BOROUGH COUNCIL,Countryside and Parks Services,885990,Freeths LLP (London),21/10/2021,30032423,487.5,0,Services,Other Legal Service Providers,II,BACS,No,27/09/2021 00:00,2021,7,266233,A1250,Stoke Park,D6004,Services,CCE00,Community Parks & Open Spaces,CCE,Open Spaces,CC,Cultural & Related Services,C,"Cultural, Environmental & Planning Services"
GUILDFORD BOROUGH COUNCIL,Inventories,271200,Saint-Gobain Building Distribution Limited (Jewson),12/10/2021,30032424,362.69,0,Purchases,Builders Merchants,II,BACS,No,16/09/2021 00:00,2021,7,0652/00110773,I01001,Stocks,2591,Purchases,,,,,,,,
GUILDFORD BOROUGH COUNCIL,Customer Services,706600,Rapid Office Systems Limited,26/10/2021,30032425,1056,0,ICT Hardware And Consumables,Interior Designers,II,BACS,No,30/09/2021 00:00,2021,7,104217,G3544,Customer Service Centre,D7001,ICT Hardware And Consumables,DBX70,Other Management Costs,DBX,Support Service and Management Costs,DB,Children's Social Care,E,Childrens and Education Services
GUILDFORD BOROUGH COUNCIL,Vehicle Maintenance,928730,HTS Spares Limited,26/10/2021,30032427,639.64,0,Repair And Maintenance Of Vehicles,Machinery And Engineering Parts Suppliers,II,BACS,No,30/09/2021 00:00,2021,7,3580,K5551,Fleet Workshops,C1002,Repair And Maintenance Of Vehicles,W3A48,Current Service Costs - Fleet Management,W3A,Current Service Costs adjustment,W3,Current Service Costs,W,Other Operating Income and Expenditure
GUILDFORD BOROUGH COUNCIL,Inventories,271200,Saint-Gobain Building Distribution Limited (Jewson),07/10/2021,30032428,852.14,0,Purchases,Builders Merchants,II,BACS,No,03/09/2021 00:00,2021,7,0652/00110100,I01001,Stocks,2591,Purchases,,,,,,,,
GUILDFORD BOROUGH COUNCIL,Executive - Miscellaneous,992900,Pinsent Masons LLP,26/10/2021,30032429,743.4,0,Legal Expenses,Other Legal Service Providers,II,BACS,No,29/09/2021 00:00,2021,7,6630839,P79037,Ash Road Bridge,1395,Legal Expenses,XXX99,*** UNASSIGNED ***,WCC,CEC Recharges,WC,CEC Recharges,A,Central Services
GUILDFORD BOROUGH COUNCIL,Inventories,271200,Saint-Gobain Building Distribution Limited (Jewson),07/10/2021,30032430,340.7,0,Purchases,Builders Merchants,II,BACS,No,07/09/2021 00:00,2021,7,0652/00110280,I01001,Stocks,2591,Purchases,,,,,,,,
GUILDFORD BOROUGH COUNCIL,Inventories,271200,Saint-Gobain Building Distribution Limited (Jewson),07/10/2021,30032432,450.74,0,Purchases,Builders Merchants,II,BACS,No,07/09/2021 00:00,2021,7,0652/00110250,I01001,Stocks,2591,Purchases,,,,,,,,
GUILDFORD BOROUGH COUNCIL,Electoral Registration,673000,Print For Business Ltd,26/10/2021,30032434,14407.2,0,"Printing, Photocopying And Reprographics External",Printing Service Providers,II,BACS,No,30/09/2021 00:00,2021,7,72170,F2511,Electoral Registration,D5005,"Printing, Photocopying And Reprographics External",ACE00,Registration of Electors,ACE,Elections,AC,Central Services to the Public,A,Central Services
GUILDFORD BOROUGH COUNCIL,Lead Specialist - ICT,410440,Hershey Systems,28/10/2021,30032437,300,0,ICT Software,Software Developers,II,BACS,No,05/10/2021 00:00,2021,7,569/2021,G3548,ICT Technical & Infrastructure,D7002,ICT Software,DBX70,Other Management Costs,DBX,Support Service and Management Costs,DB,Children's Social Care,E,Childrens and Education Services
GUILDFORD BOROUGH COUNCIL,Private Sector Housing Maintenance,938540,BJC Design (Southeast) Ltd,12/10/2021,30032438,742.2,0,Contractors,Surveyors And Inspectors,II,BACS,No,07/09/2021 00:00,2021,7,INV000720,C5132,Care And Repair (Detr),D6012,Contractors,KGU00,Supporting People - Strategy,KGU,Supporting People,KG,Housing General Fund,K,Housing Services
GUILDFORD BOROUGH COUNCIL,Woking Road Depot,192880,Siemens Financial Services Limited,28/10/2021,30032440,1105,0,Hire,Other Leasing Companies,II,BACS,No,05/10/2021 00:00,2021,7,244/22/0002484,B4452,Woking Road Depot,D1001,Hire,W3A48,Current Service Costs - Fleet Management,W3A,Current Service Costs adjustment,W3,Current Service Costs,W,Other Operating Income and Expenditure
GUILDFORD BOROUGH COUNCIL,Inventories,271200,Saint-Gobain Building Distribution Limited (Jewson),07/10/2021,30032442,538.2,0,Purchases,Builders Merchants,II,BACS,No,09/09/2021 00:00,2021,7,0652/00110408,I01001,Stocks,2591,Purchases,,,,,,,,
GUILDFORD BOROUGH COUNCIL,Homelessness Support,1000383,London Croydon Ltd,26/10/2021,30032447,1350,0,Emergency Accomodation,,II,BACS,No,30/09/2021 00:00,2021,7,IBC179,C3311,Homelessness,D8009,Emergency Accomodation,KGU00,Supporting People - Strategy,KGU,Supporting People,KG,Housing General Fund,K,Housing Services
GUILDFORD BOROUGH COUNCIL,Executive - Miscellaneous,992900,Pinsent Masons LLP,26/10/2021,30032448,2753.1,0,Legal Expenses,Other Legal Service Providers,II,BACS,No,30/09/2021 00:00,2021,7,6631945,P79037,Ash Road Bridge,1395,Legal Expenses,XXX99,*** UNASSIGNED ***,WCC,CEC Recharges,WC,CEC Recharges,A,Central Services
GUILDFORD BOROUGH COUNCIL,IT Renewals,975830,Systems Accountants Limited,28/10/2021,30032453,9810,0,Agency Staff,,II,BACS,No,05/10/2021 00:00,2021,7,SAUK14770,P81002,IT Renewals Reserve Funded General,1222,Agency Staff,XXX99,*** UNASSIGNED ***,WCC,CEC Recharges,WC,CEC Recharges,A,Central Services
GUILDFORD BOROUGH COUNCIL,Homelessness Support,1000383,London Croydon Ltd,26/10/2021,30032455,765,0,Emergency Accomodation,,II,BACS,No,30/09/2021 00:00,2021,7,IBC181,C3311,Homelessness,D8009,Emergency Accomodation,KGU00,Supporting People - Strategy,KGU,Supporting People,KG,Housing General Fund,K,Housing Services
GUILDFORD BOROUGH COUNCIL,Private Sector Housing Maintenance,938540,BJC Design (Southeast) Ltd,12/10/2021,30032456,640.25,0,Contractors,Surveyors And Inspectors,II,BACS,No,07/09/2021 00:00,2021,7,719,C5132,Care And Repair (Detr),D6012,Contractors,KGU00,Supporting People - Strategy,KGU,Supporting People,KG,Housing General Fund,K,Housing Services
GUILDFORD BOROUGH COUNCIL,Building Control,877460,JJ Surveying Ltd,28/10/2021,30032459,394.87,0,Consultancy,Surveyors And Inspectors,II,BACS,No,04/10/2021 00:00,2021,7,1384,D5700,Building Control - Fee,D6001,Consultancy,CPB00,Building Regulations,CPB,Building Control,CP,Planning and Development Services,C,"Cultural, Environmental & Planning Services"
GUILDFORD BOROUGH COUNCIL,Day Services,908000,Beeline Taxis,26/10/2021,30032460,909.92,0,Expenses,Taxis And Private Hire Companies,II,BACS,No,30/09/2021 00:00,2021,7,127,C8100,Community Hubs,D8004,Expenses,KGU00,Supporting People - Strategy,KGU,Supporting People,KG,Housing General Fund,K,Housing Services
GUILDFORD BOROUGH COUNCIL,Inventories,178400,Akw Medi-Care Limited,21/10/2021,30032461,330.68,0,Purchases,Mobility Disability Equipment Suppliers,II,BACS,No,28/09/2021 00:00,2021,7,1969509,I01001,Stocks,2591,Purchases,,,,,,,,
GUILDFORD BOROUGH COUNCIL,Street Cleansing,868300,Wybone Limited,28/10/2021,30032462,1500,0,Equipment,Other Construction Materials Suppliers,II,BACS,No,04/10/2021 00:00,2021,7,34971,K4551,Street Cleansing,D2001,Equipment,CES00,Street Cleansing (not chargeable to highways),CES,Street Cleansing (not chargeable to highways),CE,Environmental & Regulatory Services,C,"Cultural, Environmental & Planning Services"
GUILDFORD BOROUGH COUNCIL,Corporate Property Management,892850,Bolderwood Solutions Ltd,26/10/2021,30032468,5691.25,0,Consultancy,Computer Systems Integrators,II,BACS,No,30/09/2021 00:00,2021,7,GBC-0085,G4575,Asset Management,D6001,Consultancy,DBX45,Property Services,DBX,Support Service and Management Costs,DB,Children's Social Care,E,Childrens and Education Services
GUILDFORD BOROUGH COUNCIL,Telephony Holding Account (Service),853640,EE Limited (Airtime Payments),26/10/2021,30032470,8020.13,0,Telephones & Broadband,Mobile Communications Service Providers,II,BACS,No,03/10/2021 00:00,2021,7,1287289752,G1151,Telephony Holding Account,D7004,Telephones & Broadband,,,,,,,,
GUILDFORD BOROUGH COUNCIL,Vehicle Maintenance,145000,Connections UK,26/10/2021,30032471,285.35,0,Repair And Maintenance Of Vehicles,Event Management Agencies,II,BACS,No,01/10/2021 00:00,2021,7,3972,K5551,Fleet Workshops,C1002,Repair And Maintenance Of Vehicles,W3A48,Current Service Costs - Fleet Management,W3A,Current Service Costs adjustment,W3,Current Service Costs,W,Other Operating Income and Expenditure
GUILDFORD BOROUGH COUNCIL,Homelessness Support,1000383,London Croydon Ltd,26/10/2021,30032472,1050,0,Emergency Accomodation,,II,BACS,No,30/09/2021 00:00,2021,7,IBC177,C3311,Homelessness,D8009,Emergency Accomodation,KGU00,Supporting People - Strategy,KGU,Supporting People,KG,Housing General Fund,K,Housing Services
GUILDFORD BOROUGH COUNCIL,Building Maintenance,921860,Cinnamon Construction Limited (CIS),12/10/2021,30032474,4373.5,0,Services,General Builders,II,BACS,No,04/10/2021 00:00,2021,7,76,K1515,Building Maintenance,D6004,Services,DBX45,Property Services,DBX,Support Service and Management Costs,DB,Children's Social Care,E,Childrens and Education Services
GUILDFORD BOROUGH COUNCIL,Industrial Estates,1000269,DAVITT JONES BOULD LIMITED,26/10/2021,30032475,371.8,0,Services,,II,BACS,No,29/09/2021 00:00,2021,7,100557,B5341,Midleton Industrial Estate,D6004,Services,CPJ00,Market Undertakings,CPJ,Economic Development,CP,Planning and Development Services,C,"Cultural, Environmental & Planning Services"
GUILDFORD BOROUGH COUNCIL,Electoral Registration,673000,Print For Business Ltd,26/10/2021,30032476,2011.53,0,Postage,Printing Service Providers,II,BACS,No,30/09/2021 00:00,2021,7,72169,F2511,Electoral Registration,D5003,Postage,ACE00,Registration of Electors,ACE,Elections,AC,Central Services to the Public,A,Central Services
GUILDFORD BOROUGH COUNCIL,Vehicle Maintenance,145000,Connections UK,12/10/2021,30032477,369.3,0,Repair And Maintenance Of Vehicles,Event Management Agencies,II,BACS,No,01/06/2021 00:00,2021,7,3971,K5551,Fleet Workshops,C1002,Repair And Maintenance Of Vehicles,W3A48,Current Service Costs - Fleet Management,W3A,Current Service Costs adjustment,W3,Current Service Costs,W,Other Operating Income and Expenditure
GUILDFORD BOROUGH COUNCIL,Executive - Miscellaneous,992900,Pinsent Masons LLP,26/10/2021,30032480,4885.5,0,Legal Expenses,Other Legal Service Providers,II,BACS,No,30/09/2021 00:00,2021,7,6631918,P79037,Ash Road Bridge,1395,Legal Expenses,XXX99,*** UNASSIGNED ***,WCC,CEC Recharges,WC,CEC Recharges,A,Central Services
GUILDFORD BOROUGH COUNCIL,Woking Road Depot,891110,Connect Vending Limited,28/10/2021,30032481,279.92,0,Catering,,II,BACS,No,05/10/2021 00:00,2021,7,2003380,B4452,Woking Road Depot,D3001,Catering,W3A48,Current Service Costs - Fleet Management,W3A,Current Service Costs adjustment,W3,Current Service Costs,W,Other Operating Income and Expenditure
GUILDFORD BOROUGH COUNCIL,Inventories,271200,Saint-Gobain Building Distribution Limited (Jewson),07/10/2021,30032483,791.55,0,Purchases,Builders Merchants,II,BACS,No,02/09/2021 00:00,2021,7,0652/00110018,I01001,Stocks,2591,Purchases,,,,,,,,
GUILDFORD BOROUGH COUNCIL,Lead Specialist - HR,324350,Comensura Ltd,26/10/2021,30032488,38042.58,0,Agency,Other Recruitment Agencies And Service Providers,II,BACS,No,03/10/2021 00:00,2021,7,1075272,G1161,Commensura Holding Account,A5191,Agency,,,,,,,,
GUILDFORD BOROUGH COUNCIL,Building Maintenance,846250,Revive Services (CIS),12/10/2021,30032490,3540,0,Services,Other Cleaning And Janitorial Service Providers,II,BACS,No,04/10/2021 00:00,2021,7,128,K1515,Building Maintenance,D6004,Services,DBX45,Property Services,DBX,Support Service and Management Costs,DB,Children's Social Care,E,Childrens and Education Services
GUILDFORD BOROUGH COUNCIL,Grants,1000511,A&E Builders Limited,12/10/2021,30032491,21960,0,Grants To Private Owners,,II,BACS,No,06/08/2021 00:00,2021,7,177073,N51008,Mandatory DFG,1311,Grants To Private Owners,XXX99,*** UNASSIGNED ***,WCC,CEC Recharges,WC,CEC Recharges,A,Central Services
GUILDFORD BOROUGH COUNCIL,HRA Income,9999997,Rent Refunds,12/10/2021,30032493,329.98,0,Rent,,II,BACS,No,07/10/2021 00:00,2021,7,rent credit,M9111,General Income,K5001,Rent,XXX99,*** UNASSIGNED ***,WCC,CEC Recharges,WC,CEC Recharges,A,Central Services
GUILDFORD BOROUGH COUNCIL,Modern Homes,129090,Breyer Group Plc,12/10/2021,30032543,450,0,Contractor Payments,General Builders,II,BACS,No,20/08/2021 00:00,2021,7,52271,N42069,Void Properties - refurbishment,1233,Contractor Payments,,,,,,,,
GUILDFORD BOROUGH COUNCIL,Modern Homes,129090,Breyer Group Plc,12/10/2021,30032544,3343.75,0,Contractor Payments,General Builders,II,BACS,No,28/09/2021 00:00,2021,7,52583,N42069,Void Properties - refurbishment,1233,Contractor Payments,,,,,,,,
GUILDFORD BOROUGH COUNCIL,Modern Homes,129090,Breyer Group Plc,12/10/2021,30032545,4492.62,0,Contractor Payments,General Builders,II,BACS,No,28/09/2021 00:00,2021,7,52584,N48057,Structural works - various properties,1233,Contractor Payments,,,,,,,,
GUILDFORD BOROUGH COUNCIL,Executive - Miscellaneous,1000207,Neptunus Ltd,12/10/2021,30032551,63276.65,0,Contractor Payments,,II,BACS,No,06/10/2021 00:00,2021,7,525CI161957,P79100,Wuv - Allotment Relocation,1233,Contractor Payments,,,,,,,,
GUILDFORD BOROUGH COUNCIL,North Downs Housing,130140,Clarke Gammon Client Account,12/10/2021,30032552,500,0,Valuers Fees,,II,BACS,No,04/10/2021 00:00,2021,7,14936,C3313,North Downs Housing Company,D6002,Valuers Fees,DBX35,Finance (including Internal Audit),DBX,Support Service and Management Costs,DB,Children's Social Care,E,Childrens and Education Services
GUILDFORD BOROUGH COUNCIL,Environmental Health,761720,Aecom Limited,12/10/2021,30032555,3443,0,Consultancy,Construction Project Management Consultants,II,BACS,No,16/09/2021 00:00,2021,7,28471059,C1113,Environmental Control,D6001,Consultancy,CEE25,Environmental Protection,CEE,Environmental Health (Regulatory Services),CE,Environmental & Regulatory Services,C,"Cultural, Environmental & Planning Services"
GUILDFORD BOROUGH COUNCIL,Vehicle Maintenance,882220,Fuller Tyres Limited,14/10/2021,30032558,305,0,Repair And Maintenance Of Vehicles,Other Vehicle Equipment Providers,II,BACS,No,21/09/2021 00:00,2021,7,FTI-33050,K5551,Fleet Workshops,C1002,Repair And Maintenance Of Vehicles,W3A48,Current Service Costs - Fleet Management,W3A,Current Service Costs adjustment,W3,Current Service Costs,W,Other Operating Income and Expenditure
GUILDFORD BOROUGH COUNCIL,Renovations,729420,Morgan Hunt UK Limited,26/10/2021,30032559,2012.5,0,Contractor Payments,Other Recruitment Agencies And Service Providers,II,BACS,No,03/10/2021 00:00,2021,7,1246031,N40287,Electrical testing and smoke detectors,1233,Contractor Payments,,,,,,,,
GUILDFORD BOROUGH COUNCIL,Building Maintenance,686720,Surrey County Windows Ltd,14/10/2021,30032561,3150.28,0,Services,Window And Door Installers,II,BACS,No,01/10/2021 00:00,2021,7,41,K1515,Building Maintenance,D6004,Services,DBX45,Property Services,DBX,Support Service and Management Costs,DB,Children's Social Care,E,Childrens and Education Services
GUILDFORD BOROUGH COUNCIL,Building Maintenance,686720,Surrey County Windows Ltd,14/10/2021,30032561,6513.23,0,Materials,Window And Door Installers,II,BACS,No,01/10/2021 00:00,2021,7,41,K1515,Building Maintenance,D2003,Materials,DBX45,Property Services,DBX,Support Service and Management Costs,DB,Children's Social Care,E,Childrens and Education Services
GUILDFORD BOROUGH COUNCIL,Vehicle Maintenance,875210,Faun Zoeller (UK) Limited,28/10/2021,30032564,426.25,0,Repair And Maintenance Of Vehicles,Waste Disposal Equipment Suppliers,II,BACS,No,06/10/2021 00:00,2021,7,213481,K5551,Fleet Workshops,C1002,Repair And Maintenance Of Vehicles,W3A48,Current Service Costs - Fleet Management,W3A,Current Service Costs adjustment,W3,Current Service Costs,W,Other Operating Income and Expenditure
GUILDFORD BOROUGH COUNCIL,Vehicle Maintenance,882220,Fuller Tyres Limited,14/10/2021,30032568,316,0,Repair And Maintenance Of Vehicles,Other Vehicle Equipment Providers,II,BACS,No,21/09/2021 00:00,2021,7,FTI-33047,K5551,Fleet Workshops,C1002,Repair And Maintenance Of Vehicles,W3A48,Current Service Costs - Fleet Management,W3A,Current Service Costs adjustment,W3,Current Service Costs,W,Other Operating Income and Expenditure
GUILDFORD BOROUGH COUNCIL,Private Sector Housing Maintenance,1000475,G2 Recruitment Solutions,28/10/2021,30032569,2533,0,Agency,,II,BACS,No,06/10/2021 00:00,2021,7,89481,C5132,Care And Repair (Detr),A5191,Agency,KGU00,Supporting People - Strategy,KGU,Supporting People,KG,Housing General Fund,K,Housing Services
GUILDFORD BOROUGH COUNCIL,Building Control,777590,THDG (Consulting Engineers) Ltd,11/11/2021,30032573,1300,0,Consultancy,Civil Engineers,II,BACS,No,04/10/2021 00:00,2021,8,2573,D5700,Building Control - Fee,D6001,Consultancy,CPB00,Building Regulations,CPB,Building Control,CP,Planning and Development Services,C,"Cultural, Environmental & Planning Services"
GUILDFORD BOROUGH COUNCIL,Building Maintenance,534450,Mr J O'Gorman,12/10/2021,30032574,3924.7,0,Services,,II,BACS,No,02/10/2021 00:00,2021,7,X0068122/021021/14,K1515,Building Maintenance,D6004,Services,DBX45,Property Services,DBX,Support Service and Management Costs,DB,Children's Social Care,E,Childrens and Education Services
GUILDFORD BOROUGH COUNCIL,Vehicle Maintenance,145000,Connections UK,23/11/2021,30032575,320.4,0,Repair And Maintenance Of Vehicles,Event Management Agencies,II,BACS,No,06/10/2021 00:00,2021,8,3382,K5551,Fleet Workshops,C1002,Repair And Maintenance Of Vehicles,W3A48,Current Service Costs - Fleet Management,W3A,Current Service Costs adjustment,W3,Current Service Costs,W,Other Operating Income and Expenditure
GUILDFORD BOROUGH COUNCIL,Building Maintenance,1000451,AMG Electrical Ltd,12/10/2021,30032576,903.45,0,Services,,II,BACS,No,04/10/2021 00:00,2021,7,2110-01,K1515,Building Maintenance,D6004,Services,DBX45,Property Services,DBX,Support Service and Management Costs,DB,Children's Social Care,E,Childrens and Education Services
GUILDFORD BOROUGH COUNCIL,Case Services,729420,Morgan Hunt UK Limited,26/10/2021,30032579,689.04,0,Agency,Other Recruitment Agencies And Service Providers,II,BACS,No,03/10/2021 00:00,2021,7,1246032,C6100,Case Services,A5191,Agency,DBX35,Finance (including Internal Audit),DBX,Support Service and Management Costs,DB,Children's Social Care,E,Childrens and Education Services
GUILDFORD BOROUGH COUNCIL,Vehicle Maintenance,882000,F G Barnes & Sons Ltd T/A Barnes Daf,28/10/2021,30032580,275.07,0,Repair And Maintenance Of Vehicles,Car And Van Dealers,II,BACS,No,04/10/2021 00:00,2021,7,81310277,K5551,Fleet Workshops,C1002,Repair And Maintenance Of Vehicles,W3A48,Current Service Costs - Fleet Management,W3A,Current Service Costs adjustment,W3,Current Service Costs,W,Other Operating Income and Expenditure
GUILDFORD BOROUGH COUNCIL,Tenant Services,534210,Scottishpower (Glasgow),14/10/2021,30032583,443.42,0,Utilities,Mains Electricity Suppliers,II,BACS,No,21/09/2021 00:00,2021,7,16089974066/210921,M1151,Tenants Services (BHS),B2001,Utilities,XXX99,*** UNASSIGNED ***,WCC,CEC Recharges,WC,CEC Recharges,A,Central Services
GUILDFORD BOROUGH COUNCIL,Case Services,729420,Morgan Hunt UK Limited,26/10/2021,30032585,906.32,0,Agency,Other Recruitment Agencies And Service Providers,II,BACS,No,03/10/2021 00:00,2021,7,1246033,C6100,Case Services,A5191,Agency,DBX35,Finance (including Internal Audit),DBX,Support Service and Management Costs,DB,Children's Social Care,E,Childrens and Education Services
GUILDFORD BOROUGH COUNCIL,Off Street Parking,1000538,Kelgray Products Ltd,28/10/2021,30032586,530,0,Equipment,,II,BACS,No,06/10/2021 00:00,2021,7,IN074754,B2111,Car Parks - Administration,D2001,Equipment,HTP10,Off-Street Parking,HTP,Parking Services,HT,"Highways, Roads and Transport Services",H,"Highways, Roads and Transport Services"
GUILDFORD BOROUGH COUNCIL,Vehicle Maintenance,720900,Rossetts (UK) Ltd,28/10/2021,30032587,252.48,0,Repair And Maintenance Of Vehicles,Truck And Bus Dealers,II,BACS,No,07/10/2021 00:00,2021,7,52538761,K5551,Fleet Workshops,C1002,Repair And Maintenance Of Vehicles,W3A48,Current Service Costs - Fleet Management,W3A,Current Service Costs adjustment,W3,Current Service Costs,W,Other Operating Income and Expenditure
GUILDFORD BOROUGH COUNCIL,Building Maintenance,1000451,AMG Electrical Ltd,12/10/2021,30032588,903.23,0,Services,,II,BACS,No,04/10/2021 00:00,2021,7,2110-02,K1515,Building Maintenance,D6004,Services,DBX45,Property Services,DBX,Support Service and Management Costs,DB,Children's Social Care,E,Childrens and Education Services
GUILDFORD BOROUGH COUNCIL,Building Maintenance,1000451,AMG Electrical Ltd,12/10/2021,30032589,899.89,0,Services,,II,BACS,No,29/09/2021 00:00,2021,7,2109-08,K1515,Building Maintenance,D6004,Services,DBX45,Property Services,DBX,Support Service and Management Costs,DB,Children's Social Care,E,Childrens and Education Services
GUILDFORD BOROUGH COUNCIL,Business Improvement,856800,Vivid Resourcing Limited,28/10/2021,30032590,1416,0,Agency,Other Recruitment Agencies And Service Providers,II,BACS,No,06/10/2021 00:00,2021,7,66332,G3531,Future Guildford,A5191,Agency,AAM00,Corporate Management,AAM,Corporate Management,AA,Corporate & Democratic Core,A,Central Services
GUILDFORD BOROUGH COUNCIL,Vehicle Maintenance,882220,Fuller Tyres Limited,14/10/2021,30032591,337,0,Repair And Maintenance Of Vehicles,Other Vehicle Equipment Providers,II,BACS,No,21/09/2021 00:00,2021,7,FTI-33048,K5551,Fleet Workshops,C1002,Repair And Maintenance Of Vehicles,W3A48,Current Service Costs - Fleet Management,W3A,Current Service Costs adjustment,W3,Current Service Costs,W,Other Operating Income and Expenditure
GUILDFORD BOROUGH COUNCIL,Equity Share Administration,150290,Clarke Gammon Wellers,12/10/2021,30032592,300,0,Valuers Fees,Property Letting And Estate Agents,II,BACS,No,04/10/2021 00:00,2021,7,14935,M1181,Sale Of Council Houses (BHS),D6002,Valuers Fees,XXX99,*** UNASSIGNED ***,WCC,CEC Recharges,WC,CEC Recharges,A,Central Services
GUILDFORD BOROUGH COUNCIL,Housing Benefits,674100,Penna Plc,28/10/2021,30032593,759,0,Agency,Human Resources Consultants,II,BACS,No,04/10/2021 00:00,2021,7,640276,C4511,Housing Benefits Admin.,A5191,Agency,AAM00,Corporate Management,AAM,Corporate Management,AA,Corporate & Democratic Core,A,Central Services
GUILDFORD BOROUGH COUNCIL,Council Tax,674100,Penna Plc,28/10/2021,30032593,759,0,Agency,Human Resources Consultants,II,BACS,No,04/10/2021 00:00,2021,7,640276,F6141,Council Tax Collectn Expenses,A5191,Agency,ACA00,Council Tax Collection,ACA,Local Tax Collection,AC,Central Services to the Public,A,Central Services
GUILDFORD BOROUGH COUNCIL,Private Sector Housing,674100,Penna Plc,28/10/2021,30032593,1518,0,Agency,Human Resources Consultants,II,BACS,No,04/10/2021 00:00,2021,7,640276,C5122,Private Sector Housing Standard,A5191,Agency,KGU00,Supporting People - Strategy,KGU,Supporting People,KG,Housing General Fund,K,Housing Services
GUILDFORD BOROUGH COUNCIL,Affordable Housing,674100,Penna Plc,28/10/2021,30032593,4554,0,Agency,Human Resources Consultants,II,BACS,No,04/10/2021 00:00,2021,7,640276,C4111,Affordable Housing Development,A5191,Agency,KGU00,Supporting People - Strategy,KGU,Supporting People,KG,Housing General Fund,K,Housing Services
GUILDFORD BOROUGH COUNCIL,Tenant Services,674100,Penna Plc,28/10/2021,30032593,7590,0,Agency,Human Resources Consultants,II,BACS,No,04/10/2021 00:00,2021,7,640276,M1151,Tenants Services (BHS),A5191,Agency,XXX99,*** UNASSIGNED ***,WCC,CEC Recharges,WC,CEC Recharges,A,Central Services
GUILDFORD BOROUGH COUNCIL,Business Improvement,1000466,NimbusPoint Consulting Ltd,28/10/2021,30032594,7425,0,Consultancy,,II,BACS,No,06/10/2021 00:00,2021,7,1525,G3531,Future Guildford,D6001,Consultancy,AAM00,Corporate Management,AAM,Corporate Management,AA,Corporate & Democratic Core,A,Central Services
GUILDFORD BOROUGH COUNCIL,Development Control,1000475,G2 Recruitment Solutions,28/10/2021,30032595,1410,0,Consultancy,,II,BACS,No,06/10/2021 00:00,2021,7,89482,D5100,Development Control - Fee Earn,D6001,Consultancy,CPC00,Development Control Advice,CPC,Development Control,CP,Planning and Development Services,C,"Cultural, Environmental & Planning Services"
GUILDFORD BOROUGH COUNCIL,Housing Benefits,829540,Eden Brown Ltd,28/10/2021,30032597,971.25,0,Agency,Other Recruitment Agencies And Service Providers,II,BACS,No,06/10/2021 00:00,2021,7,1278740,C4511,Housing Benefits Admin.,A5191,Agency,AAM00,Corporate Management,AAM,Corporate Management,AA,Corporate & Democratic Core,A,Central Services
GUILDFORD BOROUGH COUNCIL,Day Services,742000,Scattergoods Agency Ltd,28/10/2021,30032598,848.93,0,Agency,Other Recruitment Agencies And Service Providers,II,BACS,No,05/10/2021 00:00,2021,7,421504,C8100,Community Hubs,A5191,Agency,KGU00,Supporting People - Strategy,KGU,Supporting People,KG,Housing General Fund,K,Housing Services
GUILDFORD BOROUGH COUNCIL,Renovations,1000518,Liquid Recruit Solutions Limited,28/10/2021,30032599,1925,0,Contractor Payments,,II,BACS,No,06/10/2021 00:00,2021,7,10576,N40292,Fire protection works,1233,Contractor Payments,,,,,,,,
GUILDFORD BOROUGH COUNCIL,Development Control,856800,Vivid Resourcing Limited,28/10/2021,30032601,380,0,Agency,Other Recruitment Agencies And Service Providers,II,BACS,No,06/10/2021 00:00,2021,7,66333,D5100,Development Control - Fee Earn,A5191,Agency,CPC00,Development Control Advice,CPC,Development Control,CP,Planning and Development Services,C,"Cultural, Environmental & Planning Services"
GUILDFORD BOROUGH COUNCIL,Vehicle Maintenance,882220,Fuller Tyres Limited,19/10/2021,30032603,2724,0,Repair And Maintenance Of Vehicles,Other Vehicle Equipment Providers,II,BACS,No,22/09/2021 00:00,2021,7,FTI-33051,K5551,Fleet Workshops,C1002,Repair And Maintenance Of Vehicles,W3A48,Current Service Costs - Fleet Management,W3A,Current Service Costs adjustment,W3,Current Service Costs,W,Other Operating Income and Expenditure
GUILDFORD BOROUGH COUNCIL,Business Improvement,720390,E-Personnel Recruitment Ltd,28/10/2021,30032604,577.5,0,Agency,Other Recruitment Agencies And Service Providers,II,BACS,No,06/10/2021 00:00,2021,7,20733,G3531,Future Guildford,A5191,Agency,AAM00,Corporate Management,AAM,Corporate Management,AA,Corporate & Democratic Core,A,Central Services
GUILDFORD BOROUGH COUNCIL,Renovations,729420,Morgan Hunt UK Limited,26/10/2021,30032607,2012.5,0,Contractor Payments,Other Recruitment Agencies And Service Providers,II,BACS,No,03/10/2021 00:00,2021,7,1246030,N40287,Electrical testing and smoke detectors,1233,Contractor Payments,,,,,,,,
GUILDFORD BOROUGH COUNCIL,Private Sector Housing Maintenance,1000389,Waltonhall Construction Services Ltd,26/10/2021,30032609,407.47,0,Services,,II,BACS,No,29/09/2021 00:00,2021,7,GCR004,C5132,Care And Repair (Detr),D6004,Services,KGU00,Supporting People - Strategy,KGU,Supporting People,KG,Housing General Fund,K,Housing Services
GUILDFORD BOROUGH COUNCIL,Lead Specialist - Information Governance,255400,The Information Commissioner,12/10/2021,30032612,2900,0,Grants And Subscriptions,Central Government,II,BACS,No,06/10/2021 00:00,2021,7,GDPR renewal 2021 order ref 05bbeec21257,G4520,Information Governance Service,D9001,Grants And Subscriptions,DBX70,Other Management Costs,DBX,Support Service and Management Costs,DB,Children's Social Care,E,Childrens and Education Services
GUILDFORD BOROUGH COUNCIL,Modern Homes,129090,Breyer Group Plc,12/10/2021,30032615,600,0,Contractor Payments,General Builders,II,BACS,No,20/08/2021 00:00,2021,7,52272,N42069,Void Properties - refurbishment,1233,Contractor Payments,,,,,,,,
GUILDFORD BOROUGH COUNCIL,Modern Homes,129090,Breyer Group Plc,12/10/2021,30032616,964.2,0,Contractor Payments,General Builders,II,BACS,No,20/08/2021 00:00,2021,7,52274,N42069,Void Properties - refurbishment,1233,Contractor Payments,,,,,,,,
GUILDFORD BOROUGH COUNCIL,Modern Homes,129090,Breyer Group Plc,12/10/2021,30032617,24407.58,0,Contractor Payments,General Builders,II,BACS,No,30/09/2021 00:00,2021,7,52591,N42069,Void Properties - refurbishment,1233,Contractor Payments,,,,,,,,
GUILDFORD BOROUGH COUNCIL,Modern Homes,129090,Breyer Group Plc,12/10/2021,30032618,15308.01,0,Contractor Payments,General Builders,II,BACS,No,30/09/2021 00:00,2021,7,52592,N42068,"Kitchen, bathroom and electrical upgrades",1233,Contractor Payments,,,,,,,,
GUILDFORD BOROUGH COUNCIL,Modern Homes,129090,Breyer Group Plc,12/10/2021,30032618,16419.14,0,Contractor Payments,General Builders,II,BACS,No,30/09/2021 00:00,2021,7,52592,N42069,Void Properties - refurbishment,1233,Contractor Payments,,,,,,,,
GUILDFORD BOROUGH COUNCIL,Modern Homes,129090,Breyer Group Plc,12/10/2021,30032619,14034.76,0,Contractor Payments,General Builders,II,BACS,No,30/09/2021 00:00,2021,7,52593,N42068,"Kitchen, bathroom and electrical upgrades",1233,Contractor Payments,,,,,,,,
GUILDFORD BOROUGH COUNCIL,Modern Homes,129090,Breyer Group Plc,12/10/2021,30032619,15000,0,Contractor Payments,General Builders,II,BACS,No,30/09/2021 00:00,2021,7,52593,N42069,Void Properties - refurbishment,1233,Contractor Payments,,,,,,,,
GUILDFORD BOROUGH COUNCIL,Modern Homes,129090,Breyer Group Plc,12/10/2021,30032620,22276.4,0,Contractor Payments,General Builders,II,BACS,No,30/09/2021 00:00,2021,7,52594,N42068,"Kitchen, bathroom and electrical upgrades",1233,Contractor Payments,,,,,,,,
GUILDFORD BOROUGH COUNCIL,Modern Homes,129090,Breyer Group Plc,12/10/2021,30032621,21568.98,0,Contractor Payments,General Builders,II,BACS,No,04/10/2021 00:00,2021,7,52623,N42068,"Kitchen, bathroom and electrical upgrades",1233,Contractor Payments,,,,,,,,
GUILDFORD BOROUGH COUNCIL,Crematorium,495400,Bolton Gate Services Ltd,28/10/2021,30032625,401.4,0,Asset Maintenance,"Security Shutter, Door And Gate Contractors",II,BACS,No,05/10/2021 00:00,2021,7,SI0059673,A1500,Crematorium,B1001,Asset Maintenance,CEA10,Crematoria,CEA,"Cemetery, Cremation and Mortuary Services",CE,Environmental & Regulatory Services,C,"Cultural, Environmental & Planning Services"
GUILDFORD BOROUGH COUNCIL,Responsive & Planned Maintenance,692680,TSG Building Services Plc,12/10/2021,30032626,8420.9,0,Asset Maintenance,General Builders,II,BACS,No,30/09/2021 00:00,2021,7,0622-0290,M5114,Repairs-Cyclical (BHS),B1001,Asset Maintenance,XXX99,*** UNASSIGNED ***,WCC,CEC Recharges,WC,CEC Recharges,A,Central Services
GUILDFORD BOROUGH COUNCIL,Responsive & Planned Maintenance,930000,K&T Heating Services Ltd (CIS),12/10/2021,30032628,9987.5,0,Asset Maintenance,"Plumbing, Heating And Ac (Hvac) Contractors",II,BACS,No,30/09/2021 00:00,2021,7,SI50248,M5114,Repairs-Cyclical (BHS),B1001,Asset Maintenance,XXX99,*** UNASSIGNED ***,WCC,CEC Recharges,WC,CEC Recharges,A,Central Services
GUILDFORD BOROUGH COUNCIL,Modern Homes,144020,Perega Limited,26/10/2021,30032629,281.5,0,Contractor Payments,Other Construction Consultants,II,BACS,No,29/09/2021 00:00,2021,7,12115,N48057,Structural works - various properties,1233,Contractor Payments,,,,,,,,
GUILDFORD BOROUGH COUNCIL,Modern Homes,144020,Perega Limited,26/10/2021,30032630,266.5,0,Contractor Payments,Other Construction Consultants,II,BACS,No,29/09/2021 00:00,2021,7,12139,N48057,Structural works - various properties,1233,Contractor Payments,,,,,,,,
GUILDFORD BOROUGH COUNCIL,Modern Homes,108390,Drain & Sewer Services,26/10/2021,30032631,425,0,Contractor Payments,Sewerage And Drainage Service Providers,II,BACS,No,30/09/2021 00:00,2021,7,90858,N42069,Void Properties - refurbishment,1233,Contractor Payments,,,,,,,,
GUILDFORD BOROUGH COUNCIL,Off Street Parking,1000355,Liftec Lifts Limited,28/10/2021,30032636,1195,0,Asset Maintenance,,II,BACS,No,04/10/2021 00:00,2021,7,NV200759,B2216,General Upkeep- Urban Car Pks,B1001,Asset Maintenance,HTP10,Off-Street Parking,HTP,Parking Services,HT,"Highways, Roads and Transport Services",H,"Highways, Roads and Transport Services"
GUILDFORD BOROUGH COUNCIL,Off Street Parking,1000355,Liftec Lifts Limited,28/10/2021,30032637,1195,0,Asset Maintenance,,II,BACS,No,04/10/2021 00:00,2021,7,NV200769,B2216,General Upkeep- Urban Car Pks,B1001,Asset Maintenance,HTP10,Off-Street Parking,HTP,Parking Services,HT,"Highways, Roads and Transport Services",H,"Highways, Roads and Transport Services"
GUILDFORD BOROUGH COUNCIL,Millmead House,236800,Hannaford Upright Ltd,26/10/2021,30032650,345,0,Asset Maintenance,Other Construction Consultants,II,BACS,No,30/09/2021 00:00,2021,7,3358/10186,G7511,Millmead House,B1001,Asset Maintenance,DBX70,Other Management Costs,DBX,Support Service and Management Costs,DB,Children's Social Care,E,Childrens and Education Services
GUILDFORD BOROUGH COUNCIL,Tourist Information Centre,1000536,Weyfest Limited,19/10/2021,30032651,1700,0,Ticket Sales,,II,BACS,No,08/10/2021 00:00,2021,7,Reconciliation Weyfest 20-22 Aug 2021,F5541,Tourist Information Centre,K3003,Ticket Sales,CCF10,Visitor Information,CCF,Tourism,CC,Cultural & Related Services,C,"Cultural, Environmental & Planning Services"
GUILDFORD BOROUGH COUNCIL,Lead Specialist - HR,957830,TP Health Ltd,26/10/2021,30032654,863,0,Staff Costs,Health And Safety Training Providers,II,BACS,No,30/09/2021 00:00,2021,7,3871,G2555,HR Services,A7100,Staff Costs,DBX70,Other Management Costs,DBX,Support Service and Management Costs,DB,Children's Social Care,E,Childrens and Education Services
GUILDFORD BOROUGH COUNCIL,Countryside and Parks Services,792570,SMI Group Ltd,28/10/2021,30032655,287.29,0,Clothing & Uniform,Personal Protective Equipment (Ppe) Suppliers,II,BACS,No,07/10/2021 00:00,2021,7,INV951799,A1100,Horticulture,D4001,Clothing & Uniform,CCE00,Community Parks & Open Spaces,CCE,Open Spaces,CC,Cultural & Related Services,C,"Cultural, Environmental & Planning Services"
GUILDFORD BOROUGH COUNCIL,IT Renewals,167600,Dell Computer Corporation Ltd,28/10/2021,30032657,5633.9,0,Hardware,Computer Hardware Suppliers,II,BACS,No,07/10/2021 00:00,2021,7,7402750203,P81002,IT Renewals Reserve Funded General,1295,Hardware,XXX99,*** UNASSIGNED ***,WCC,CEC Recharges,WC,CEC Recharges,A,Central Services
GUILDFORD BOROUGH COUNCIL,SPA Sites,523110,Healthmatic Ltd,12/10/2021,30032658,3443,0,Grounds Maintenance,Computer Systems Integrators,II,BACS,No,08/03/2021 00:00,2021,7,10657,A1010,SPA Sites,B6001,Grounds Maintenance,CCE00,Community Parks & Open Spaces,CCE,Open Spaces,CC,Cultural & Related Services,C,"Cultural, Environmental & Planning Services"
GUILDFORD BOROUGH COUNCIL,Community Meals and Transport,604000,Apetito Ltd,26/10/2021,30032660,8205.1,0,Catering,Frozen Food Suppliers,II,BACS,No,30/09/2021 00:00,2021,7,9003641444,C8142,Community Meals Service,D3001,Catering,KGU00,Supporting People - Strategy,KGU,Supporting People,KG,Housing General Fund,K,Housing Services
GUILDFORD BOROUGH COUNCIL,Day Services,604000,Apetito Ltd,26/10/2021,30032661,800.7,0,Catering,Frozen Food Suppliers,II,BACS,No,30/09/2021 00:00,2021,7,9003642012,C8100,Community Hubs,D3001,Catering,KGU00,Supporting People - Strategy,KGU,Supporting People,KG,Housing General Fund,K,Housing Services
GUILDFORD BOROUGH COUNCIL,Major Projects,1000307,Trowers and Hamlins LLP,12/10/2021,30032662,1601.3,0,Consultancy,,II,BACS,No,31/08/2021 00:00,2021,7,11-141991,F5530,Major Projects,D6001,Consultancy,DBX70,Other Management Costs,DBX,Support Service and Management Costs,DB,Children's Social Care,E,Childrens and Education Services
GUILDFORD BOROUGH COUNCIL,Community Wellbeing,230230,Surrey County Council,28/10/2021,30032665,2000,0,Partnerships,Local Government [Uk Only],II,BACS,No,07/10/2021 00:00,2021,7,9500273912,A7311,Sports Development,D6013,Partnerships,CCD20,Sports Development & Community Recreation,CCD,Recreation & Sport,CC,Cultural & Related Services,C,"Cultural, Environmental & Planning Services"
GUILDFORD BOROUGH COUNCIL,Crematorium,829140,Treske Ltd,12/10/2021,30032667,650,0,Equipment,Other Furniture Suppliers,II,BACS,No,16/09/2021 00:00,2021,7,15612,A1500,Crematorium,D2001,Equipment,CEA10,Crematoria,CEA,"Cemetery, Cremation and Mortuary Services",CE,Environmental & Regulatory Services,C,"Cultural, Environmental & Planning Services"
GUILDFORD BOROUGH COUNCIL,Development Control,156250,Hays Specialist Recruitment Limited,28/10/2021,30032670,1330.5,0,Agency,Other Recruitment Agencies And Service Providers,II,BACS,No,07/10/2021 00:00,2021,7,1011667063,D5100,Development Control - Fee Earn,A5191,Agency,CPC00,Development Control Advice,CPC,Development Control,CP,Planning and Development Services,C,"Cultural, Environmental & Planning Services"
GUILDFORD BOROUGH COUNCIL,Family and Refugee Support Programme,706600,Rapid Office Systems Limited,28/10/2021,30032671,1415,0,Expenses,Interior Designers,II,BACS,No,07/10/2021 00:00,2021,7,104243,C3320,Surrey Family Support Prog,D8004,Expenses,KGU00,Supporting People - Strategy,KGU,Supporting People,KG,Housing General Fund,K,Housing Services
GUILDFORD BOROUGH COUNCIL,Building Maintenance,686720,Surrey County Windows Ltd,12/10/2021,30032672,1069.76,0,Services,Window And Door Installers,II,BACS,No,08/10/2021 00:00,2021,7,42,K1515,Building Maintenance,D6004,Services,DBX45,Property Services,DBX,Support Service and Management Costs,DB,Children's Social Care,E,Childrens and Education Services
GUILDFORD BOROUGH COUNCIL,Building Maintenance,686720,Surrey County Windows Ltd,12/10/2021,30032672,2195.43,0,Materials,Window And Door Installers,II,BACS,No,08/10/2021 00:00,2021,7,42,K1515,Building Maintenance,D2003,Materials,DBX45,Property Services,DBX,Support Service and Management Costs,DB,Children's Social Care,E,Childrens and Education Services
GUILDFORD BOROUGH COUNCIL,New Build,950550,Carrington West Limited,28/10/2021,30032673,585,0,Agency Staff,Other Recruitment Agencies And Service Providers,II,BACS,No,07/10/2021 00:00,2021,7,174616,N30030,Clover Road Garages,1222,Agency Staff,,,,,,,,
GUILDFORD BOROUGH COUNCIL,New Build,950550,Carrington West Limited,28/10/2021,30032673,585,0,Agency Staff,Other Recruitment Agencies And Service Providers,II,BACS,No,07/10/2021 00:00,2021,7,174616,N30031,Rapleys Field,1222,Agency Staff,,,,,,,,
GUILDFORD BOROUGH COUNCIL,New Build,950550,Carrington West Limited,28/10/2021,30032673,780,0,Agency Staff,Other Recruitment Agencies And Service Providers,II,BACS,No,07/10/2021 00:00,2021,7,174616,N30022,Manor House Flats,1222,Agency Staff,XXX99,*** UNASSIGNED ***,WCC,CEC Recharges,WC,CEC Recharges,A,Central Services
GUILDFORD BOROUGH COUNCIL,Business Improvement,945780,Ignite Consulting Limited T/A Ignite,28/10/2021,30032674,16900.2,0,Consultancy,Construction Project Management Consultants,II,BACS,No,07/10/2021 00:00,2021,7,2401,G3531,Future Guildford,D6001,Consultancy,AAM00,Corporate Management,AAM,Corporate Management,AA,Corporate & Democratic Core,A,Central Services
GUILDFORD BOROUGH COUNCIL,Industrial Estates,698460,Ermc Limited,26/10/2021,30032677,1520,0,Consultants Fees,Construction Project Management Consultants,II,BACS,No,30/09/2021 00:00,2021,7,9402,P72037,Midleton Ind Est Redevelop,1221,Consultants Fees,XXX99,*** UNASSIGNED ***,WCC,CEC Recharges,WC,CEC Recharges,A,Central Services
GUILDFORD BOROUGH COUNCIL,Business Improvement,945780,Ignite Consulting Limited T/A Ignite,28/10/2021,30032678,21925,0,Consultancy,Construction Project Management Consultants,II,BACS,No,07/10/2021 00:00,2021,7,2400,G3531,Future Guildford,D6001,Consultancy,AAM00,Corporate Management,AAM,Corporate Management,AA,Corporate & Democratic Core,A,Central Services
GUILDFORD BOROUGH COUNCIL,New Build,950550,Carrington West Limited,28/10/2021,30032680,585,0,Consultants Fees,Other Recruitment Agencies And Service Providers,II,BACS,No,07/10/2021 00:00,2021,7,174615,N30030,Clover Road Garages,1221,Consultants Fees,,,,,,,,
GUILDFORD BOROUGH COUNCIL,New Build,950550,Carrington West Limited,28/10/2021,30032680,585,0,Consultants Fees,Other Recruitment Agencies And Service Providers,II,BACS,No,07/10/2021 00:00,2021,7,174615,N30031,Rapleys Field,1221,Consultants Fees,,,,,,,,
GUILDFORD BOROUGH COUNCIL,New Build,950550,Carrington West Limited,28/10/2021,30032680,780,0,Consultants Fees,Other Recruitment Agencies And Service Providers,II,BACS,No,07/10/2021 00:00,2021,7,174615,N30022,Manor House Flats,1221,Consultants Fees,XXX99,*** UNASSIGNED ***,WCC,CEC Recharges,WC,CEC Recharges,A,Central Services
GUILDFORD BOROUGH COUNCIL,Day Services,127500,Chambers Waste Management Plc,12/10/2021,30032681,342.3,0,Expenses,Other Waste Disposal Suppliers,II,BACS,No,19/09/2021 00:00,2021,7,P505611,C8100,Community Hubs,D8004,Expenses,KGU00,Supporting People - Strategy,KGU,Supporting People,KG,Housing General Fund,K,Housing Services
GUILDFORD BOROUGH COUNCIL,Lead Specialist - Finance,156250,Hays Specialist Recruitment Limited,28/10/2021,30032682,2505,0,Agency,Other Recruitment Agencies And Service Providers,II,BACS,No,07/10/2021 00:00,2021,7,1011671567,G3593,Procurement Services,A5191,Agency,DBX35,Finance (including Internal Audit),DBX,Support Service and Management Costs,DB,Children's Social Care,E,Childrens and Education Services
GUILDFORD BOROUGH COUNCIL,Resources Caseworker,815680,RF Print Solutions Limited,28/10/2021,30032683,318,0,"Printing, Photocopying And Reprographics External",Printing Service Providers,II,BACS,No,07/10/2021 00:00,2021,7,2196,G4545,Reprographics,D5005,"Printing, Photocopying And Reprographics External",DBX70,Other Management Costs,DBX,Support Service and Management Costs,DB,Children's Social Care,E,Childrens and Education Services
GUILDFORD BOROUGH COUNCIL,IT Renewals,668140,Softcat Limited,28/10/2021,30032684,123613.56,0,Software,It Support Service Providers,II,BACS,No,06/10/2021 00:00,2021,7,INV03189707,P81002,IT Renewals Reserve Funded General,1296,Software,XXX99,*** UNASSIGNED ***,WCC,CEC Recharges,WC,CEC Recharges,A,Central Services
GUILDFORD BOROUGH COUNCIL,IT Renewals,668140,Softcat Limited,28/10/2021,30032684,646.36,0,Software,It Support Service Providers,II,BACS,No,06/10/2021 00:00,2021,7,INV03189707,P81002,IT Renewals Reserve Funded General,1296,Software,XXX99,*** UNASSIGNED ***,WCC,CEC Recharges,WC,CEC Recharges,A,Central Services
GUILDFORD BOROUGH COUNCIL,IT Renewals,668140,Softcat Limited,28/10/2021,30032684,4785,0,Software,It Support Service Providers,II,BACS,No,06/10/2021 00:00,2021,7,INV03189707,P81002,IT Renewals Reserve Funded General,1296,Software,XXX99,*** UNASSIGNED ***,WCC,CEC Recharges,WC,CEC Recharges,A,Central Services
GUILDFORD BOROUGH COUNCIL,IT Renewals,668140,Softcat Limited,28/10/2021,30032684,888.24,0,Software,It Support Service Providers,II,BACS,No,06/10/2021 00:00,2021,7,INV03189707,P81002,IT Renewals Reserve Funded General,1296,Software,XXX99,*** UNASSIGNED ***,WCC,CEC Recharges,WC,CEC Recharges,A,Central Services
GUILDFORD BOROUGH COUNCIL,IT Renewals,668140,Softcat Limited,28/10/2021,30032684,12170,0,Software,It Support Service Providers,II,BACS,No,06/10/2021 00:00,2021,7,INV03189707,P81002,IT Renewals Reserve Funded General,1296,Software,XXX99,*** UNASSIGNED ***,WCC,CEC Recharges,WC,CEC Recharges,A,Central Services
GUILDFORD BOROUGH COUNCIL,IT Renewals,668140,Softcat Limited,28/10/2021,30032684,9150,0,Software,It Support Service Providers,II,BACS,No,06/10/2021 00:00,2021,7,INV03189707,P81002,IT Renewals Reserve Funded General,1296,Software,XXX99,*** UNASSIGNED ***,WCC,CEC Recharges,WC,CEC Recharges,A,Central Services
GUILDFORD BOROUGH COUNCIL,IT Renewals,668140,Softcat Limited,28/10/2021,30032684,19392,0,Software,It Support Service Providers,II,BACS,No,06/10/2021 00:00,2021,7,INV03189707,P81002,IT Renewals Reserve Funded General,1296,Software,XXX99,*** UNASSIGNED ***,WCC,CEC Recharges,WC,CEC Recharges,A,Central Services
GUILDFORD BOROUGH COUNCIL,IT Renewals,668140,Softcat Limited,28/10/2021,30032684,343,0,Software,It Support Service Providers,II,BACS,No,06/10/2021 00:00,2021,7,INV03189707,P81002,IT Renewals Reserve Funded General,1296,Software,XXX99,*** UNASSIGNED ***,WCC,CEC Recharges,WC,CEC Recharges,A,Central Services
GUILDFORD BOROUGH COUNCIL,IT Renewals,668140,Softcat Limited,28/10/2021,30032684,33510,0,Software,It Support Service Providers,II,BACS,No,06/10/2021 00:00,2021,7,INV03189707,P81002,IT Renewals Reserve Funded General,1296,Software,XXX99,*** UNASSIGNED ***,WCC,CEC Recharges,WC,CEC Recharges,A,Central Services
GUILDFORD BOROUGH COUNCIL,Countryside and Parks Services,863000,Winchester Garden Machinery Limited,28/10/2021,30032690,1025.7,0,Vehicle Operating Costs,Gardening Equipment Suppliers,II,BACS,No,07/10/2021 00:00,2021,7,168709,A1100,Horticulture,C1001,Vehicle Operating Costs,CCE00,Community Parks & Open Spaces,CCE,Open Spaces,CC,Cultural & Related Services,C,"Cultural, Environmental & Planning Services"
GUILDFORD BOROUGH COUNCIL,Countryside and Parks Services,863000,Winchester Garden Machinery Limited,28/10/2021,30032690,400.5,0,Vehicle Operating Costs,Gardening Equipment Suppliers,II,BACS,No,07/10/2021 00:00,2021,7,168709,A1100,Horticulture,C1001,Vehicle Operating Costs,CCE00,Community Parks & Open Spaces,CCE,Open Spaces,CC,Cultural & Related Services,C,"Cultural, Environmental & Planning Services"
GUILDFORD BOROUGH COUNCIL,Development Control,856810,Concept Group Ltd,26/10/2021,30032691,364.09,0,Service fees,Other Office Equipment Suppliers,II,BACS,No,30/09/2021 00:00,2021,7,621551CO,D5100,Development Control - Fee Earn,D8011,Service fees,CPC00,Development Control Advice,CPC,Development Control,CP,Planning and Development Services,C,"Cultural, Environmental & Planning Services"
GUILDFORD BOROUGH COUNCIL,Building Control,856810,Concept Group Ltd,26/10/2021,30032691,364.09,0,Service fees,Other Office Equipment Suppliers,II,BACS,No,30/09/2021 00:00,2021,7,621551CO,D5700,Building Control - Fee,D8011,Service fees,CPB00,Building Regulations,CPB,Building Control,CP,Planning and Development Services,C,"Cultural, Environmental & Planning Services"
GUILDFORD BOROUGH COUNCIL,Sheltered Housing,904780,Affinity Water Limited (HSE PROP),19/10/2021,30032692,1618.59,0,Utilities,Mains Water Suppliers,II,BACS,No,24/09/2021 00:00,2021,7,3960517-2/240921,M1515,Sheltered Accomodation,B2001,Utilities,XXX99,*** UNASSIGNED ***,WCC,CEC Recharges,WC,CEC Recharges,A,Central Services
GUILDFORD BOROUGH COUNCIL,Development Control,1640,Timothy Dawes,12/10/2021,30032695,360,0,Staff Costs,,II,BACS,No,11/10/2021 00:00,2021,7,Reimbursement of 360 for Counselling Sessions,D5100,Development Control - Fee Earn,A7100,Staff Costs,CPC00,Development Control Advice,CPC,Development Control,CP,Planning and Development Services,C,"Cultural, Environmental & Planning Services"
GUILDFORD BOROUGH COUNCIL,Strategic Support,874950,Keyworker Housing Association Ltd,04/11/2021,30032697,13757.27,0,Services,Housing Associations,II,BACS,No,11/10/2021 00:00,2021,7,Keyworker Housing Assoc Sept 2021,M6666,King Edward Ct 120 Walnut Tree,D6004,Services,XXX99,*** UNASSIGNED ***,WCC,CEC Recharges,WC,CEC Recharges,A,Central Services
GUILDFORD BOROUGH COUNCIL,Grants,766700,Stannah Stairlifts Ltd (Grants only),12/10/2021,30032698,4772,0,Grants To Private Owners,Stairlift Suppliers,II,BACS,No,14/09/2021 00:00,2021,7,1085346642,N51019,BCF Non Grant Expenditure,1311,Grants To Private Owners,XXX99,*** UNASSIGNED ***,WCC,CEC Recharges,WC,CEC Recharges,A,Central Services
GUILDFORD BOROUGH COUNCIL,Street Furniture,760100,Southern Electric (Business Accounts),19/10/2021,30032700,639.73,0,Utilities,Mains Electricity Suppliers,II,BACS,No,24/09/2021 00:00,2021,7,8305006505-240921,B3711,Civic Amenities Administration,B2001,Utilities,AAD00,Democratic Representation & Management,AAD,Democratic Representation & Management,AA,Corporate & Democratic Core,A,Central Services
GUILDFORD BOROUGH COUNCIL,Tourist Information Centre,1000516,Surrey Mozart Players,19/10/2021,30032701,2517,0,Ticket Sales,,II,BACS,No,11/10/2021 00:00,2021,7,Promoter Payment SMP New Season Concert 250921,F5541,Tourist Information Centre,K3003,Ticket Sales,CCF10,Visitor Information,CCF,Tourism,CC,Cultural & Related Services,C,"Cultural, Environmental & Planning Services"
GUILDFORD BOROUGH COUNCIL,HRA Income,9999997,Rent Refunds,14/10/2021,30032702,511.96,0,Rent,,II,BACS,No,06/10/2021 00:00,2021,7, rent credit refund,M9111,General Income,K5001,Rent,XXX99,*** UNASSIGNED ***,WCC,CEC Recharges,WC,CEC Recharges,A,Central Services
GUILDFORD BOROUGH COUNCIL,Property,827120,Thames Water Utilities Limited (Reading),12/10/2021,30032704,659307.07,0,Consultants Fees,Mains Water Suppliers,II,BACS,No,05/10/2021 00:00,2021,7,CBA2104291,P74040,Slyfield Area Regeneration Project,1221,Consultants Fees,XXX99,*** UNASSIGNED ***,WCC,CEC Recharges,WC,CEC Recharges,A,Central Services
GUILDFORD BOROUGH COUNCIL,Business Improvement,1000478,Cleara Consulting Ltd T/A Clear Direct Debit,28/10/2021,30032705,1200,0,Consultancy,,II,BACS,No,06/10/2021 00:00,2021,7,SICDD06463,G3531,Future Guildford,D6001,Consultancy,AAM00,Corporate Management,AAM,Corporate Management,AA,Corporate & Democratic Core,A,Central Services
GUILDFORD BOROUGH COUNCIL,Parks Countryside Management,713690,Countryside Contracts Ltd (Hire/NON CIS),28/10/2021,30032708,320,0,External Vehicle Hire,Tree Work Contractors,II,BACS,No,06/10/2021 00:00,2021,7,2037,A1300,Trees And Countryside,C3001,External Vehicle Hire,CCE00,Community Parks & Open Spaces,CCE,Open Spaces,CC,Cultural & Related Services,C,"Cultural, Environmental & Planning Services"
GUILDFORD BOROUGH COUNCIL,Environmental Health,1000551,KALACO Group Limited t/a Air Pollution,14/10/2021,30032709,888,0,Consultancy,,II,BACS,No,24/03/2021 00:00,2021,7,APS1336,C1113,Environmental Control,D6001,Consultancy,CEE25,Environmental Protection,CEE,Environmental Health (Regulatory Services),CE,Environmental & Regulatory Services,C,"Cultural, Environmental & Planning Services"
GUILDFORD BOROUGH COUNCIL,Woking Road Depot,180700,E P Training Services Limited,21/10/2021,30032710,2300,0,Staff Costs,Other Training Providers,II,BACS,No,10/09/2021 00:00,2021,7,538297,B4452,Woking Road Depot,A7100,Staff Costs,W3A48,Current Service Costs - Fleet Management,W3A,Current Service Costs adjustment,W3,Current Service Costs,W,Other Operating Income and Expenditure
GUILDFORD BOROUGH COUNCIL,Woking Road Depot,180700,E P Training Services Limited,21/10/2021,30032710,402.5,0,Staff Costs,Other Training Providers,II,BACS,No,10/09/2021 00:00,2021,7,538297,B4452,Woking Road Depot,A7100,Staff Costs,W3A48,Current Service Costs - Fleet Management,W3A,Current Service Costs adjustment,W3,Current Service Costs,W,Other Operating Income and Expenditure
GUILDFORD BOROUGH COUNCIL,Responsive & Planned Maintenance,524580,B&Q Plc,28/10/2021,30032711,1666.67,0,Building Expenses,Do-It-Yourself (Diy) Stores,II,BACS,No,10/10/2021 00:00,2021,7,15028-50996,M5113,Repairs-Responsive (BHS),B1002,Building Expenses,XXX99,*** UNASSIGNED ***,WCC,CEC Recharges,WC,CEC Recharges,A,Central Services
GUILDFORD BOROUGH COUNCIL,IT Renewals,1000035,Gravitas Recruitment Group,21/10/2021,30032712,3025,0,Miscellaneous Expenses,,II,BACS,No,11/10/2021 00:00,2021,7,INV172133,P81002,IT Renewals Reserve Funded General,1444,Miscellaneous Expenses,XXX99,*** UNASSIGNED ***,WCC,CEC Recharges,WC,CEC Recharges,A,Central Services
GUILDFORD BOROUGH COUNCIL,Acquisition of Land and Buildings,885990,Freeths LLP (London),26/10/2021,30032713,14506,0,Legal Expenses,Other Legal Service Providers,II,BACS,No,29/09/2021 00:00,2021,7,267339,N10026,20 The Street,1395,Legal Expenses,,,,,,,,
GUILDFORD BOROUGH COUNCIL,Building Control,877460,JJ Surveying Ltd,04/11/2021,30032714,600,0,Consultancy,Surveyors And Inspectors,II,BACS,No,11/10/2021 00:00,2021,7,1388,D5700,Building Control - Fee,D6001,Consultancy,CPB00,Building Regulations,CPB,Building Control,CP,Planning and Development Services,C,"Cultural, Environmental & Planning Services"
GUILDFORD BOROUGH COUNCIL,Waste and Fleet Business Development,184000,Egbert H Taylor & Company Ltd,12/10/2021,30032716,7098.26,0,Equipment,Bins And Waste Container Suppliers,II,BACS,No,05/08/2021 00:00,2021,7,INV000018073,B7512,Refuse - Trade,D2001,Equipment,CER10,Trade Waste Collection,CER,Trade Waste,CE,Environmental & Regulatory Services,C,"Cultural, Environmental & Planning Services"
GUILDFORD BOROUGH COUNCIL,Waste and Fleet Business Development,184000,Egbert H Taylor & Company Ltd,12/10/2021,30032716,4122.6,0,Equipment,Bins And Waste Container Suppliers,II,BACS,No,05/08/2021 00:00,2021,7,INV000018073,B7513,Recycling - Trade,D2001,Equipment,CER10,Trade Waste Collection,CER,Trade Waste,CE,Environmental & Regulatory Services,C,"Cultural, Environmental & Planning Services"
GUILDFORD BOROUGH COUNCIL,Waste and Fleet Business Development,184000,Egbert H Taylor & Company Ltd,12/10/2021,30032716,3023.24,0,Equipment,Bins And Waste Container Suppliers,II,BACS,No,05/08/2021 00:00,2021,7,INV000018073,B7513,Recycling - Trade,D2001,Equipment,CER10,Trade Waste Collection,CER,Trade Waste,CE,Environmental & Regulatory Services,C,"Cultural, Environmental & Planning Services"
GUILDFORD BOROUGH COUNCIL,Park and Ride Service,803060,John F Hunt Power Ltd,04/11/2021,30032722,1219.75,0,Materials,Other Construction Contractors,II,BACS,No,11/10/2021 00:00,2021,7,233036,B5206,Onslow Park And Ride,D2003,Materials,HTT11,Support to Public Transport Operators - Bus Services,HTT,Public Transport,HT,"Highways, Roads and Transport Services",H,"Highways, Roads and Transport Services"
GUILDFORD BOROUGH COUNCIL,Development Control,496140,Thomson Ecology Ltd,14/10/2021,30032723,1980,0,Consultancy,Environmental Consultants,II,BACS,No,08/10/2021 00:00,2021,7,INV014796,D5100,Development Control - Fee Earn,D6001,Consultancy,CPC00,Development Control Advice,CPC,Development Control,CP,Planning and Development Services,C,"Cultural, Environmental & Planning Services"
GUILDFORD BOROUGH COUNCIL,Environmental Health,1000551,KALACO Group Limited t/a Air Pollution,14/10/2021,30032724,2736,0,Consultancy,,II,BACS,No,08/09/2021 00:00,2021,7,APS1501,C1113,Environmental Control,D6001,Consultancy,CEE25,Environmental Protection,CEE,Environmental Health (Regulatory Services),CE,Environmental & Regulatory Services,C,"Cultural, Environmental & Planning Services"
GUILDFORD BOROUGH COUNCIL,Parks Countryside Management,1000197,Pure Gardens,28/10/2021,30032725,559.86,0,Grounds Maintenance,,II,BACS,No,08/10/2021 00:00,2021,7,1315,A1300,Trees And Countryside,B6001,Grounds Maintenance,CCE00,Community Parks & Open Spaces,CCE,Open Spaces,CC,Cultural & Related Services,C,"Cultural, Environmental & Planning Services"
GUILDFORD BOROUGH COUNCIL,Woking Road Depot,180700,E P Training Services Limited,28/10/2021,30032726,255,0,Staff Costs,Other Training Providers,II,BACS,No,04/10/2021 00:00,2021,7,538646,B4452,Woking Road Depot,A7100,Staff Costs,W3A48,Current Service Costs - Fleet Management,W3A,Current Service Costs adjustment,W3,Current Service Costs,W,Other Operating Income and Expenditure
GUILDFORD BOROUGH COUNCIL,Woking Road Depot,180700,E P Training Services Limited,28/10/2021,30032726,1261.67,0,Staff Costs,Other Training Providers,II,BACS,No,04/10/2021 00:00,2021,7,538646,B4452,Woking Road Depot,A7100,Staff Costs,W3A48,Current Service Costs - Fleet Management,W3A,Current Service Costs adjustment,W3,Current Service Costs,W,Other Operating Income and Expenditure
GUILDFORD BOROUGH COUNCIL,Homelessness Support,847120,Project 114 Ltd,04/11/2021,30032727,1260,0,Emergency Accomodation,Property Letting And Estate Agents,II,BACS,No,11/10/2021 00:00,2021,7,3289,C3311,Homelessness,D8009,Emergency Accomodation,KGU00,Supporting People - Strategy,KGU,Supporting People,KG,Housing General Fund,K,Housing Services
GUILDFORD BOROUGH COUNCIL,Business Improvement,668140,Softcat Limited,28/10/2021,30032729,40050,0,Consultancy,It Support Service Providers,II,BACS,No,08/10/2021 00:00,2021,7,INV03196273,G3531,Future Guildford,D6001,Consultancy,AAM00,Corporate Management,AAM,Corporate Management,AA,Corporate & Democratic Core,A,Central Services
GUILDFORD BOROUGH COUNCIL,Family and Refugee Support Programme,702140,Wealden Leisure Limited,21/10/2021,30032730,426,0,Grants And Subscriptions,Sports And Leisure Centres,II,BACS,No,27/09/2021 00:00,2021,7,204017,C3320,Surrey Family Support Prog,D9001,Grants And Subscriptions,KGU00,Supporting People - Strategy,KGU,Supporting People,KG,Housing General Fund,K,Housing Services
GUILDFORD BOROUGH COUNCIL,Environmental Health,931600,Bracknell Forest Borough Council,04/11/2021,30032731,1593.9,0,Services,Local Government [Uk Only],II,BACS,No,11/10/2021 00:00,2021,7,6652672,C1113,Environmental Control,D6004,Services,CEE25,Environmental Protection,CEE,Environmental Health (Regulatory Services),CE,Environmental & Regulatory Services,C,"Cultural, Environmental & Planning Services"
GUILDFORD BOROUGH COUNCIL,Waste and Fleet Business Development,1000476,Storm Environmental Limited,11/11/2021,30032732,5347.8,0,Equipment,,II,BACS,No,07/10/2021 00:00,2021,8,6007021,B7512,Refuse - Trade,D2001,Equipment,CER10,Trade Waste Collection,CER,Trade Waste,CE,Environmental & Regulatory Services,C,"Cultural, Environmental & Planning Services"
GUILDFORD BOROUGH COUNCIL,Parks Countryside Management,713690,Countryside Contracts Ltd (Hire/NON CIS),28/10/2021,30032733,1450,0,Grounds Maintenance,Tree Work Contractors,II,BACS,No,06/10/2021 00:00,2021,7,2036,A1300,Trees And Countryside,B6001,Grounds Maintenance,CCE00,Community Parks & Open Spaces,CCE,Open Spaces,CC,Cultural & Related Services,C,"Cultural, Environmental & Planning Services"
GUILDFORD BOROUGH COUNCIL,New Build,1000527,Green Box Associates Ltd,12/10/2021,30032735,1575,0,Consultants Fees,,II,BACS,No,17/09/2021 00:00,2021,7,7547,N30030,Clover Road Garages,1221,Consultants Fees,,,,,,,,
GUILDFORD BOROUGH COUNCIL,Off Street Parking,878030,Royal Mail Group Ltd (Chesterfield),21/10/2021,30032736,460.5,0,Postage,,II,BACS,No,27/09/2021 00:00,2021,7,9063692037,B2111,Car Parks - Administration,D5003,Postage,HTP10,Off-Street Parking,HTP,Parking Services,HT,"Highways, Roads and Transport Services",H,"Highways, Roads and Transport Services"
GUILDFORD BOROUGH COUNCIL,Waste and Fleet Business Development,184000,Egbert H Taylor & Company Ltd,12/10/2021,30032737,493,0,Equipment,Bins And Waste Container Suppliers,II,BACS,No,28/07/2021 00:00,2021,7,INV000018025,B7512,Refuse - Trade,D2001,Equipment,CER10,Trade Waste Collection,CER,Trade Waste,CE,Environmental & Regulatory Services,C,"Cultural, Environmental & Planning Services"
GUILDFORD BOROUGH COUNCIL,Waste and Fleet Business Development,184000,Egbert H Taylor & Company Ltd,12/10/2021,30032737,757.5,0,Equipment,Bins And Waste Container Suppliers,II,BACS,No,28/07/2021 00:00,2021,7,INV000018025,B7512,Refuse - Trade,D2001,Equipment,CER10,Trade Waste Collection,CER,Trade Waste,CE,Environmental & Regulatory Services,C,"Cultural, Environmental & Planning Services"
GUILDFORD BOROUGH COUNCIL,Waste and Fleet Business Development,184000,Egbert H Taylor & Company Ltd,12/10/2021,30032737,1010.5,0,Equipment,Bins And Waste Container Suppliers,II,BACS,No,28/07/2021 00:00,2021,7,INV000018025,B7512,Refuse - Trade,D2001,Equipment,CER10,Trade Waste Collection,CER,Trade Waste,CE,Environmental & Regulatory Services,C,"Cultural, Environmental & Planning Services"
GUILDFORD BOROUGH COUNCIL,Waste and Fleet Business Development,184000,Egbert H Taylor & Company Ltd,12/10/2021,30032737,303,0,Equipment,Bins And Waste Container Suppliers,II,BACS,No,28/07/2021 00:00,2021,7,INV000018025,B7512,Refuse - Trade,D2001,Equipment,CER10,Trade Waste Collection,CER,Trade Waste,CE,Environmental & Regulatory Services,C,"Cultural, Environmental & Planning Services"
GUILDFORD BOROUGH COUNCIL,Waste and Fleet Business Development,184000,Egbert H Taylor & Company Ltd,12/10/2021,30032737,404.2,0,Equipment,Bins And Waste Container Suppliers,II,BACS,No,28/07/2021 00:00,2021,7,INV000018025,B7512,Refuse - Trade,D2001,Equipment,CER10,Trade Waste Collection,CER,Trade Waste,CE,Environmental & Regulatory Services,C,"Cultural, Environmental & Planning Services"
GUILDFORD BOROUGH COUNCIL,Waste and Fleet Business Development,184000,Egbert H Taylor & Company Ltd,12/10/2021,30032737,308,0,Equipment,Bins And Waste Container Suppliers,II,BACS,No,28/07/2021 00:00,2021,7,INV000018025,B7512,Refuse - Trade,D2001,Equipment,CER10,Trade Waste Collection,CER,Trade Waste,CE,Environmental & Regulatory Services,C,"Cultural, Environmental & Planning Services"
GUILDFORD BOROUGH COUNCIL,Homelessness Support,746370,Riverside Group Ltd,26/10/2021,30032738,10895,0,Grants And Subscriptions,Housing Associations,II,BACS,No,29/09/2021 00:00,2021,7,59168,C3311,Homelessness,D9001,Grants And Subscriptions,KGU00,Supporting People - Strategy,KGU,Supporting People,KG,Housing General Fund,K,Housing Services
GUILDFORD BOROUGH COUNCIL,Woking Road Depot,941010,A1 Wokingham Wet Waste Limited Ltd,26/10/2021,30032740,340,0,Waste Removal,Car And Van Parts Suppliers,II,BACS,No,30/09/2021 00:00,2021,7,30107,B4452,Woking Road Depot,D6010,Waste Removal,W3A48,Current Service Costs - Fleet Management,W3A,Current Service Costs adjustment,W3,Current Service Costs,W,Other Operating Income and Expenditure
GUILDFORD BOROUGH COUNCIL,Major Projects,1000077,3R Finance Ltd,04/11/2021,30032741,1237.5,0,Agency Staff,,II,BACS,No,11/10/2021 00:00,2021,7,INV-52305,F5530,Major Projects,1222,Agency Staff,DBX70,Other Management Costs,DBX,Support Service and Management Costs,DB,Children's Social Care,E,Childrens and Education Services
GUILDFORD BOROUGH COUNCIL,Lead Specialist - Finance,789120,Adelante Software Ltd,28/10/2021,30032742,820,0,ICT Software,Software Developers,II,BACS,No,09/10/2021 00:00,2021,7,127509,G3565,Finance Specialists,D7002,ICT Software,DBX35,Finance (including Internal Audit),DBX,Support Service and Management Costs,DB,Children's Social Care,E,Childrens and Education Services
GUILDFORD BOROUGH COUNCIL,Environmental Works,177600,Dryad Tree Specialists Limited,04/11/2021,30032745,960,0,Grounds Maintenance,Tree Work Contractors,II,BACS,No,11/10/2021 00:00,2021,7,10296,M4615,Env Wks To Estate (BHS),B6001,Grounds Maintenance,XXX99,*** UNASSIGNED ***,WCC,CEC Recharges,WC,CEC Recharges,A,Central Services
GUILDFORD BOROUGH COUNCIL,Grants,692280,Wealden Services Ltd (Grants only),26/10/2021,30032746,7422,0,Grants To Private Owners,Property Maintenance Contractors,II,BACS,No,01/10/2021 00:00,2021,7,INV-47671,N51008,Mandatory DFG,1311,Grants To Private Owners,XXX99,*** UNASSIGNED ***,WCC,CEC Recharges,WC,CEC Recharges,A,Central Services
GUILDFORD BOROUGH COUNCIL,Grants,967890,Steadfast Automation Ltd (Grants only),04/11/2021,30032747,4411.81,0,Grants To Private Owners,Electronic Equipment And Component Suppliers,II,BACS,No,11/10/2021 00:00,2021,7,20084,N51008,Mandatory DFG,1311,Grants To Private Owners,XXX99,*** UNASSIGNED ***,WCC,CEC Recharges,WC,CEC Recharges,A,Central Services
GUILDFORD BOROUGH COUNCIL,Grants,978660,Kudos Mobility Group Ltd,12/10/2021,30032790,5840,0,Grants To Private Owners,,II,BACS,No,12/08/2021 00:00,2021,7,9504,N51019,BCF Non Grant Expenditure,1311,Grants To Private Owners,XXX99,*** UNASSIGNED ***,WCC,CEC Recharges,WC,CEC Recharges,A,Central Services
GUILDFORD BOROUGH COUNCIL,Industrial Estates,202460,Uk Power Networks,14/10/2021,30032791,2054.84,0,Contractor Payments,Property Letting And Estate Agents,II,BACS,No,12/10/2021 00:00,2021,7,UK Power Networks Ref. Number: 3500117801,P72037,Midleton Ind Est Redevelop,1233,Contractor Payments,XXX99,*** UNASSIGNED ***,WCC,CEC Recharges,WC,CEC Recharges,A,Central Services
GUILDFORD BOROUGH COUNCIL,Grants,692280,Wealden Services Ltd (Grants only),28/10/2021,30032793,1610.5,0,Grants To Private Owners,Property Maintenance Contractors,II,BACS,No,04/10/2021 00:00,2021,7,INV-47674,N51024,BCF- Prevention Grant,1311,Grants To Private Owners,XXX99,*** UNASSIGNED ***,WCC,CEC Recharges,WC,CEC Recharges,A,Central Services
GUILDFORD BOROUGH COUNCIL,Building Maintenance,969700,A Star Maintenance Contractors Ltd (CIS),14/10/2021,30032799,5197.43,0,Services,Property Maintenance Contractors,II,BACS,No,05/10/2021 00:00,2021,7,14062,K1515,Building Maintenance,D6004,Services,DBX45,Property Services,DBX,Support Service and Management Costs,DB,Children's Social Care,E,Childrens and Education Services
GUILDFORD BOROUGH COUNCIL,Off Street Parking,1000332,SSG Support Services Group Ltd,28/10/2021,30032800,11666.67,0,Services,,II,BACS,No,04/10/2021 00:00,2021,7,SSG/786/9454,B2216,General Upkeep- Urban Car Pks,D6004,Services,HTP10,Off-Street Parking,HTP,Parking Services,HT,"Highways, Roads and Transport Services",H,"Highways, Roads and Transport Services"
GUILDFORD BOROUGH COUNCIL,Parks Countryside Management,713690,Countryside Contracts Ltd (Hire/NON CIS),28/10/2021,30032801,800,0,Grounds Maintenance,Tree Work Contractors,II,BACS,No,06/10/2021 00:00,2021,7,2035,A1300,Trees And Countryside,B6001,Grounds Maintenance,CCE00,Community Parks & Open Spaces,CCE,Open Spaces,CC,Cultural & Related Services,C,"Cultural, Environmental & Planning Services"
GUILDFORD BOROUGH COUNCIL,Other Short Term Debtors,971400,Ethical Lettings Cic (Pound Lane),19/10/2021,30032802,1096,0,Cash Paid,,II,BACS,No,12/10/2021 00:00,2021,7,2796,J01064,Housing H4U Scheme,2175,Cash Paid,,,,,,,,
GUILDFORD BOROUGH COUNCIL,Other Short Term Debtors,971400,Ethical Lettings Cic (Pound Lane),19/10/2021,30032802,3000,0,Cash Paid,,II,BACS,No,12/10/2021 00:00,2021,7,2796,J01064,Housing H4U Scheme,2175,Cash Paid,,,,,,,,
GUILDFORD BOROUGH COUNCIL,Industrial Estates,1000098,Amiri Construction Limited,14/10/2021,30032803,443435.68,0,Contractor Payments,,II,BACS,No,07/10/2021 00:00,2021,7,1179/13,P72037,Midleton Ind Est Redevelop,1233,Contractor Payments,XXX99,*** UNASSIGNED ***,WCC,CEC Recharges,WC,CEC Recharges,A,Central Services
GUILDFORD BOROUGH COUNCIL,Emergency Communications,971860,PPP Taking Care,26/10/2021,30032805,3578.67,0,Specialist Services,,II,BACS,No,01/10/2021 00:00,2021,7,S1543221,C2511,Careline/Telecare,D6009,Specialist Services,KGU00,Supporting People - Strategy,KGU,Supporting People,KG,Housing General Fund,K,Housing Services
GUILDFORD BOROUGH COUNCIL,Park and Ride Service,803060,John F Hunt Power Ltd,26/10/2021,30032806,1029.6,0,Services,Other Construction Contractors,II,BACS,No,30/09/2021 00:00,2021,7,232012,B5206,Onslow Park And Ride,D6004,Services,HTT11,Support to Public Transport Operators - Bus Services,HTT,Public Transport,HT,"Highways, Roads and Transport Services",H,"Highways, Roads and Transport Services"
GUILDFORD BOROUGH COUNCIL,IT Renewals,975830,Systems Accountants Limited,04/11/2021,30032808,10670,0,Agency Staff,,II,BACS,No,12/10/2021 00:00,2021,7,SAUK14878,P81002,IT Renewals Reserve Funded General,1222,Agency Staff,XXX99,*** UNASSIGNED ***,WCC,CEC Recharges,WC,CEC Recharges,A,Central Services
GUILDFORD BOROUGH COUNCIL,Major Projects,1000172,Gleeds Advisory Ltd,14/12/2021,30032809,3575,0,Consultancy,,II,BACS,No,30/11/2020 00:00,2021,7,LNDM0030/004,F5530,Major Projects,D6001,Consultancy,DBX70,Other Management Costs,DBX,Support Service and Management Costs,DB,Children's Social Care,E,Childrens and Education Services
GUILDFORD BOROUGH COUNCIL,Woking Road Depot,192880,Siemens Financial Services Limited,28/10/2021,30032813,750,0,Materials,Other Leasing Companies,II,BACS,No,10/10/2021 00:00,2021,7,244/22/0005398,B4452,Woking Road Depot,D2003,Materials,W3A48,Current Service Costs - Fleet Management,W3A,Current Service Costs adjustment,W3,Current Service Costs,W,Other Operating Income and Expenditure
GUILDFORD BOROUGH COUNCIL,Building Maintenance,127500,Chambers Waste Management Plc,26/10/2021,30032814,725.09,0,Materials,Other Waste Disposal Suppliers,II,BACS,No,30/09/2021 00:00,2021,7,P510283,K1515,Building Maintenance,D2003,Materials,DBX45,Property Services,DBX,Support Service and Management Costs,DB,Children's Social Care,E,Childrens and Education Services
GUILDFORD BOROUGH COUNCIL,Electoral Registration,650930,Idox Software Ltd,04/11/2021,30032815,3750,0,"Printing, Photocopying And Reprographics External",Software Developers,II,BACS,No,12/10/2021 00:00,2021,7,7035124,F2511,Electoral Registration,D5005,"Printing, Photocopying And Reprographics External",ACE00,Registration of Electors,ACE,Elections,AC,Central Services to the Public,A,Central Services
GUILDFORD BOROUGH COUNCIL,Building Control,675000,Chartered Association Of Building Engineers,19/10/2021,30032816,290,0,Staff Costs,,II,BACS,No,01/08/2021 00:00,2021,7,300023085,D5700,Building Control - Fee,A7100,Staff Costs,CPB00,Building Regulations,CPB,Building Control,CP,Planning and Development Services,C,"Cultural, Environmental & Planning Services"
GUILDFORD BOROUGH COUNCIL,Tenant Services,341270,British Gas Trading Ltd,19/10/2021,30032817,1037.96,0,Utilities,Mains Utility Multiple Service Providers,II,BACS,No,13/07/2021 00:00,2021,7,850059498143/130721,M1151,Tenants Services (BHS),B2001,Utilities,XXX99,*** UNASSIGNED ***,WCC,CEC Recharges,WC,CEC Recharges,A,Central Services
GUILDFORD BOROUGH COUNCIL,Democratic Representation,769570,Public-I Group Ltd,14/10/2021,30032820,19007.07,0,Specialist Services,Computer Systems Integrators,II,BACS,No,25/01/2021 00:00,2021,7,INV-5676,F2121,Councillor Services,D6009,Specialist Services,AAD00,Democratic Representation & Management,AAD,Democratic Representation & Management,AA,Corporate & Democratic Core,A,Central Services
GUILDFORD BOROUGH COUNCIL,Democratic Representation,769570,Public-I Group Ltd,14/10/2021,30032820,2823,0,Hire,Computer Systems Integrators,II,BACS,No,25/01/2021 00:00,2021,7,INV-5676,F2121,Councillor Services,D1001,Hire,AAD00,Democratic Representation & Management,AAD,Democratic Representation & Management,AA,Corporate & Democratic Core,A,Central Services
GUILDFORD BOROUGH COUNCIL,Woking Road Depot,1000119,Professional Construction Recruitment Limited,28/10/2021,30032822,326.25,0,Services,,II,BACS,No,04/10/2021 00:00,2021,7,141034,B4452,Woking Road Depot,D6004,Services,W3A48,Current Service Costs - Fleet Management,W3A,Current Service Costs adjustment,W3,Current Service Costs,W,Other Operating Income and Expenditure
GUILDFORD BOROUGH COUNCIL,Land Charges,230230,Surrey County Council,04/11/2021,30032823,6614,0,Services,Local Government [Uk Only],II,BACS,No,11/10/2021 00:00,2021,7,9500274105,F4111,Local Land Charges,D6004,Services,CPD10,Local Development Framework inc Supplementary Planning Guidance,CPD,Planning Policy,CP,Planning and Development Services,C,"Cultural, Environmental & Planning Services"
GUILDFORD BOROUGH COUNCIL,Lead Specialist - Legal,720330,Iken Business Ltd,14/10/2021,30032824,2115,0,ICT Software,Software Developers,II,BACS,No,01/09/2021 00:00,2021,7,IK27766,G4525,Legal Services,D7002,ICT Software,DBX40,Legal,DBX,Support Service and Management Costs,DB,Children's Social Care,E,Childrens and Education Services
GUILDFORD BOROUGH COUNCIL,Building Maintenance,127500,Chambers Waste Management Plc,26/10/2021,30032825,659.8,0,Materials,Other Waste Disposal Suppliers,II,BACS,No,30/09/2021 00:00,2021,7,P510494,K1515,Building Maintenance,D2003,Materials,DBX45,Property Services,DBX,Support Service and Management Costs,DB,Children's Social Care,E,Childrens and Education Services
GUILDFORD BOROUGH COUNCIL,Parks Countryside Management,705240,Countryside Contracts Ltd (CIS),19/10/2021,30032826,400,0,Grounds Maintenance,Tree Work Contractors,II,BACS,No,06/10/2021 00:00,2021,7,2034,A1300,Trees And Countryside,B6001,Grounds Maintenance,CCE00,Community Parks & Open Spaces,CCE,Open Spaces,CC,Cultural & Related Services,C,"Cultural, Environmental & Planning Services"
GUILDFORD BOROUGH COUNCIL,Parks Countryside Management,705240,Countryside Contracts Ltd (CIS),19/10/2021,30032826,800,0,Grounds Maintenance,Tree Work Contractors,II,BACS,No,06/10/2021 00:00,2021,7,2034,A1300,Trees And Countryside,B6001,Grounds Maintenance,CCE00,Community Parks & Open Spaces,CCE,Open Spaces,CC,Cultural & Related Services,C,"Cultural, Environmental & Planning Services"
GUILDFORD BOROUGH COUNCIL,Development Control,442390,Cornerstone Barristers,28/10/2021,30032827,6700,0,Expenses,Barristers,II,BACS,No,07/10/2021 00:00,2021,7,INVTC80,D5100,Development Control - Fee Earn,D8004,Expenses,CPC00,Development Control Advice,CPC,Development Control,CP,Planning and Development Services,C,"Cultural, Environmental & Planning Services"
GUILDFORD BOROUGH COUNCIL,Vehicle Maintenance,882220,Fuller Tyres Limited,28/10/2021,30032829,610,0,Repair And Maintenance Of Vehicles,Other Vehicle Equipment Providers,II,BACS,No,06/10/2021 00:00,2021,7,FTI-33155,K5551,Fleet Workshops,C1002,Repair And Maintenance Of Vehicles,W3A48,Current Service Costs - Fleet Management,W3A,Current Service Costs adjustment,W3,Current Service Costs,W,Other Operating Income and Expenditure
GUILDFORD BOROUGH COUNCIL,Environmental Works,204900,Forest & Garden Timber Services,14/10/2021,30032831,8205,0,Grounds Maintenance,,II,BACS,No,11/10/2021 00:00,2021,7,8863,M4615,Env Wks To Estate (BHS),B6001,Grounds Maintenance,XXX99,*** UNASSIGNED ***,WCC,CEC Recharges,WC,CEC Recharges,A,Central Services
GUILDFORD BOROUGH COUNCIL,Vehicle Maintenance,758360,NTM-GB Ltd,04/11/2021,30032833,364.38,0,Repair And Maintenance Of Vehicles,Truck And Bus Servicing And Maintenance Providers,II,BACS,No,11/10/2021 00:00,2021,7,1019344,K5551,Fleet Workshops,C1002,Repair And Maintenance Of Vehicles,W3A48,Current Service Costs - Fleet Management,W3A,Current Service Costs adjustment,W3,Current Service Costs,W,Other Operating Income and Expenditure
GUILDFORD BOROUGH COUNCIL,Strategic Support,718130,A.I.M. Removals & Deliveries,04/11/2021,30032834,450,0,Expenses,Removal Service Providers,II,BACS,No,12/10/2021 00:00,2021,7,9637,M8121,Strategic Support (SHS),D8004,Expenses,XXX99,*** UNASSIGNED ***,WCC,CEC Recharges,WC,CEC Recharges,A,Central Services
GUILDFORD BOROUGH COUNCIL,Strategic Support,718130,A.I.M. Removals & Deliveries,04/11/2021,30032834,900,0,Expenses,Removal Service Providers,II,BACS,No,12/10/2021 00:00,2021,7,9637,M8121,Strategic Support (SHS),D8004,Expenses,XXX99,*** UNASSIGNED ***,WCC,CEC Recharges,WC,CEC Recharges,A,Central Services
GUILDFORD BOROUGH COUNCIL,Public Conveniences,715000,Ripley Parish Council,14/10/2021,30032835,2000,0,Services,Local Government [Uk Only],II,BACS,No,12/04/2021 00:00,2021,7,RPC2021/001,K6500,Public Conveniences,D6004,Services,W3A48,Current Service Costs - Fleet Management,W3A,Current Service Costs adjustment,W3,Current Service Costs,W,Other Operating Income and Expenditure
GUILDFORD BOROUGH COUNCIL,Vehicle Maintenance,882220,Fuller Tyres Limited,28/10/2021,30032837,1084,0,Repair And Maintenance Of Vehicles,Other Vehicle Equipment Providers,II,BACS,No,06/10/2021 00:00,2021,7,FTI-33153,K5551,Fleet Workshops,C1002,Repair And Maintenance Of Vehicles,W3A48,Current Service Costs - Fleet Management,W3A,Current Service Costs adjustment,W3,Current Service Costs,W,Other Operating Income and Expenditure
GUILDFORD BOROUGH COUNCIL,IT Renewals,975830,Systems Accountants Limited,04/11/2021,30032838,2180,0,Agency Staff,,II,BACS,No,11/10/2021 00:00,2021,7,SAUK14864,P81002,IT Renewals Reserve Funded General,1222,Agency Staff,XXX99,*** UNASSIGNED ***,WCC,CEC Recharges,WC,CEC Recharges,A,Central Services
GUILDFORD BOROUGH COUNCIL,Grants,729250,SCBS (Grants only),11/11/2021,30032844,1896.19,0,Grants To Private Owners,General Builders,II,BACS,No,13/10/2021 00:00,2021,7,1486,N51024,BCF- Prevention Grant,1311,Grants To Private Owners,XXX99,*** UNASSIGNED ***,WCC,CEC Recharges,WC,CEC Recharges,A,Central Services
GUILDFORD BOROUGH COUNCIL,Grants,1000491,RH Collings & Son,04/11/2021,30032847,10330,0,Grants To Private Owners,,II,BACS,No,12/10/2021 00:00,2021,7,8844,N51008,Mandatory DFG,1311,Grants To Private Owners,XXX99,*** UNASSIGNED ***,WCC,CEC Recharges,WC,CEC Recharges,A,Central Services
GUILDFORD BOROUGH COUNCIL,Vehicle Maintenance,875210,Faun Zoeller (UK) Limited,04/11/2021,30032850,2451.4,0,Repair And Maintenance Of Vehicles,Waste Disposal Equipment Suppliers,II,BACS,No,12/10/2021 00:00,2021,7,213627,K5551,Fleet Workshops,C1002,Repair And Maintenance Of Vehicles,W3A48,Current Service Costs - Fleet Management,W3A,Current Service Costs adjustment,W3,Current Service Costs,W,Other Operating Income and Expenditure
GUILDFORD BOROUGH COUNCIL,Business Improvement,720390,E-Personnel Recruitment Ltd,04/11/2021,30032852,577.5,0,Agency,Other Recruitment Agencies And Service Providers,II,BACS,No,12/10/2021 00:00,2021,7,20889,G3531,Future Guildford,A5191,Agency,AAM00,Corporate Management,AAM,Corporate Management,AA,Corporate & Democratic Core,A,Central Services
GUILDFORD BOROUGH COUNCIL,Pest Control,800110,SDK Environmental Ltd,26/10/2021,30032854,2037.9,0,Contractors,Pest And Vermin Control Service Providers,II,BACS,No,30/09/2021 00:00,2021,7,46386,C1121,Pest Control,D6012,Contractors,CEE50,Pest Control,CEE,Environmental Health (Regulatory Services),CE,Environmental & Regulatory Services,C,"Cultural, Environmental & Planning Services"
GUILDFORD BOROUGH COUNCIL,Homelessness Support,1000539,Animals at Home North Surrey Ltd,19/10/2021,30032856,285,0,Emergency Accomodation,,II,BACS,No,21/07/2021 00:00,2021,7,1099992,C3311,Homelessness,D8009,Emergency Accomodation,KGU00,Supporting People - Strategy,KGU,Supporting People,KG,Housing General Fund,K,Housing Services
GUILDFORD BOROUGH COUNCIL,Vehicle Maintenance,875210,Faun Zoeller (UK) Limited,28/10/2021,30032858,800,0,Repair And Maintenance Of Vehicles,Waste Disposal Equipment Suppliers,II,BACS,No,05/10/2021 00:00,2021,7,213459,K5551,Fleet Workshops,C1002,Repair And Maintenance Of Vehicles,W3A48,Current Service Costs - Fleet Management,W3A,Current Service Costs adjustment,W3,Current Service Costs,W,Other Operating Income and Expenditure
GUILDFORD BOROUGH COUNCIL,Building Maintenance,1000451,AMG Electrical Ltd,14/10/2021,30032859,796.7,0,Services,,II,BACS,No,11/10/2021 00:00,2021,7,2110-03,K1515,Building Maintenance,D6004,Services,DBX45,Property Services,DBX,Support Service and Management Costs,DB,Children's Social Care,E,Childrens and Education Services
GUILDFORD BOROUGH COUNCIL,Building Maintenance,1000451,AMG Electrical Ltd,14/10/2021,30032859,446.8,0,Materials,,II,BACS,No,11/10/2021 00:00,2021,7,2110-03,K1515,Building Maintenance,D2003,Materials,DBX45,Property Services,DBX,Support Service and Management Costs,DB,Children's Social Care,E,Childrens and Education Services
GUILDFORD BOROUGH COUNCIL,Development Control,454730,Alexander Advertising (International) Ltd,26/10/2021,30032860,310.59,0,"Advertising, Publicity & Promotion",Full Service Marketing Agencies,II,BACS,No,01/10/2021 00:00,2021,7,1385G22,D5100,Development Control - Fee Earn,D5002,"Advertising, Publicity & Promotion",CPC00,Development Control Advice,CPC,Development Control,CP,Planning and Development Services,C,"Cultural, Environmental & Planning Services"
GUILDFORD BOROUGH COUNCIL,Doors and Windows,1000455,Signature Home Improvements Limited,04/11/2021,30032861,27825.03,0,Contractor Payments,,II,BACS,No,11/10/2021 00:00,2021,7,1495,N45072,Replacement of windows 2020-21,1233,Contractor Payments,,,,,,,,
GUILDFORD BOROUGH COUNCIL,Building Maintenance,921860,Cinnamon Construction Limited (CIS),14/10/2021,30032862,5927.45,0,Services,General Builders,II,BACS,No,12/10/2021 00:00,2021,7,77,K1515,Building Maintenance,D6004,Services,DBX45,Property Services,DBX,Support Service and Management Costs,DB,Children's Social Care,E,Childrens and Education Services
GUILDFORD BOROUGH COUNCIL,Lead Specialist - HR,324350,Comensura Ltd,11/11/2021,30032863,33682.26,0,Agency,Other Recruitment Agencies And Service Providers,II,BACS,No,13/10/2021 00:00,2021,7,1075670,G1161,Commensura Holding Account,A5191,Agency,,,,,,,,
GUILDFORD BOROUGH COUNCIL,Building Maintenance,846250,Revive Services (CIS),14/10/2021,30032864,3120,0,Services,Other Cleaning And Janitorial Service Providers,II,BACS,No,11/10/2021 00:00,2021,7,129,K1515,Building Maintenance,D6004,Services,DBX45,Property Services,DBX,Support Service and Management Costs,DB,Children's Social Care,E,Childrens and Education Services
GUILDFORD BOROUGH COUNCIL,Homelessness Support,1000534,Green Lane Farm Boarding Kennels and Cattery,19/10/2021,30032866,739.5,0,Emergency Accomodation,,II,BACS,No,24/09/2021 00:00,2021,7,130645,C3311,Homelessness,D8009,Emergency Accomodation,KGU00,Supporting People - Strategy,KGU,Supporting People,KG,Housing General Fund,K,Housing Services
GUILDFORD BOROUGH COUNCIL,Lead Specialist - Finance,156250,Hays Specialist Recruitment Limited,26/10/2021,30032867,1604,0,Agency,Other Recruitment Agencies And Service Providers,II,BACS,No,30/09/2021 00:00,2021,7,1011654726,G3593,Procurement Services,A5191,Agency,DBX35,Finance (including Internal Audit),DBX,Support Service and Management Costs,DB,Children's Social Care,E,Childrens and Education Services
GUILDFORD BOROUGH COUNCIL,Development Control,496140,Thomson Ecology Ltd,19/10/2021,30032868,1650,0,Consultancy,Environmental Consultants,II,BACS,No,13/10/2021 00:00,2021,7,INV014811,D5100,Development Control - Fee Earn,D6001,Consultancy,CPC00,Development Control Advice,CPC,Development Control,CP,Planning and Development Services,C,"Cultural, Environmental & Planning Services"
GUILDFORD BOROUGH COUNCIL,Tenant Services,534210,Scottishpower (Glasgow),19/10/2021,30032869,435.79,0,Utilities,Mains Electricity Suppliers,II,BACS,No,11/11/2020 00:00,2021,7,16089927088/111120,M1151,Tenants Services (BHS),B2001,Utilities,XXX99,*** UNASSIGNED ***,WCC,CEC Recharges,WC,CEC Recharges,A,Central Services
GUILDFORD BOROUGH COUNCIL,Tenant Services,534210,Scottishpower (Glasgow),21/10/2021,30032871,1060.74,0,Utilities,Mains Electricity Suppliers,II,BACS,No,11/12/2020 00:00,2021,7,16081568311,M1151,Tenants Services (BHS),B2001,Utilities,XXX99,*** UNASSIGNED ***,WCC,CEC Recharges,WC,CEC Recharges,A,Central Services
GUILDFORD BOROUGH COUNCIL,Development Control,972970,Francis Taylor Building,04/11/2021,30032872,700,0,Consultancy,,II,BACS,No,12/10/2021 00:00,2021,7,88723/121021,D5100,Development Control - Fee Earn,D6001,Consultancy,CPC00,Development Control Advice,CPC,Development Control,CP,Planning and Development Services,C,"Cultural, Environmental & Planning Services"
GUILDFORD BOROUGH COUNCIL,Resources Caseworker,186720,Quadient UK Ltd,09/12/2021,30032875,780,0,Stationery & Paper,Postal Equipment Suppliers,II,BACS,No,12/10/2021 00:00,2021,9,92783982,G4545,Reprographics,D5007,Stationery & Paper,DBX70,Other Management Costs,DBX,Support Service and Management Costs,DB,Children's Social Care,E,Childrens and Education Services
GUILDFORD BOROUGH COUNCIL,Day Services,742000,Scattergoods Agency Ltd,04/11/2021,30032876,853.99,0,Agency,Other Recruitment Agencies And Service Providers,II,BACS,No,12/10/2021 00:00,2021,7,421560,C8100,Community Hubs,A5191,Agency,KGU00,Supporting People - Strategy,KGU,Supporting People,KG,Housing General Fund,K,Housing Services
GUILDFORD BOROUGH COUNCIL,Development Control,454730,Alexander Advertising (International) Ltd,28/10/2021,30032877,310.59,0,"Advertising, Publicity & Promotion",Full Service Marketing Agencies,II,BACS,No,08/10/2021 00:00,2021,7,1513A22,D5100,Development Control - Fee Earn,D5002,"Advertising, Publicity & Promotion",CPC00,Development Control Advice,CPC,Development Control,CP,Planning and Development Services,C,"Cultural, Environmental & Planning Services"
GUILDFORD BOROUGH COUNCIL,Corporate Property Management,150290,Clarke Gammon Wellers,14/10/2021,30032878,500,0,Valuers Fees,Property Letting And Estate Agents,II,BACS,No,12/10/2021 00:00,2021,7,14948,G4575,Asset Management,D6002,Valuers Fees,DBX45,Property Services,DBX,Support Service and Management Costs,DB,Children's Social Care,E,Childrens and Education Services
GUILDFORD BOROUGH COUNCIL,Building Maintenance,713710,D G Property Refurbishment Ltd,14/10/2021,30032879,2908.25,0,Services,Restoration Specialists,II,BACS,No,04/10/2021 00:00,2021,7,X0068124/121/041021,K1515,Building Maintenance,D6004,Services,DBX45,Property Services,DBX,Support Service and Management Costs,DB,Children's Social Care,E,Childrens and Education Services
GUILDFORD BOROUGH COUNCIL,Building Maintenance,713710,D G Property Refurbishment Ltd,14/10/2021,30032879,2700,0,Materials,Restoration Specialists,II,BACS,No,04/10/2021 00:00,2021,7,X0068124/121/041021,K1515,Building Maintenance,D2003,Materials,DBX45,Property Services,DBX,Support Service and Management Costs,DB,Children's Social Care,E,Childrens and Education Services
GUILDFORD BOROUGH COUNCIL,Parks Countryside Management,793350,Green Plant UK Ltd,11/11/2021,30032882,870,0,Hire,Confidential Waste Disposal Providers,II,BACS,No,13/10/2021 00:00,2021,7,67223,A1300,Trees And Countryside,D1001,Hire,CCE00,Community Parks & Open Spaces,CCE,Open Spaces,CC,Cultural & Related Services,C,"Cultural, Environmental & Planning Services"
GUILDFORD BOROUGH COUNCIL,Building Maintenance,921860,Cinnamon Construction Limited (CIS),14/10/2021,30032883,292.5,0,Services,General Builders,II,BACS,No,12/10/2021 00:00,2021,7,X0068127/36/121021,K1515,Building Maintenance,D6004,Services,DBX45,Property Services,DBX,Support Service and Management Costs,DB,Children's Social Care,E,Childrens and Education Services
GUILDFORD BOROUGH COUNCIL,Vehicle Maintenance,145000,Connections UK,28/10/2021,30032884,256.65,0,Repair And Maintenance Of Vehicles,Event Management Agencies,II,BACS,No,08/10/2021 00:00,2021,7,3977,K5551,Fleet Workshops,C1002,Repair And Maintenance Of Vehicles,W3A48,Current Service Costs - Fleet Management,W3A,Current Service Costs adjustment,W3,Current Service Costs,W,Other Operating Income and Expenditure
GUILDFORD BOROUGH COUNCIL,Renovations,1000518,Liquid Recruit Solutions Limited,11/11/2021,30032885,1925,0,Contractor Payments,,II,BACS,No,13/10/2021 00:00,2021,7,10603,N40292,Fire protection works,1233,Contractor Payments,,,,,,,,
GUILDFORD BOROUGH COUNCIL,Industrial Estates,1000081,Openreach Ltd,19/10/2021,30032886,6225,0,Contractor Payments,,II,BACS,No,18/02/2021 00:00,2021,7,812513,P72037,Midleton Ind Est Redevelop,1233,Contractor Payments,XXX99,*** UNASSIGNED ***,WCC,CEC Recharges,WC,CEC Recharges,A,Central Services
GUILDFORD BOROUGH COUNCIL,Building Maintenance,713710,D G Property Refurbishment Ltd,14/10/2021,30032887,2928.45,0,Services,Restoration Specialists,II,BACS,No,11/10/2021 00:00,2021,7,X0068124/122,K1515,Building Maintenance,D6004,Services,DBX45,Property Services,DBX,Support Service and Management Costs,DB,Children's Social Care,E,Childrens and Education Services
GUILDFORD BOROUGH COUNCIL,Building Maintenance,713710,D G Property Refurbishment Ltd,14/10/2021,30032887,2700,0,Materials,Restoration Specialists,II,BACS,No,11/10/2021 00:00,2021,7,X0068124/122,K1515,Building Maintenance,D2003,Materials,DBX45,Property Services,DBX,Support Service and Management Costs,DB,Children's Social Care,E,Childrens and Education Services
GUILDFORD BOROUGH COUNCIL,Building Maintenance,769600,RGB Decorating Limited (CIS),14/10/2021,30032888,5520,0,Services,Painters And Decorators,II,BACS,No,12/10/2021 00:00,2021,7,172122,K1515,Building Maintenance,D6004,Services,DBX45,Property Services,DBX,Support Service and Management Costs,DB,Children's Social Care,E,Childrens and Education Services
GUILDFORD BOROUGH COUNCIL,Sheltered Housing,156250,Hays Specialist Recruitment Limited,28/10/2021,30032889,772.21,0,Agency,Other Recruitment Agencies And Service Providers,II,BACS,No,08/10/2021 00:00,2021,7,1011678691,M1515,Sheltered Accomodation,A5191,Agency,XXX99,*** UNASSIGNED ***,WCC,CEC Recharges,WC,CEC Recharges,A,Central Services
GUILDFORD BOROUGH COUNCIL,North Downs Housing,150290,Clarke Gammon Wellers,14/10/2021,30032890,1000,0,Valuers Fees,Property Letting And Estate Agents,II,BACS,No,13/10/2021 00:00,2021,7,14949,C3313,North Downs Housing Company,D6002,Valuers Fees,DBX35,Finance (including Internal Audit),DBX,Support Service and Management Costs,DB,Children's Social Care,E,Childrens and Education Services
GUILDFORD BOROUGH COUNCIL,Lead Specialist - Finance,156250,Hays Specialist Recruitment Limited,04/11/2021,30032892,2004,0,Agency,Other Recruitment Agencies And Service Providers,II,BACS,No,12/10/2021 00:00,2021,7,1011683343,G3593,Procurement Services,A5191,Agency,DBX35,Finance (including Internal Audit),DBX,Support Service and Management Costs,DB,Children's Social Care,E,Childrens and Education Services
GUILDFORD BOROUGH COUNCIL,Building Maintenance,807270,Simon Property Solution Ltd,14/10/2021,30032893,2731.83,0,Services,House Builders,II,BACS,No,11/10/2021 00:00,2021,7,190GBC,K1515,Building Maintenance,D6004,Services,DBX45,Property Services,DBX,Support Service and Management Costs,DB,Children's Social Care,E,Childrens and Education Services
GUILDFORD BOROUGH COUNCIL,Other Short Term Debtors,464800,Mr A Georghiou,19/10/2021,30032927,5790,0,Cash Paid,,II,BACS,No,14/10/2021 00:00,2021,7,Badger Close RIA,J01064,Housing H4U Scheme,2175,Cash Paid,,,,,,,,
GUILDFORD BOROUGH COUNCIL,Property,969500,Vision Survey Ltd,11/11/2021,30032930,4920,0,Consultants Fees,Other Construction Consultants,II,BACS,No,13/10/2021 00:00,2021,7,102013,P74040,Slyfield Area Regeneration Project,1221,Consultants Fees,XXX99,*** UNASSIGNED ***,WCC,CEC Recharges,WC,CEC Recharges,A,Central Services
GUILDFORD BOROUGH COUNCIL,Business Improvement,856800,Vivid Resourcing Limited,11/11/2021,30032931,1440,0,Agency,Other Recruitment Agencies And Service Providers,II,BACS,No,13/10/2021 00:00,2021,7,66683,G3531,Future Guildford,A5191,Agency,AAM00,Corporate Management,AAM,Corporate Management,AA,Corporate & Democratic Core,A,Central Services
GUILDFORD BOROUGH COUNCIL,Development Control,856800,Vivid Resourcing Limited,11/11/2021,30032932,1480,0,Agency,Other Recruitment Agencies And Service Providers,II,BACS,No,13/10/2021 00:00,2021,7,66686,D5100,Development Control - Fee Earn,A5191,Agency,CPC00,Development Control Advice,CPC,Development Control,CP,Planning and Development Services,C,"Cultural, Environmental & Planning Services"
GUILDFORD BOROUGH COUNCIL,Vehicle Maintenance,1000363,Ernest Doe & Sons Ltd,19/10/2021,30032933,394.82,0,Repair And Maintenance Of Vehicles,,II,BACS,No,10/08/2021 00:00,2021,7,E08134,K5551,Fleet Workshops,C1002,Repair And Maintenance Of Vehicles,W3A48,Current Service Costs - Fleet Management,W3A,Current Service Costs adjustment,W3,Current Service Costs,W,Other Operating Income and Expenditure
GUILDFORD BOROUGH COUNCIL,Building Maintenance,1000451,AMG Electrical Ltd,19/10/2021,30032934,1365.81,0,Services,,II,BACS,No,12/10/2021 00:00,2021,7,2110-04,K1515,Building Maintenance,D6004,Services,DBX45,Property Services,DBX,Support Service and Management Costs,DB,Children's Social Care,E,Childrens and Education Services
GUILDFORD BOROUGH COUNCIL,Building Maintenance,1000451,AMG Electrical Ltd,19/10/2021,30032934,959.81,0,Materials,,II,BACS,No,12/10/2021 00:00,2021,7,2110-04,K1515,Building Maintenance,D2003,Materials,DBX45,Property Services,DBX,Support Service and Management Costs,DB,Children's Social Care,E,Childrens and Education Services
GUILDFORD BOROUGH COUNCIL,Vehicle Maintenance,1000363,Ernest Doe & Sons Ltd,19/10/2021,30032935,371.84,0,Repair And Maintenance Of Vehicles,,II,BACS,No,08/07/2021 00:00,2021,7,E06430,K5551,Fleet Workshops,C1002,Repair And Maintenance Of Vehicles,W3A48,Current Service Costs - Fleet Management,W3A,Current Service Costs adjustment,W3,Current Service Costs,W,Other Operating Income and Expenditure
GUILDFORD BOROUGH COUNCIL,Business Improvement,856800,Vivid Resourcing Limited,11/11/2021,30032936,1290.88,0,Agency,Other Recruitment Agencies And Service Providers,II,BACS,No,13/10/2021 00:00,2021,7,66684,G3531,Future Guildford,A5191,Agency,AAM00,Corporate Management,AAM,Corporate Management,AA,Corporate & Democratic Core,A,Central Services
GUILDFORD BOROUGH COUNCIL,Vehicle Maintenance,1000043,NCH Lubricants,28/10/2021,30032937,277,0,Equipment,,II,BACS,No,07/10/2021 00:00,2021,7,1200035556,K5551,Fleet Workshops,D2001,Equipment,W3A48,Current Service Costs - Fleet Management,W3A,Current Service Costs adjustment,W3,Current Service Costs,W,Other Operating Income and Expenditure
GUILDFORD BOROUGH COUNCIL,Executive - Miscellaneous,899630,H T P Consulting Limited,11/11/2021,30032938,3091.75,0,Consultants Fees,Transport Consultants,II,BACS,No,13/10/2021 00:00,2021,7,1192/62,P79032,SMC (West) Phase 1,1221,Consultants Fees,XXX99,*** UNASSIGNED ***,WCC,CEC Recharges,WC,CEC Recharges,A,Central Services
GUILDFORD BOROUGH COUNCIL,Renovations,729420,Morgan Hunt UK Limited,28/10/2021,30032940,2012.5,0,Contractor Payments,Other Recruitment Agencies And Service Providers,II,BACS,No,10/10/2021 00:00,2021,7,1246797,N40287,Electrical testing and smoke detectors,1233,Contractor Payments,,,,,,,,
GUILDFORD BOROUGH COUNCIL,Executive - Miscellaneous,814220,The Oyster Partnership Ltd,11/11/2021,30032943,835.2,0,Agency Staff,Other Recruitment Agencies And Service Providers,II,BACS,No,13/10/2021 00:00,2021,7,10911939,P79102,WUV - New GBC Depot,1222,Agency Staff,,,,,,,,
GUILDFORD BOROUGH COUNCIL,Major Projects,814220,The Oyster Partnership Ltd,11/11/2021,30032943,1670.4,0,Agency Staff,Other Recruitment Agencies And Service Providers,II,BACS,No,13/10/2021 00:00,2021,7,10911939,F5530,Major Projects,1222,Agency Staff,DBX70,Other Management Costs,DBX,Support Service and Management Costs,DB,Children's Social Care,E,Childrens and Education Services
GUILDFORD BOROUGH COUNCIL,Executive - Miscellaneous,814220,The Oyster Partnership Ltd,11/11/2021,30032943,1670.4,0,Agency Staff,Other Recruitment Agencies And Service Providers,II,BACS,No,13/10/2021 00:00,2021,7,10911939,P79100,Wuv - Allotment Relocation,1222,Agency Staff,,,,,,,,
GUILDFORD BOROUGH COUNCIL,Climate Change,105080,APSE,04/11/2021,30032944,5239.6,0,Consultancy,Trade Associations And Regulatory Bodies,II,BACS,No,12/10/2021 00:00,2021,8,2122/1510,B3911,Climate Change Strategy,D6001,Consultancy,CEZ00,Climate Change Costs,CEZ,Climate Change Costs,CE,Environmental & Regulatory Services,C,"Cultural, Environmental & Planning Services"
GUILDFORD BOROUGH COUNCIL,Private Sector Housing Maintenance,938540,BJC Design (Southeast) Ltd,11/11/2021,30032945,1033,0,Contractors,Surveyors And Inspectors,II,BACS,No,13/10/2021 00:00,2021,7,734,C5132,Care And Repair (Detr),D6012,Contractors,KGU00,Supporting People - Strategy,KGU,Supporting People,KG,Housing General Fund,K,Housing Services
GUILDFORD BOROUGH COUNCIL,Equity Share Administration,150290,Clarke Gammon Wellers,19/10/2021,30032947,285,0,Valuers Fees,Property Letting And Estate Agents,II,BACS,No,13/10/2021 00:00,2021,7,14952,M1181,Sale Of Council Houses (BHS),D6002,Valuers Fees,XXX99,*** UNASSIGNED ***,WCC,CEC Recharges,WC,CEC Recharges,A,Central Services
GUILDFORD BOROUGH COUNCIL,Major Projects,144690,Network Rail Infrastructure Ltd,11/11/2021,30032948,3967.7,0,Consultancy,Rail Companies,II,BACS,No,13/10/2021 00:00,2021,7,1287867,F5530,Major Projects,D6001,Consultancy,DBX70,Other Management Costs,DBX,Support Service and Management Costs,DB,Children's Social Care,E,Childrens and Education Services
GUILDFORD BOROUGH COUNCIL,Affordable Housing,856800,Vivid Resourcing Limited,11/11/2021,30032950,1926,0,Agency,Other Recruitment Agencies And Service Providers,II,BACS,No,13/10/2021 00:00,2021,7,66685,C4111,Affordable Housing Development,A5191,Agency,KGU00,Supporting People - Strategy,KGU,Supporting People,KG,Housing General Fund,K,Housing Services
GUILDFORD BOROUGH COUNCIL,Vehicle Maintenance,1000363,Ernest Doe & Sons Ltd,19/10/2021,30032952,321.15,0,Repair And Maintenance Of Vehicles,,II,BACS,No,29/07/2021 00:00,2021,7,E07570,K5551,Fleet Workshops,C1002,Repair And Maintenance Of Vehicles,W3A48,Current Service Costs - Fleet Management,W3A,Current Service Costs adjustment,W3,Current Service Costs,W,Other Operating Income and Expenditure
GUILDFORD BOROUGH COUNCIL,Executive - Miscellaneous,969500,Vision Survey Ltd,11/11/2021,30032954,4315,0,Consultants Fees,Other Construction Consultants,II,BACS,No,13/10/2021 00:00,2021,7,102014,P79102,WUV - New GBC Depot,1221,Consultants Fees,,,,,,,,
GUILDFORD BOROUGH COUNCIL,Digital Services,577320,Goss Interactive Ltd,19/10/2021,30032955,1100,0,ICT Software,Digital Marketing Service Providers,II,BACS,No,20/09/2021 00:00,2021,7,20144,F1141,Internet Site Access,D7002,ICT Software,DBX70,Other Management Costs,DBX,Support Service and Management Costs,DB,Children's Social Care,E,Childrens and Education Services
GUILDFORD BOROUGH COUNCIL,New Build,950550,Carrington West Limited,11/11/2021,30032956,585,0,Agency Staff,Other Recruitment Agencies And Service Providers,II,BACS,No,13/10/2021 00:00,2021,7,175342,N30030,Clover Road Garages,1222,Agency Staff,,,,,,,,
GUILDFORD BOROUGH COUNCIL,New Build,950550,Carrington West Limited,11/11/2021,30032956,585,0,Agency Staff,Other Recruitment Agencies And Service Providers,II,BACS,No,13/10/2021 00:00,2021,7,175342,N30031,Rapleys Field,1222,Agency Staff,,,,,,,,
GUILDFORD BOROUGH COUNCIL,New Build,950550,Carrington West Limited,11/11/2021,30032956,780,0,Agency Staff,Other Recruitment Agencies And Service Providers,II,BACS,No,13/10/2021 00:00,2021,7,175342,N30022,Manor House Flats,1222,Agency Staff,XXX99,*** UNASSIGNED ***,WCC,CEC Recharges,WC,CEC Recharges,A,Central Services
GUILDFORD BOROUGH COUNCIL,Miscellaneous Expenses,1000541,Geared Up Cycles Limited,28/10/2021,30032957,325,0,Events,,II,BACS,No,10/10/2021 00:00,2021,7,2021051,F7539,COVID-19,D8006,Events,,,,,,,,
GUILDFORD BOROUGH COUNCIL,Executive - Miscellaneous,1000280,Blakedown Landscapes (SE) Ltd,19/10/2021,30032958,46341.75,0,Consultants Fees,,II,BACS,No,07/10/2021 00:00,2021,7,L01265,P79100,Wuv - Allotment Relocation,1221,Consultants Fees,,,,,,,,
GUILDFORD BOROUGH COUNCIL,Equity Share Administration,130140,Clarke Gammon Client Account,19/10/2021,30032961,395,0,Valuers Fees,,II,BACS,No,11/10/2021 00:00,2021,7,14947,M1181,Sale Of Council Houses (BHS),D6002,Valuers Fees,XXX99,*** UNASSIGNED ***,WCC,CEC Recharges,WC,CEC Recharges,A,Central Services
GUILDFORD BOROUGH COUNCIL,Housing Benefits,829540,Eden Brown Ltd,11/11/2021,30032963,971.25,0,Agency,Other Recruitment Agencies And Service Providers,II,BACS,No,13/10/2021 00:00,2021,7,1279129,C4511,Housing Benefits Admin.,A5191,Agency,AAM00,Corporate Management,AAM,Corporate Management,AA,Corporate & Democratic Core,A,Central Services
GUILDFORD BOROUGH COUNCIL,Vehicle Maintenance,1000363,Ernest Doe & Sons Ltd,19/10/2021,30032965,773.14,0,Repair And Maintenance Of Vehicles,,II,BACS,No,12/08/2021 00:00,2021,7,E08276,K5551,Fleet Workshops,C1002,Repair And Maintenance Of Vehicles,W3A48,Current Service Costs - Fleet Management,W3A,Current Service Costs adjustment,W3,Current Service Costs,W,Other Operating Income and Expenditure
GUILDFORD BOROUGH COUNCIL,Parks & Countryside,982900,C L C Contractors Limited,04/11/2021,30032966,63952,0,Contractor Payments,Property Maintenance Contractors,II,BACS,No,24/09/2021 00:00,2021,8,INV002321,P18416,SMP Cricket Pavilion,1233,Contractor Payments,,,,,,,,
GUILDFORD BOROUGH COUNCIL,Off Street Parking,667120,Stripe Consulting Limited,11/11/2021,30032967,6750,0,Asset Maintenance,Other Construction Consultants,II,BACS,No,13/10/2021 00:00,2021,7,INV-4321,B2219,Bedford Road Mscp,B1001,Asset Maintenance,HTP10,Off-Street Parking,HTP,Parking Services,HT,"Highways, Roads and Transport Services",H,"Highways, Roads and Transport Services"
GUILDFORD BOROUGH COUNCIL,Building Maintenance,1000451,AMG Electrical Ltd,19/10/2021,30032969,1569.9,0,Services,,II,BACS,No,12/10/2021 00:00,2021,7,S/09/10/21,K1515,Building Maintenance,D6004,Services,DBX45,Property Services,DBX,Support Service and Management Costs,DB,Children's Social Care,E,Childrens and Education Services
GUILDFORD BOROUGH COUNCIL,Environmental Health,1000499,Farm Kennels Ltd,19/10/2021,30032970,2712.88,0,Specialist Services,,II,BACS,No,31/08/2021 00:00,2021,7,310821GUI,C1113,Environmental Control,D6009,Specialist Services,CEE25,Environmental Protection,CEE,Environmental Health (Regulatory Services),CE,Environmental & Regulatory Services,C,"Cultural, Environmental & Planning Services"
GUILDFORD BOROUGH COUNCIL,Countryside and Parks Services,714600,Rigby Taylor Limited,04/11/2021,30032971,575.32,0,Materials,Gardening Equipment Suppliers,II,BACS,No,12/10/2021 00:00,2021,7,RSIN0392234,A1130,Castle Grounds,D2003,Materials,CCE00,Community Parks & Open Spaces,CCE,Open Spaces,CC,Cultural & Related Services,C,"Cultural, Environmental & Planning Services"
GUILDFORD BOROUGH COUNCIL,Countryside and Parks Services,714600,Rigby Taylor Limited,04/11/2021,30032971,812.65,0,Materials,Gardening Equipment Suppliers,II,BACS,No,12/10/2021 00:00,2021,7,RSIN0392234,A1250,Stoke Park,D2003,Materials,CCE00,Community Parks & Open Spaces,CCE,Open Spaces,CC,Cultural & Related Services,C,"Cultural, Environmental & Planning Services"
GUILDFORD BOROUGH COUNCIL,Countryside and Parks Services,714600,Rigby Taylor Limited,04/11/2021,30032971,866.8,0,Materials,Gardening Equipment Suppliers,II,BACS,No,12/10/2021 00:00,2021,7,RSIN0392234,A1295,East Horsley Bowls Ground And Pavilion,D2003,Materials,CCE00,Community Parks & Open Spaces,CCE,Open Spaces,CC,Cultural & Related Services,C,"Cultural, Environmental & Planning Services"
GUILDFORD BOROUGH COUNCIL,Countryside and Parks Services,714600,Rigby Taylor Limited,04/11/2021,30032971,930.83,0,Materials,Gardening Equipment Suppliers,II,BACS,No,12/10/2021 00:00,2021,7,RSIN0392234,A1232,Sutherland Memorial Park,D2003,Materials,CCE00,Community Parks & Open Spaces,CCE,Open Spaces,CC,Cultural & Related Services,C,"Cultural, Environmental & Planning Services"
GUILDFORD BOROUGH COUNCIL,Countryside and Parks Services,714600,Rigby Taylor Limited,04/11/2021,30032971,301.2,0,Materials,Gardening Equipment Suppliers,II,BACS,No,12/10/2021 00:00,2021,7,RSIN0392234,A1232,Sutherland Memorial Park,D2003,Materials,CCE00,Community Parks & Open Spaces,CCE,Open Spaces,CC,Cultural & Related Services,C,"Cultural, Environmental & Planning Services"
GUILDFORD BOROUGH COUNCIL,Countryside and Parks Services,714600,Rigby Taylor Limited,04/11/2021,30032971,399.16,0,Materials,Gardening Equipment Suppliers,II,BACS,No,12/10/2021 00:00,2021,7,RSIN0392234,A1250,Stoke Park,D2003,Materials,CCE00,Community Parks & Open Spaces,CCE,Open Spaces,CC,Cultural & Related Services,C,"Cultural, Environmental & Planning Services"
GUILDFORD BOROUGH COUNCIL,Executive - Miscellaneous,814220,The Oyster Partnership Ltd,11/11/2021,30032973,835.2,0,Agency Staff,Other Recruitment Agencies And Service Providers,II,BACS,No,13/10/2021 00:00,2021,7,10911941,P79102,WUV - New GBC Depot,1222,Agency Staff,,,,,,,,
GUILDFORD BOROUGH COUNCIL,Major Projects,814220,The Oyster Partnership Ltd,11/11/2021,30032973,1670.4,0,Agency Staff,Other Recruitment Agencies And Service Providers,II,BACS,No,13/10/2021 00:00,2021,7,10911941,F5530,Major Projects,1222,Agency Staff,DBX70,Other Management Costs,DBX,Support Service and Management Costs,DB,Children's Social Care,E,Childrens and Education Services
GUILDFORD BOROUGH COUNCIL,Executive - Miscellaneous,814220,The Oyster Partnership Ltd,11/11/2021,30032973,1670.4,0,Agency Staff,Other Recruitment Agencies And Service Providers,II,BACS,No,13/10/2021 00:00,2021,7,10911941,P79100,Wuv - Allotment Relocation,1222,Agency Staff,,,,,,,,
GUILDFORD BOROUGH COUNCIL,Equity Share Administration,150290,Clarke Gammon Wellers,19/10/2021,30032977,395,0,Valuers Fees,Property Letting And Estate Agents,II,BACS,No,13/10/2021 00:00,2021,7,14953,M1181,Sale Of Council Houses (BHS),D6002,Valuers Fees,XXX99,*** UNASSIGNED ***,WCC,CEC Recharges,WC,CEC Recharges,A,Central Services
GUILDFORD BOROUGH COUNCIL,Equity Share Administration,130140,Clarke Gammon Client Account,19/10/2021,30032978,395,0,Valuers Fees,,II,BACS,No,11/10/2021 00:00,2021,7,14946,M1181,Sale Of Council Houses (BHS),D6002,Valuers Fees,XXX99,*** UNASSIGNED ***,WCC,CEC Recharges,WC,CEC Recharges,A,Central Services
GUILDFORD BOROUGH COUNCIL,Other Short Term Debtors,191780,Spicerhaart Residential Lettings,15/10/2021,30032982,7350,0,Cash Paid,Property Letting And Estate Agents,II,CHAPS,No,14/10/2021 00:00,2021,7,CHAPs 14.10.21,J01064,Housing H4U Scheme,2175,Cash Paid,,,,,,,,
GUILDFORD BOROUGH COUNCIL,Corporate Property Management,970280,David Kingston Chartered Surveyors,11/11/2021,30032990,900,0,Valuers Fees,Surveyors And Inspectors,II,BACS,No,14/10/2021 00:00,2021,7,141021,G4575,Asset Management,D6002,Valuers Fees,DBX45,Property Services,DBX,Support Service and Management Costs,DB,Children's Social Care,E,Childrens and Education Services
GUILDFORD BOROUGH COUNCIL,Major Projects,1000307,Trowers and Hamlins LLP,19/10/2021,30032991,3352.4,0,Consultancy,,II,BACS,No,17/09/2021 00:00,2021,7,11-143674,F5530,Major Projects,D6001,Consultancy,DBX70,Other Management Costs,DBX,Support Service and Management Costs,DB,Children's Social Care,E,Childrens and Education Services
GUILDFORD BOROUGH COUNCIL,IT Renewals,167600,Dell Computer Corporation Ltd,11/11/2021,30032992,1153.8,0,Hardware,Computer Hardware Suppliers,II,BACS,No,14/10/2021 00:00,2021,7,7402752323,P81002,IT Renewals Reserve Funded General,1295,Hardware,XXX99,*** UNASSIGNED ***,WCC,CEC Recharges,WC,CEC Recharges,A,Central Services
GUILDFORD BOROUGH COUNCIL,Leisure Management Contract,775140,A P Williamson Consultants Ltd,11/11/2021,30032993,539,0,Consultancy,Roofers,II,BACS,No,14/10/2021 00:00,2021,7,1573,A7540,Spectrum,D6001,Consultancy,CCD30,Indoor Sports & Recreation Facilities,CCD,Recreation & Sport,CC,Cultural & Related Services,C,"Cultural, Environmental & Planning Services"
GUILDFORD BOROUGH COUNCIL,Vehicle Maintenance,145000,Connections UK,11/11/2021,30032994,276.2,0,Repair And Maintenance Of Vehicles,Event Management Agencies,II,BACS,No,13/10/2021 00:00,2021,7,3394,K5551,Fleet Workshops,C1002,Repair And Maintenance Of Vehicles,W3A48,Current Service Costs - Fleet Management,W3A,Current Service Costs adjustment,W3,Current Service Costs,W,Other Operating Income and Expenditure
GUILDFORD BOROUGH COUNCIL,Executive - Miscellaneous,899630,H T P Consulting Limited,11/11/2021,30032996,2086,0,Consultants Fees,Transport Consultants,II,BACS,No,14/10/2021 00:00,2021,7,1192/58,P79023,Guild Town Centre Regeneration,1221,Consultants Fees,XXX99,*** UNASSIGNED ***,WCC,CEC Recharges,WC,CEC Recharges,A,Central Services
